Workbook

Sheet Prognosunderlag
A1: Prognosunderlag Regioner 2024-2031 | C1: ='Blad 2 Indata'!A2 ->  | J1: 2024-02-26
A2: Från Cirkulär 24:16 | B2: =IF(B1>0," ","Skriv in länets kod i cellen B1") -> Skriv in länets kod i cellen B1
A3: Belopp i tkr | C3: ='Blad 1 Totala intäkter'!B9 -> 2024 | D3: ='Blad 1 Totala intäkter'!C9 -> 2025 | E3: ='Blad 1 Totala intäkter'!D9 -> 2026 | F3: ='Blad 1 Totala intäkter'!E9 -> 2027 | G3: ='Blad 1 Totala intäkter'!F9 -> 2028 | H3: ='Blad 1 Totala intäkter'!G9 -> 2029 | I3: ='Blad 1 Totala intäkter'!H9 -> 2030 | J3: ='Blad 1 Totala intäkter'!I9 -> 2031
A4: Skatteintäkter | C4: ='Blad 1 Totala intäkter'!B12 -> 0 | D4: ='Blad 1 Totala intäkter'!C12 -> 0 | E4: ='Blad 1 Totala intäkter'!D12 -> 0 | F4: ='Blad 1 Totala intäkter'!E12 -> 0 | G4: ='Blad 1 Totala intäkter'!F12 -> 0 | H4: ='Blad 1 Totala intäkter'!G12 -> 0 | I4: ='Blad 1 Totala intäkter'!H12 -> 0 | J4: ='Blad 1 Totala intäkter'!I12 -> 0
A5: Inkomstutjämning | C5: ='Blad 1 Totala intäkter'!B14 -> 0 | D5: ='Blad 1 Totala intäkter'!C14 -> 0 | E5: ='Blad 1 Totala intäkter'!D14 -> 0 | F5: ='Blad 1 Totala intäkter'!E14 -> 0 | G5: ='Blad 1 Totala intäkter'!F14 -> 0 | H5: ='Blad 1 Totala intäkter'!G14 -> 0 | I5: ='Blad 1 Totala intäkter'!H14 -> 0 | J5: ='Blad 1 Totala intäkter'!I14 -> 0
A6: Kostnadsutjämning | C6: ='Blad 1 Totala intäkter'!B16 -> 0 | D6: ='Blad 1 Totala intäkter'!C16 -> 0 | E6: ='Blad 1 Totala intäkter'!D16 -> 0 | F6: ='Blad 1 Totala intäkter'!E16 -> 0 | G6: ='Blad 1 Totala intäkter'!F16 -> 0 | H6: ='Blad 1 Totala intäkter'!G16 -> 0 | I6: ='Blad 1 Totala intäkter'!H16 -> 0 | J6: ='Blad 1 Totala intäkter'!I16 -> 0
A7: Regleringspost | C7: ='Blad 1 Totala intäkter'!B18 -> 0 | D7: ='Blad 1 Totala intäkter'!C18 -> 0 | E7: ='Blad 1 Totala intäkter'!D18 -> 0 | F7: ='Blad 1 Totala intäkter'!E18 -> 0 | G7: ='Blad 1 Totala intäkter'!F18 -> 0 | H7: ='Blad 1 Totala intäkter'!G18 -> 0 | I7: ='Blad 1 Totala intäkter'!H18 -> 0 | J7: ='Blad 1 Totala intäkter'!I18 -> 0
A8: Strukturbidrag | C8: ='Blad 1 Totala intäkter'!B20 -> 0 | D8: ='Blad 1 Totala intäkter'!C20 -> 0 | E8: ='Blad 1 Totala intäkter'!D20 -> 0 | F8: ='Blad 1 Totala intäkter'!E20 -> 0 | G8: ='Blad 1 Totala intäkter'!F20 -> 0 | H8: ='Blad 1 Totala intäkter'!G20 -> 0 | I8: ='Blad 1 Totala intäkter'!H20 -> 0 | J8: ='Blad 1 Totala intäkter'!I20 -> 0
A9: Införandebidrag | C9: ='Blad 1 Totala intäkter'!B22 -> 0 | D9: ='Blad 1 Totala intäkter'!C22 -> 0 | E9: ='Blad 1 Totala intäkter'!D22 -> 0 | F9: ='Blad 1 Totala intäkter'!E22 -> 0 | G9: ='Blad 1 Totala intäkter'!F22 -> 0 | H9: ='Blad 1 Totala intäkter'!G22 -> 0 | I9: ='Blad 1 Totala intäkter'!H22 -> 0 | J9: ='Blad 1 Totala intäkter'!I22 -> 0
A10: Summa intäkter | C10: ='Blad 1 Totala intäkter'!B24 -> 0 | D10: ='Blad 1 Totala intäkter'!C24 -> 0 | E10: ='Blad 1 Totala intäkter'!D24 -> 0 | F10: ='Blad 1 Totala intäkter'!E24 -> 0 | G10: ='Blad 1 Totala intäkter'!F24 -> 0 | H10: ='Blad 1 Totala intäkter'!G24 -> 0 | I10: ='Blad 1 Totala intäkter'!H24 -> 0 | J10: ='Blad 1 Totala intäkter'!I24 -> 0
A11: ='Blad 1 Totala intäkter'!A26 -> Slutavräkning 2023 korrigering | C11: ='Blad 1 Totala intäkter'!B26 -> 0 | D11: ='Blad 1 Totala intäkter'!C26 -> 0 | E11: ='Blad 1 Totala intäkter'!D26 -> 0 | F11: ='Blad 1 Totala intäkter'!E26 -> 0 | G11: ='Blad 1 Totala intäkter'!F26 -> 0 | H11: ='Blad 1 Totala intäkter'!G26 -> 0 | I11: ='Blad 1 Totala intäkter'!H26 -> 0 | J11: ='Blad 1 Totala intäkter'!I26 -> 0
A12: ='Blad 1 Totala intäkter'!A28 -> Slutavräkning 2024 | C12: ='Blad 1 Totala intäkter'!B28 -> 0 | D12: ='Blad 1 Totala intäkter'!C28 -> 0 | E12: ='Blad 1 Totala intäkter'!D28 -> 0 | F12: ='Blad 1 Totala intäkter'!E28 -> 0 | G12: ='Blad 1 Totala intäkter'!F28 -> 0 | H12: ='Blad 1 Totala intäkter'!G28 -> 0 | I12: ='Blad 1 Totala intäkter'!H28 -> 0 | J12: ='Blad 1 Totala intäkter'!I28 -> 0
A13: ='Blad 1 Totala intäkter'!A30 -> Slutavräkning 2025 | C13: ='Blad 1 Totala intäkter'!B30 -> 0 | D13: ='Blad 1 Totala intäkter'!C30 -> 0 | E13: ='Blad 1 Totala intäkter'!D30 -> 0 | F13: ='Blad 1 Totala intäkter'!E30 -> 0 | G13: ='Blad 1 Totala intäkter'!F30 -> 0 | H13: ='Blad 1 Totala intäkter'!G30 -> 0 | I13: ='Blad 1 Totala intäkter'!H30 -> 0 | J13: ='Blad 1 Totala intäkter'!I30 -> 0
A14: Summa intäkter (inkl. avräkning) | C14: ='Blad 1 Totala intäkter'!B32 -> 0 | D14: ='Blad 1 Totala intäkter'!C32 -> 0 | E14: ='Blad 1 Totala intäkter'!D32 -> 0 | F14: ='Blad 1 Totala intäkter'!E32 -> 0 | G14: ='Blad 1 Totala intäkter'!F32 -> 0 | H14: ='Blad 1 Totala intäkter'!G32 -> 0 | I14: ='Blad 1 Totala intäkter'!H32 -> 0 | J14: ='Blad 1 Totala intäkter'!I32 -> 0
A15: Varav summa skatteintäkter | C15: ='Blad 1 Totala intäkter'!B34 -> 0 | D15: ='Blad 1 Totala intäkter'!C34 -> 0 | E15: ='Blad 1 Totala intäkter'!D34 -> 0 | F15: ='Blad 1 Totala intäkter'!E34 -> 0 | G15: ='Blad 1 Totala intäkter'!F34 -> 0 | H15: ='Blad 1 Totala intäkter'!G34 -> 0 | I15: ='Blad 1 Totala intäkter'!H34 -> 0 | J15: ='Blad 1 Totala intäkter'!I34 -> 0
A17: Kronor per invånare | C17: =C3 -> 2024 | D17: 2025 | E17: 2026 | F17: 2027 | G17: 2028 | H17: 2029 | I17: 2030 | J17: 2031
A18: Skatteintäkter | C18: ='Blad 1 Totala intäkter'!K12 -> 0 | D18: ='Blad 1 Totala intäkter'!L12 -> 0 | E18: ='Blad 1 Totala intäkter'!M12 -> 0 | F18: ='Blad 1 Totala intäkter'!N12 -> 0 | G18: ='Blad 1 Totala intäkter'!O12 -> 0 | H18: ='Blad 1 Totala intäkter'!P12 -> 0 | I18: ='Blad 1 Totala intäkter'!Q12 -> 0 | J18: ='Blad 1 Totala intäkter'!R12 -> 0
A19: Inkomstutjämning | C19: ='Blad 1 Totala intäkter'!K14 -> 0 | D19: ='Blad 1 Totala intäkter'!L14 -> 0 | E19: ='Blad 1 Totala intäkter'!M14 -> 0 | F19: ='Blad 1 Totala intäkter'!N14 -> 0 | G19: ='Blad 1 Totala intäkter'!O14 -> 0 | H19: ='Blad 1 Totala intäkter'!P14 -> 0 | I19: ='Blad 1 Totala intäkter'!Q14 -> 0 | J19: ='Blad 1 Totala intäkter'!R14 -> 0
A20: Kostnadsutjämning | C20: ='Blad 1 Totala intäkter'!K16 -> -82 | D20: ='Blad 1 Totala intäkter'!L16 -> -77.83891891 | E20: ='Blad 1 Totala intäkter'!M16 -> -76.21534111 | F20: ='Blad 1 Totala intäkter'!N16 -> -74.96975758 | G20: ='Blad 1 Totala intäkter'!O16 -> -77.13618943 | H20: ='Blad 1 Totala intäkter'!P16 -> -71.00587433 | I20: ='Blad 1 Totala intäkter'!Q16 -> -65.11939806 | J20: ='Blad 1 Totala intäkter'!R16 -> -59.55165775
A21: Regleringspost | C21: ='Blad 1 Totala intäkter'!K18 -> 729.5538913 | D21: ='Blad 1 Totala intäkter'!L18 -> 367.1952618 | E21: ='Blad 1 Totala intäkter'!M18 -> 216.5116075 | F21: ='Blad 1 Totala intäkter'!N18 -> 55.39282899 | G21: ='Blad 1 Totala intäkter'!O18 -> -119.5675624 | H21: ='Blad 1 Totala intäkter'!P18 -> -299.6940292 | I21: ='Blad 1 Totala intäkter'!Q18 -> -481.1912777 | J21: ='Blad 1 Totala intäkter'!R18 -> -653.2624509
A22: Strukturbidrag | C22: ='Blad 1 Totala intäkter'!K20 -> 0 | D22: ='Blad 1 Totala intäkter'!L20 -> 0 | E22: ='Blad 1 Totala intäkter'!M20 -> 0 | F22: ='Blad 1 Totala intäkter'!N20 -> 0 | G22: ='Blad 1 Totala intäkter'!O20 -> 0 | H22: ='Blad 1 Totala intäkter'!P20 -> 0 | I22: ='Blad 1 Totala intäkter'!Q20 -> 0 | J22: ='Blad 1 Totala intäkter'!R20 -> 0
A23: Införandebidrag | C23: ='Blad 1 Totala intäkter'!K22 -> 0 | D23: ='Blad 1 Totala intäkter'!L22 -> 0 | E23: ='Blad 1 Totala intäkter'!M22 -> 0 | F23: ='Blad 1 Totala intäkter'!N22 -> 0 | G23: ='Blad 1 Totala intäkter'!O22 -> 0 | H23: ='Blad 1 Totala intäkter'!P22 -> 0 | I23: ='Blad 1 Totala intäkter'!Q22 -> 0 | J23: ='Blad 1 Totala intäkter'!R22 -> 0
A24: Summa intäkter | C24: ='Blad 1 Totala intäkter'!K24 -> 647.5538913 | D24: ='Blad 1 Totala intäkter'!L24 -> 289.3563429 | E24: ='Blad 1 Totala intäkter'!M24 -> 140.2962664 | F24: ='Blad 1 Totala intäkter'!N24 -> -19.57692859 | G24: ='Blad 1 Totala intäkter'!O24 -> -196.7037518 | H24: ='Blad 1 Totala intäkter'!P24 -> -370.6999035 | I24: ='Blad 1 Totala intäkter'!Q24 -> -546.3106757 | J24: ='Blad 1 Totala intäkter'!R24 -> -712.8141087
A25: =A11 -> Slutavräkning 2023 korrigering | C25: ='Blad 1 Totala intäkter'!K26 -> 0 | D25: ='Blad 1 Totala intäkter'!L26 -> 0 | E25: ='Blad 1 Totala intäkter'!M26 -> 0 | F25: ='Blad 1 Totala intäkter'!N26 -> 0 | G25: ='Blad 1 Totala intäkter'!O26 -> 0 | H25: ='Blad 1 Totala intäkter'!P26 -> 0 | I25: ='Blad 1 Totala intäkter'!Q26 -> 0 | J25: ='Blad 1 Totala intäkter'!R26 -> 0
A26: =A12 -> Slutavräkning 2024 | C26: ='Blad 1 Totala intäkter'!K28 -> 0 | D26: ='Blad 1 Totala intäkter'!L28 -> -4.640998696e-09 | E26: ='Blad 1 Totala intäkter'!M28 -> 0 | F26: ='Blad 1 Totala intäkter'!N28 -> 0 | G26: ='Blad 1 Totala intäkter'!O28 -> 0 | H26: ='Blad 1 Totala intäkter'!P28 -> 0 | I26: ='Blad 1 Totala intäkter'!Q28 -> 0 | J26: ='Blad 1 Totala intäkter'!R28 -> 0
A27: =A13 -> Slutavräkning 2025 | C27: ='Blad 1 Totala intäkter'!K30 -> 0 | D27: ='Blad 1 Totala intäkter'!L30 -> 0 | E27: ='Blad 1 Totala intäkter'!M30 -> 0 | F27: ='Blad 1 Totala intäkter'!N30 -> 0 | G27: ='Blad 1 Totala intäkter'!O30 -> 0 | H27: ='Blad 1 Totala intäkter'!P30 -> 0 | I27: ='Blad 1 Totala intäkter'!Q30 -> 0 | J27: ='Blad 1 Totala intäkter'!R30 -> 0
A28: Summa intäkter (inkl. avräkning) | C28: ='Blad 1 Totala intäkter'!K32 -> 647.5538913 | D28: ='Blad 1 Totala intäkter'!L32 -> 289.3563428 | E28: ='Blad 1 Totala intäkter'!M32 -> 140.2962664 | F28: ='Blad 1 Totala intäkter'!N32 -> -19.57692859 | G28: ='Blad 1 Totala intäkter'!O32 -> -196.7037518 | H28: ='Blad 1 Totala intäkter'!P32 -> -370.6999035 | I28: ='Blad 1 Totala intäkter'!Q32 -> -546.3106757 | J28: ='Blad 1 Totala intäkter'!R32 -> -712.8141087
A29: Varav summa skatteintäkter | C29: ='Blad 1 Totala intäkter'!K34 -> 0 | D29: ='Blad 1 Totala intäkter'!L34 -> -4.640998696e-09 | E29: ='Blad 1 Totala intäkter'!M34 -> 0 | F29: ='Blad 1 Totala intäkter'!N34 -> 0 | G29: ='Blad 1 Totala intäkter'!O34 -> 0 | H29: ='Blad 1 Totala intäkter'!P34 -> 0 | I29: ='Blad 1 Totala intäkter'!Q34 -> 0 | J29: ='Blad 1 Totala intäkter'!R34 -> 0
A32: Basuppgifter | B32: =C32-1 -> 2023 | C32: =C3 -> 2024 | D32: 2025 | E32: 2026 | F32: 2027 | G32: 2028 | H32: 2029 | I32: 2030 | J32: 2031
A33: Uppräkningsfaktorer
A34: ='Blad 2 Indata'!A7 -> Fastställt för 2024 | B34: ='Blad 2 Indata'!B7 -> 4.6 | C34: ='Blad 2 Indata'!C7 -> 3.3
A35: ='Blad 2 Indata'!A8 -> Fastställt för 2025 | C35: ='Blad 2 Indata'!C8 -> 0 | D35: ='Blad 2 Indata'!D8 -> 0
A36: Sveriges Kommuner och Regioners prognos | B36: ='Blad 2 Indata'!B9 -> 5.062685106 | C36: ='Blad 2 Indata'!C9 -> 2.730090121 | D36: ='Blad 2 Indata'!D9 -> 4.867787057 | E36: ='Blad 2 Indata'!E9 -> 4.162183612 | F36: ='Blad 2 Indata'!F9 -> 4.01490337 | G36: ='Blad 2 Indata'!G9 -> 4.082761124 | H36: ='Blad 2 Indata'!H9 -> 4.082079983 | I36: ='Blad 2 Indata'!I9 -> 3.977838734 | J36: ='Blad 2 Indata'!J9 -> 3.663331343
A38: Antal invånare den 1.11 året innan
A39: Antal invånare i riket | B39: ='Blad 2 Indata'!B28 -> 10514719 | C39: ='Blad 2 Indata'!C28 -> 10557682 | D39: ='Blad 2 Indata'!D28 -> 10614874 | E39: ='Blad 2 Indata'!E28 -> 10669403 | F39: ='Blad 2 Indata'!F28 -> 10721197 | G39: ='Blad 2 Indata'!G28 -> 10767844 | H39: ='Blad 2 Indata'!H28 -> 10814845 | I39: ='Blad 2 Indata'!I28 -> 10861959 | J39: ='Blad 2 Indata'!J28 -> 10909347
A40: Förändring i riket i procent | D40: ='Blad 2 Indata'!D27 -> 0.5417098185 | E40: ='Blad 2 Indata'!E27 -> 0.5137036954 | F40: ='Blad 2 Indata'!F27 -> 0.4854442184 | G40: ='Blad 2 Indata'!G27 -> 0.4350913429 | H40: ='Blad 2 Indata'!H27 -> 0.4364940651 | I40: ='Blad 2 Indata'!I27 -> 0.4356419348 | J40: ='Blad 2 Indata'!J27 -> 0.436274893
A41: Antal invånare i länet enligt trend | B41: ='Blad 2 Indata'!B32 -> 0 | C41: ='Blad 2 Indata'!C32 -> 0 | D41: ='Blad 2 Indata'!D32 -> 0 | E41: ='Blad 2 Indata'!E32 -> 0 | F41: ='Blad 2 Indata'!F32 -> 0 | G41: ='Blad 2 Indata'!G32 -> 0 | H41: ='Blad 2 Indata'!H32 -> 0 | I41: ='Blad 2 Indata'!I32 -> 0 | J41: ='Blad 2 Indata'!J32 -> 0
A43: ='Blad 2 Indata'!A20 -> Skatteunderlag inkomstår 2022 och 2023
A44: Riket, miljoner kr | B44: ='Blad 2 Indata'!B21 -> 2645513.487 | C44: ='Blad 2 Indata'!C21 -> 0
A45: Länet, tkr | B45: ='Blad 2 Indata'!B22 -> 0 | C45: ='Blad 2 Indata'!C22 -> 0
A47: Skattesatser
A48: Länets skattesats | C48: ='Blad 2 Indata'!C63 -> 0 | D48: ='Blad 2 Indata'!D63 -> 0 | E48: ='Blad 2 Indata'!E63 -> 0 | F48: ='Blad 2 Indata'!F63 -> 0 | G48: ='Blad 2 Indata'!G63 -> 0 | H48: ='Blad 2 Indata'!H63 -> 0 | I48: ='Blad 2 Indata'!I63 -> 0 | J48: ='Blad 2 Indata'!J63 -> 0
A49: Länsvis skattesats avgift 85%/bidrag 90% | C49: ='Blad 3 Inkomstutjämning'!C37 -> 0 | D49: ='Blad 3 Inkomstutjämning'!D37 -> 0 | E49: ='Blad 3 Inkomstutjämning'!E37 -> 0 | F49: ='Blad 3 Inkomstutjämning'!F37 -> 0 | G49: ='Blad 3 Inkomstutjämning'!G37 -> 0 | H49: ='Blad 3 Inkomstutjämning'!H37 -> 0 | I49: ='Blad 3 Inkomstutjämning'!I37 -> 0 | J49: ='Blad 3 Inkomstutjämning'!J37 -> 0
A51: Inkomstutjämning
A52: Medelskattekraft i riket, fastställd | B52: ='Blad 3 Inkomstutjämning'!B16 -> 260928 | C52: ='Blad 3 Inkomstutjämning'!C16 -> 270753 | D52: ='Blad 3 Inkomstutjämning'!D16 -> 0
A53: Medelskattekraft i riket, prognos | B53: ='Blad 3 Inkomstutjämning'!B17 -> 264339 | C53: ='Blad 3 Inkomstutjämning'!C17 -> 270450 | D53: ='Blad 3 Inkomstutjämning'!D17 -> 282087 | E53: ='Blad 3 Inkomstutjämning'!E17 -> 292327 | F53: ='Blad 3 Inkomstutjämning'!F17 -> 302594 | G53: ='Blad 3 Inkomstutjämning'!G17 -> 313584 | H53: ='Blad 3 Inkomstutjämning'!H17 -> 324966 | I53: ='Blad 3 Inkomstutjämning'!I17 -> 336427 | J53: ='Blad 3 Inkomstutjämning'!J17 -> 347237
A54: Garanterad skattekraft, riket | C54: ='Blad 3 Inkomstutjämning'!C19 -> 311365.95 | D54: ='Blad 3 Inkomstutjämning'!D19 -> 324400.05 | E54: ='Blad 3 Inkomstutjämning'!E19 -> 336176.05 | F54: ='Blad 3 Inkomstutjämning'!F19 -> 347983.1 | G54: ='Blad 3 Inkomstutjämning'!G19 -> 360621.6 | H54: ='Blad 3 Inkomstutjämning'!H19 -> 373710.9 | I54: ='Blad 3 Inkomstutjämning'!I19 -> 386891.05 | J54: ='Blad 3 Inkomstutjämning'!J19 -> 399322.55
A55: Uppräknat skatteunderlag kommunen, tkr | C55: ='Blad 3 Inkomstutjämning'!C24 -> 0 | D55: ='Blad 3 Inkomstutjämning'!D24 -> 0 | E55: ='Blad 3 Inkomstutjämning'!E24 -> 0 | F55: ='Blad 3 Inkomstutjämning'!F24 -> 0 | G55: ='Blad 3 Inkomstutjämning'!G24 -> 0 | H55: ='Blad 3 Inkomstutjämning'!H24 -> 0 | I55: ='Blad 3 Inkomstutjämning'!I24 -> 0 | J55: ='Blad 3 Inkomstutjämning'!J24 -> 0
A56: Garanterat skatteunderlag, tkr | C56: ='Blad 3 Inkomstutjämning'!C27 -> 0 | D56: ='Blad 3 Inkomstutjämning'!D27 -> 0 | E56: ='Blad 3 Inkomstutjämning'!E27 -> 0 | F56: ='Blad 3 Inkomstutjämning'!F27 -> 0 | G56: ='Blad 3 Inkomstutjämning'!G27 -> 0 | H56: ='Blad 3 Inkomstutjämning'!H27 -> 0 | I56: ='Blad 3 Inkomstutjämning'!I27 -> 0 | J56: ='Blad 3 Inkomstutjämning'!J27 -> 0
A57: Underlag för inkomstutjämning | C57: ='Blad 3 Inkomstutjämning'!C30 -> 0 | D57: ='Blad 3 Inkomstutjämning'!D30 -> 0 | E57: ='Blad 3 Inkomstutjämning'!E30 -> 0 | F57: ='Blad 3 Inkomstutjämning'!F30 -> 0 | G57: ='Blad 3 Inkomstutjämning'!G30 -> 0 | H57: ='Blad 3 Inkomstutjämning'!H30 -> 0 | I57: ='Blad 3 Inkomstutjämning'!I30 -> 0 | J57: ='Blad 3 Inkomstutjämning'!J30 -> 0
A59: Prognos av regleringsbidrag/avgift
A60: Anslag kommunalek. utj. | B60: ='Blad 2 Indata'!B35 -> 43847.606 | C60: ='Blad 2 Indata'!C35 -> 48694.896 | D60: ='Blad 2 Indata'!D35 -> 46854.896 | E60: ='Blad 2 Indata'!E35 -> 47039.896 | F60: ='Blad 2 Indata'!F35 -> 47099.896 | G60: ='Blad 2 Indata'!G35 -> 47099.896 | H60: ='Blad 2 Indata'!H35 -> 47099.896 | I60: ='Blad 2 Indata'!I35 -> 47099.896 | J60: ='Blad 2 Indata'!J35 -> 47099.896
A61: Inkomstutjämningsbidrag, netto | B61: ='Blad 2 Indata'!B38 -> 38852.32444 | C61: ='Blad 2 Indata'!C38 -> 40488.03322 | D61: ='Blad 2 Indata'!D38 -> 42410.1835 | E61: ='Blad 2 Indata'!E38 -> 44182.73247 | F61: ='Blad 2 Indata'!F38 -> 45958.92973 | G61: ='Blad 2 Indata'!G38 -> 47840.59469 | H61: ='Blad 2 Indata'!H38 -> 49794.55327 | I61: ='Blad 2 Indata'!I38 -> 51780.39628 | J61: ='Blad 2 Indata'!J38 -> 53680.68998
A62: Kostnadsutjämning, netto | B62: ='Blad 2 Indata'!B42 -> -40.033424 | C62: ='Blad 2 Indata'!C42 -> -42.227944 | D62: ='Blad 2 Indata'!D42 -> 0 | E62: ='Blad 2 Indata'!E42 -> 0 | F62: ='Blad 2 Indata'!F42 -> 0 | G62: ='Blad 2 Indata'!G42 -> 0 | H62: ='Blad 2 Indata'!H42 -> 0 | I62: ='Blad 2 Indata'!I42 -> 0 | J62: ='Blad 2 Indata'!J42 -> 0
A63: Strukturbidrag | B63: ='Blad 2 Indata'!B45 -> 547.026316 | C63: ='Blad 2 Indata'!C45 -> 546.69274 | D63: ='Blad 2 Indata'!D45 -> 546.981062 | E63: ='Blad 2 Indata'!E45 -> 547.113937 | F63: ='Blad 2 Indata'!F45 -> 547.088841 | G63: ='Blad 2 Indata'!G45 -> 546.786171 | H63: ='Blad 2 Indata'!H45 -> 546.487201 | I63: ='Blad 2 Indata'!I45 -> 546.179645 | J63: ='Blad 2 Indata'!J45 -> 545.872781
A64: Införandebidrag | B64: ='Blad 2 Indata'!B48 -> 0 | C64: ='Blad 2 Indata'!C48 -> 0 | D64: ='Blad 2 Indata'!D48 -> 0 | E64: ='Blad 2 Indata'!E48 -> 0 | F64: ='Blad 2 Indata'!F48 -> 0 | G64: ='Blad 2 Indata'!G48 -> 0 | H64: ='Blad 2 Indata'!H48 -> 0 | I64: ='Blad 2 Indata'!I48 -> 0 | J64: ='Blad 2 Indata'!J48 -> 0
A65: Regleringsbidrag/avgift
A66: Miljoner kronor | B66: ='Blad 2 Indata'!B51 -> 4488.288668 | C66: ='Blad 2 Indata'!C51 -> 7702.397986 | D66: ='Blad 2 Indata'!D51 -> 3897.731437 | E66: ='Blad 2 Indata'!E51 -> 2310.049595 | F66: ='Blad 2 Indata'!F51 -> 593.877432 | G66: ='Blad 2 Indata'!G51 -> -1287.484859 | H66: ='Blad 2 Indata'!H51 -> -3241.144473 | I66: ='Blad 2 Indata'!I51 -> -5226.679929 | J66: ='Blad 2 Indata'!J51 -> -7126.666759
A67: Kronor per invånare | B67: ='Blad 2 Indata'!B52 -> 426.8576904 | C67: ='Blad 2 Indata'!C52 -> 729.5538913 | D67: ='Blad 2 Indata'!D52 -> 367.1952618 | E67: ='Blad 2 Indata'!E52 -> 216.5116075 | F67: ='Blad 2 Indata'!F52 -> 55.39282899 | G67: ='Blad 2 Indata'!G52 -> -119.5675624 | H67: ='Blad 2 Indata'!H52 -> -299.6940292 | I67: ='Blad 2 Indata'!I52 -> -481.1912777 | J67: ='Blad 2 Indata'!J52 -> -653.2624509

Sheet Administration (hidden)
A2: Datum för senaste dataöverföring
A3: 2024-02-22T13:42:00
A4: Finlnamn senaste överföringen
A5: G:\Avd ekonomi & styrning\EkAnalys\Gemens_kataloger_EkAnalys\Finspec\Modellen Skatter och bidrag\2024\Regioner\Uppdateringsfiler\Uppdateringsfil-01-24 ny.xlsm
A7: Från Cirkulär | B7: Datum | C7: Denna lista fylls på automatiskt varje gång du uppdaterar
A8: 24:16 | B8: 2024-02-26 | C8: Skatteunderlagsprognos (Blad 2, rad 9)
C9: LPI (blad 2, rad 59)
C10: Justering statsbidrag pga skatteväxling
C11: Befolkning per 31/12 (Blad 2, rad 75)

Sheet Data (hidden)
A1: 1 | B1: 2 | C1: 3 | D1: 4 | E1: 5 | F1: 6 | G1: 7 | H1: 8 | I1: 9 | J1: 10 | K1: 11 | L1: 12 | M1: 13 | N1: 14 | O1: 15 | P1: 16 | Q1: 17 | R1: 18 | S1: 19 | T1: 20 | U1: 21 | V1: 22 | W1: 23 | X1: 24 | Y1: 25 | Z1: 26 | AA1: 27 | AB1: 28 | AC1: 29 | AD1: 30 | AE1: 31 | AF1: 32 | AG1: 33 | AH1: 34 | AI1: 35 | AJ1: 36 | AK1: 37 | AL1: 38 | AM1: 39 | AN1: 40 | AO1: 41 | AP1: 42 | AQ1: 43 | AR1: 44 | AS1: 45 | AT1: 46 | AU1: 47 | AV1: 48 | AW1: 49 | AX1: 50 | AY1: 51 | AZ1: 52 | BA1: 53 | BB1: 54 | BC1: 55 | BD1: 56 | BE1: 57 | BF1: 58 | BG1: 59 | BH1: 60 | BI1: 61 | BJ1: 62 | BK1: 63 | BL1: 64 | BM1: 65 | BN1: 66 | BO1: 67 | BP1: =BO1+1 -> 68 | BQ1: =BP1+1 -> 69 | BR1: 70 | BS1: 71 | BT1: 72 | BU1: 73 | BV1: 74 | BW1: 75 | BX1: 76 | BY1: 77 | BZ1: 78 | CA1: 79 | CB1: 80 | CC1: 81 | CD1: 82 | CE1: 83 | CF1: 84 | CG1: 85 | CH1: 86 | CI1: 87 | CJ1: 88 | CK1: 89 | CL1: 90 | CM1: 91 | CN1: 92 | CO1: 93 | CP1: 94 | CQ1: 95 | CR1: 96 | CS1: 97 | CT1: 98 | CU1: 99 | CV1: 100 | CW1: 101 | CX1: 102 | CY1: 103 | CZ1: 104 | DA1: 105 | DB1: =DA1+1 -> 106 | DC1: 107 | DD1: 108 | DE1: 109 | DF1: 110 | DG1: 111 | DH1: 112 | DI1: 113 | DJ1: 114 | DK1: 115 | DL1: 116 | DM1: 117
A2: Länskod | B2: Län | C2: Beskattningsutfall inkomstår 2022 | D2: Beskattningsutfall inkomstår 2023 | E2: Inv 1 november 22 | F2: Inv 1 november 23 | G2: Inv 1 november 24 | H2: Inv 1 november 25 | I2: Inv 1 november 26 | J2: Inv 1 november 27 | K2: Utdeb 23 | L2: Utdeb 24 | M2: Länsvis utdeb 90% 2024 | N2: Länsvis utdeb 85% 2024 | P2: Kostnadsutjämning 24, exklusive befolkning | Q2: Kostnadsutjämning 25 | R2: Inv 1 november 24 Trend | S2: Inv 1 november 25 Trend | T2: Inv 1 november 26 Trend | U2: Inv 1 november 27 Trend | V2: Utdeb 25 | W2: Totalt 1 november 18 | X2: Totalt 1 november 19 | Y2: Totalt 1 november 20 | Z2: Totalt 1 november 21 | AA2: Totalt 1 november 22 | AB2: Def befolkning 24 | AC2: Därav hälso sjukv 24 | AF2: Kollektivtrafik 24 | AG2: Def befolkning 25 | AH2: Därav hälso sjukv 25 | AK2: Kollektivtrafik 25 def siffror avrundade | AM2: Utdeb 2025 | AN2: Länsvis utdeb 90% 2025 | AO2: Länsvis utdeb 85% 2025 | AQ2: Beskattningsutfall inkomstår 2021 | AR2: Länsvis utdeb 90% 2023 | AS2: Länsvis utdeb 85% 2023 | BB2: Struktur enl SCB exkl särsk | BC2: Kostnadsutjämn ev nytt införandebidrag 2023 | BD2: Kostnadsutjämn ev nytt införandebidrag 2024 | BE2: Kostnadsutjämn ev nytt införandebidrag 2025 | BF2: Kostnadsutjämn ev nytt införandebidrag 2026 | BG2: Kostnadsutjämn ev nytt införandebidrag 2027 | BH2: Kostnadsutjämn ev nytt införandebidrag 2028 | BI2: Kostnadsutjämn ev nytt införandebidrag 2029 | BJ2: Justering anslag 2023 vid värdesäkring fyll i BK2 | BP2: Inv 1 november 28, trend | BQ2: Inv 1 november 29, trend | BR2: Inv 1 november 30, trend | BS2: Inv 1 november 31, trend | BT2: Inv 1 november 32, trend | BU2: Inv 1 november 33, trend | BV2: Inv 1 november 34, trend | BW2: Inv 1 november 35, trend | BX2: Inv 1 november 36, trend | BY2: Inv 1 november 37, trend | BZ2: Inv 1 november 38, trend | CA2: Inv 1 november 39, trend | CB2: Inv 1 november 40, trend | CC2: Inv 1 november 41, trend | CD2: Inv 1 november 42, trend | CE2: Inv 1 november 43, trend | CF2: Inv 1 november 44, trend | CG2: Inv 1 november 45, trend | CH2: Inv 1 november 46, trend | CI2: Inv 1 november 28, riks | CJ2: Inv 1 november 29, riks | CK2: Inv 1 november 30, riks | CL2: Inv 1 november 31, riks | CM2: Inv 1 november 32, riks | CN2: Inv 1 november 33, riks | CO2: Inv 1 november 34, riks | CP2: Inv 1 november 35, riks | CQ2: Inv 1 november 36, riks | CR2: Inv 1 november 37, riks | CS2: Inv 1 november 38, riks | CT2: Inv 1 november 39, riks | CU2: Inv 1 november 40, riks | CV2: Inv 1 november 41, riks | CW2: Inv 1 november 42, riks | CX2: Inv 1 november 43, riks | CY2: Inv 1 november 44, riks | CZ2: Inv 1 november 45, riks | DA2: Inv 1 november 46, riks | DB2: Befolkning 31/12 2012 | DC2: Befolkning 31/12 2013 | DD2: Befolkning 31/12 2014 | DE2: Befolkning 31/12 2015 | DF2: Befolkning 31/12 2016 | DG2: Befolkning 31/12 2017 | DH2: Befolkning 31/12 2018 | DI2: Befolkning 31/12 2021 | DJ2: Befolkning 31/12 2022 | DK2: Befolkning 31/12 2023 | DL2: 2020 | DM2: 2021
A3: 1 | B3: Stockholm | C3: 738729512300 | E3: 2437158 | F3: 2455914 | G3: 2469218 | H3: 2481902 | I3: 2493949 | J3: 2504802 | K3: 12.08 | L3: 12.38 | M3: 10.03 | N3: 9.51 | P3: -1174 | R3: 2478047 | S3: 2499642 | T3: 2520674 | U3: 2540568 | W3: 2339640 | X3: 2374550 | Y3: 2391841 | Z3: 2411859 | AA3: 2437158 | AB3: 261 | AC3: -2655 | AF3: 1481 | AM3: 12.38 | AN3: 10.03 | AO3: 9.51 | AQ3: 693346765800 | AR3: 10.03 | AS3: 9.51 | BB3: 0 | BP3: 2560612 | BQ3: 2580750 | BR3: 2601020 | BS3: 2621110 | BT3: 2640938 | BU3: 2660612 | BV3: 2680251 | BW3: 2699872 | BX3: 2719508 | BY3: 2739220 | BZ3: 2759052 | CA3: 2779058 | CB3: 2799252 | CC3: 2819622 | CD3: 2840178 | CE3: 2860918 | CF3: 2881803 | CG3: 2902824 | CI3: 2515735 | CJ3: 2526695 | CK3: 2537718 | CL3: 2548502 | CM3: 2558969 | CN3: 2569227 | CO3: 2579393 | CP3: 2589485 | CQ3: 2599535 | CR3: 2609603 | CS3: 2619730 | CT3: 2629968 | CU3: 2640328 | CV3: 2650799 | CW3: 2661389 | CX3: 2672096 | CY3: 2682882 | CZ3: 2693739 | DB3: 2127006 | DC3: 2163042 | DD3: 2198044 | DE3: 2231439 | DF3: 2269060 | DG3: 2308143 | DH3: 2344124 | DI3: 2415139 | DJ3: 2440027 | DK3: 2454821
A4: 3 | B4: Uppsala | C4: 98047898100 | E4: 400070 | F4: 404714 | G4: 406906 | H4: 408996 | I4: 410982 | J4: 412769 | K4: 11.71 | L4: 11.71 | M4: 9.94 | N4: 9.42 | P4: -1215 | R4: 410067 | S4: 415369 | T4: 420614 | U4: 425705 | W4: 375240 | X4: 383044 | Y4: 388076 | Z4: 394154 | AA4: 400070 | AB4: 506 | AC4: -685 | AF4: -530 | AM4: 11.71 | AN4: 9.94 | AO4: 9.42 | AQ4: 92547135500 | AR4: 9.94 | AS4: 9.42 | BB4: 0 | BP4: 430856 | BQ4: 436059 | BR4: 441320 | BS4: 446587 | BT4: 451845 | BU4: 457113 | BV4: 462411 | BW4: 467742 | BX4: 473112 | BY4: 478532 | BZ4: 484010 | CA4: 489556 | CB4: 495173 | CC4: 500860 | CD4: 506619 | CE4: 512450 | CF4: 518347 | CG4: 524309 | CI4: 414571 | CJ4: 416377 | CK4: 418194 | CL4: 419971 | CM4: 421696 | CN4: 423387 | CO4: 425062 | CP4: 426725 | CQ4: 428381 | CR4: 430040 | CS4: 431709 | CT4: 433396 | CU4: 435103 | CV4: 436828 | CW4: 438573 | CX4: 440337 | CY4: 442114 | CZ4: 443903 | DB4: 341977 | DC4: 345481 | DD4: 348942 | DE4: 354164 | DF4: 361373 | DG4: 368971 | DH4: 376354 | DI4: 395026 | DJ4: 400682 | DK4: 404589
A5: 4 | B5: Södermanland | C5: 67899505600 | E5: 302473 | F5: 302310 | G5: 303946 | H5: 305507 | I5: 306989 | J5: 308328 | K5: 10.83 | L5: 10.83 | M5: 9.21 | N5: 8.69 | P5: 990 | R5: 302751 | S5: 303103 | T5: 303365 | U5: 303471 | W5: 294042 | X5: 297169 | Y5: 299329 | Z5: 301382 | AA5: 302473 | AB5: 0 | AC5: 1624 | AF5: -634 | AM5: 10.83 | AN5: 9.21 | AO5: 8.69 | AQ5: 64295809300 | AR5: 9.21 | AS5: 8.69 | BB5: 0 | BP5: 303576 | BQ5: 303673 | BR5: 303767 | BS5: 303822 | BT5: 303829 | BU5: 303801 | BV5: 303753 | BW5: 303686 | BX5: 303605 | BY5: 303517 | BZ5: 303426 | CA5: 303338 | CB5: 303255 | CC5: 303175 | CD5: 303099 | CE5: 303027 | CF5: 302954 | CG5: 302880 | CI5: 309674 | CJ5: 311023 | CK5: 312380 | CL5: 313707 | CM5: 314995 | CN5: 316258 | CO5: 317509 | CP5: 318751 | CQ5: 319988 | CR5: 321227 | CS5: 322474 | CT5: 323734 | CU5: 325009 | CV5: 326298 | CW5: 327602 | CX5: 328920 | CY5: 330248 | CZ5: 331584 | DB5: 274723 | DC5: 277569 | DD5: 280666 | DE5: 283712 | DF5: 288097 | DG5: 291341 | DH5: 294695 | DI5: 301801 | DJ5: 302566 | DK5: 301944
A6: 5 | B6: Östergötland | C6: 110523421200 | E6: 471797 | F6: 472660 | G6: 475221 | H6: 477663 | I6: 479981 | J6: 482068 | K6: 11.55 | L6: 11.55 | M6: 10.15 | N6: 9.63 | P6: -370 | R6: 474238 | S6: 475681 | T6: 476987 | U6: 478049 | W6: 460860 | X6: 465214 | Y6: 467276 | Z6: 469445 | AA6: 471797 | AB6: 0 | AC6: 341 | AF6: -711 | AM6: 11.55 | AN6: 10.15 | AO6: 9.63 | AQ6: 105061893900 | AR6: 10.15 | AS6: 9.63 | BB6: 0 | BP6: 479112 | BQ6: 480165 | BR6: 481216 | BS6: 482207 | BT6: 483123 | BU6: 483986 | BV6: 484817 | BW6: 485620 | BX6: 486402 | BY6: 487173 | BZ6: 487941 | CA6: 488716 | CB6: 489500 | CC6: 490290 | CD6: 491088 | CE6: 491893 | CF6: 492698 | CG6: 493502 | CI6: 484172 | CJ6: 486281 | CK6: 488403 | CL6: 490478 | CM6: 492492 | CN6: 494466 | CO6: 496423 | CP6: 498365 | CQ6: 500299 | CR6: 502237 | CS6: 504186 | CT6: 506156 | CU6: 508150 | CV6: 510165 | CW6: 512203 | CX6: 514264 | CY6: 516340 | CZ6: 518429 | DB6: 433784 | DC6: 437848 | DD6: 442105 | DE6: 445661 | DF6: 452105 | DG6: 457496 | DH6: 461583 | DI6: 469704 | DJ6: 471912 | DK6: 472298
A7: 6 | B7: Jönköping | C7: 85347087200 | E7: 368963 | F7: 369201 | G7: 371201 | H7: 373108 | I7: 374920 | J7: 376550 | K7: 11.76 | L7: 11.76 | M7: 9.94 | N7: 9.42 | P7: -66 | R7: 370358 | S7: 371409 | T7: 372352 | U7: 373104 | W7: 360388 | X7: 363351 | Y7: 364953 | Z7: 366840 | AA7: 368963 | AB7: 0 | AC7: 729 | AF7: -795 | AM7: 11.76 | AN7: 9.94 | AO7: 9.42 | AQ7: 81094591800 | AR7: 9.94 | AS7: 9.42 | BB7: 0 | BP7: 373857 | BQ7: 374602 | BR7: 375345 | BS7: 376041 | BT7: 376678 | BU7: 377273 | BV7: 377844 | BW7: 378393 | BX7: 378925 | BY7: 379448 | BZ7: 379969 | CA7: 380495 | CB7: 381027 | CC7: 381564 | CD7: 382107 | CE7: 382655 | CF7: 383203 | CG7: 383749 | CI7: 378194 | CJ7: 379842 | CK7: 381499 | CL7: 383120 | CM7: 384694 | CN7: 386236 | CO7: 387764 | CP7: 389281 | CQ7: 390792 | CR7: 392306 | CS7: 393828 | CT7: 395367 | CU7: 396924 | CV7: 398498 | CW7: 400090 | CX7: 401700 | CY7: 403321 | CZ7: 404953 | DB7: 339116 | DC7: 341235 | DD7: 344262 | DE7: 347837 | DF7: 352735 | DG7: 357237 | DH7: 360825 | DI7: 367064 | DJ7: 369113 | DK7: 368856
A8: 7 | B8: Kronoberg | C8: 45951168000 | E8: 204257 | F8: 204028 | G8: 205133 | H8: 206186 | I8: 207188 | J8: 208089 | K8: 12 | L8: 12 | M8: 9.31 | N8: 8.79 | P8: 87 | R8: 204406 | S8: 204724 | T8: 204981 | U8: 205132 | W8: 199397 | X8: 201290 | Y8: 202247 | Z8: 203243 | AA8: 204257 | AB8: 0 | AC8: 947 | AF8: -860 | AM8: 12 | AN8: 9.31 | AO8: 8.79 | AQ8: 43674905400 | AR8: 9.31 | AS8: 8.79 | BB8: 230 | BP8: 205283 | BQ8: 205429 | BR8: 205573 | BS8: 205690 | BT8: 205775 | BU8: 205837 | BV8: 205885 | BW8: 205920 | BX8: 205945 | BY8: 205965 | BZ8: 205984 | CA8: 206005 | CB8: 206029 | CC8: 206055 | CD8: 206084 | CE8: 206116 | CF8: 206147 | CG8: 206177 | CI8: 208997 | CJ8: 209907 | CK8: 210823 | CL8: 211719 | CM8: 212589 | CN8: 213441 | CO8: 214286 | CP8: 215124 | CQ8: 215959 | CR8: 216795 | CS8: 217636 | CT8: 218487 | CU8: 219348 | CV8: 220218 | CW8: 221098 | CX8: 221987 | CY8: 222883 | CZ8: 223785 | DB8: 185887 | DC8: 187156 | DD8: 189128 | DE8: 191369 | DF8: 194628 | DG8: 197519 | DH8: 199886 | DI8: 203340 | DJ8: 204335 | DK8: 203686
A9: 8 | B9: Kalmar | C9: 54944361900 | E9: 247791 | F9: 247063 | G9: 248400 | H9: 249675 | I9: 250887 | J9: 251981 | K9: 11.86 | L9: 11.86 | M9: 8.72 | N9: 8.2 | P9: 2258 | R9: 247081 | S9: 247026 | T9: 246897 | U9: 246640 | W9: 244514 | X9: 245415 | Y9: 246033 | Z9: 246989 | AA9: 247791 | AB9: 0 | AC9: 3032 | AF9: -774 | AM9: 11.86 | AN9: 8.72 | AO9: 8.2 | AQ9: 52443846400 | AR9: 8.72 | AS9: 8.2 | BB9: 0 | BP9: 246383 | BQ9: 246120 | BR9: 245855 | BS9: 245559 | BT9: 245224 | BU9: 244862 | BV9: 244484 | BW9: 244091 | BX9: 243688 | BY9: 243279 | BZ9: 242869 | CA9: 242462 | CB9: 242060 | CC9: 241661 | CD9: 241266 | CE9: 240874 | CF9: 240482 | CG9: 240090 | CI9: 253081 | CJ9: 254184 | CK9: 255293 | CL9: 256378 | CM9: 257431 | CN9: 258463 | CO9: 259486 | CP9: 260501 | CQ9: 261512 | CR9: 262525 | CS9: 263544 | CT9: 264574 | CU9: 265616 | CV9: 266669 | CW9: 267734 | CX9: 268811 | CY9: 269896 | CZ9: 270988 | DB9: 233548 | DC9: 233874 | DD9: 235598 | DE9: 237679 | DF9: 242301 | DG9: 243536 | DH9: 244670 | DI9: 247175 | DJ9: 247711 | DK9: 246667
A10: 9 | B10: Gotland | C10: 13253562500 | E10: 61167 | F10: 61093 | G10: 61424 | H10: 61740 | I10: 62040 | J10: 62310 | K10: 11.35 | L10: 11.35 | M10: 9.48 | N10: 8.95 | P10: 3014 | R10: 61149 | S10: 61187 | T10: 61207 | U10: 61195 | W10: 59126 | X10: 59636 | Y10: 60050 | Z10: 60972 | AA10: 61167 | AB10: 0 | AC10: 4294 | AF10: -1280 | AM10: 11.35 | AN10: 9.48 | AO10: 8.95 | AQ10: 12461503100 | AR10: 9.48 | AS10: 8.95 | BB10: 1426 | BP10: 61183 | BQ10: 61169 | BR10: 61155 | BS10: 61133 | BT10: 61101 | BU10: 61062 | BV10: 61019 | BW10: 60972 | BX10: 60922 | BY10: 60871 | BZ10: 60820 | CA10: 60769 | CB10: 60719 | CC10: 60670 | CD10: 60622 | CE10: 60575 | CF10: 60527 | CG10: 60479 | CI10: 62582 | CJ10: 62855 | CK10: 63129 | CL10: 63397 | CM10: 63657 | CN10: 63912 | CO10: 64165 | CP10: 64416 | CQ10: 64666 | CR10: 64916 | CS10: 65168 | CT10: 65423 | CU10: 65681 | CV10: 65941 | CW10: 66204 | CX10: 66470 | CY10: 66738 | CZ10: 67008 | DB10: 57241 | DC10: 57161 | DD10: 57255 | DE10: 57391 | DF10: 58003 | DG10: 58595 | DH10: 59249 | DI10: 61001 | DJ10: 61173 | DK10: 61029
A11: 10 | B11: Blekinge | C11: 36016842000 | E11: 158876 | F11: 158226 | G11: 159083 | H11: 159900 | I11: 160677 | J11: 161375 | K11: 12.04 | L11: 12.04 | M11: 9.97 | N11: 9.45 | P11: 1423 | R11: 157828 | S11: 157385 | T11: 156897 | U11: 156329 | W11: 159698 | X11: 159748 | Y11: 159227 | Z11: 158999 | AA11: 158876 | AB11: 0 | AC11: 2244 | AF11: -821 | AM11: 12.04 | AN11: 9.97 | AO11: 9.45 | AQ11: 34473909900 | AR11: 9.97 | AS11: 9.45 | BB11: 501 | BP11: 155763 | BQ11: 155195 | BR11: 154627 | BS11: 154042 | BT11: 153435 | BU11: 152813 | BV11: 152183 | BW11: 151546 | BX11: 150905 | BY11: 150263 | BZ11: 149622 | CA11: 148986 | CB11: 148355 | CC11: 147728 | CD11: 147105 | CE11: 146487 | CF11: 145871 | CG11: 145257 | CI11: 162079 | CJ11: 162785 | CK11: 163495 | CL11: 164190 | CM11: 164864 | CN11: 165525 | CO11: 166180 | CP11: 166830 | CQ11: 167477 | CR11: 168126 | CS11: 168778 | CT11: 169438 | CU11: 170105 | CV11: 170780 | CW11: 171462 | CX11: 172152 | CY11: 172847 | CZ11: 173546 | DB11: 152315 | DC11: 152757 | DD11: 154157 | DE11: 156253 | DF11: 158453 | DG11: 159371 | DH11: 159684 | DI11: 158937 | DJ11: 158740 | DK11: 157973
A12: 12 | B12: Skåne | C12: 329132672800 | E12: 1413080 | F12: 1422288 | G12: 1429995 | H12: 1437344 | I12: 1444319 | J12: 1450601 | K12: 11.18 | L12: 11.18 | M12: 9.38 | N12: 8.86 | P12: -422 | R12: 1432954 | S12: 1443274 | T12: 1453235 | U12: 1462508 | W12: 1360112 | X12: 1376659 | Y12: 1388910 | Z12: 1400973 | AA12: 1413080 | AB12: 0 | AC12: -424 | AF12: 2 | AM12: 11.18 | AN12: 9.38 | AO12: 8.86 | AQ12: 311628985500 | AR12: 9.38 | AS12: 8.86 | BB12: 0 | BP12: 1471836 | BQ12: 1481187 | BR12: 1490582 | BS12: 1499843 | BT12: 1508923 | BU12: 1517884 | BV12: 1526795 | BW12: 1535666 | BX12: 1544515 | BY12: 1553377 | BZ12: 1562277 | CA12: 1571246 | CB12: 1580290 | CC12: 1589403 | CD12: 1598589 | CE12: 1607848 | CF12: 1617157 | CG12: 1626511 | CI12: 1456933 | CJ12: 1463280 | CK12: 1469664 | CL12: 1475909 | CM12: 1481971 | CN12: 1487912 | CO12: 1493799 | CP12: 1499644 | CQ12: 1505464 | CR12: 1511295 | CS12: 1517160 | CT12: 1523089 | CU12: 1529089 | CV12: 1535153 | CW12: 1541286 | CX12: 1547487 | CY12: 1553733 | CZ12: 1560020 | DB12: 1263088 | DC12: 1274069 | DD12: 1288908 | DE12: 1303627 | DF12: 1324565 | DG12: 1344689 | DH12: 1362164 | DI12: 1402425 | DJ12: 1414324 | DK12: 1421781
A13: 13 | B13: Halland | C13: 84868520600 | E13: 342658 | F13: 343989 | G13: 345851 | H13: 347628 | I13: 349316 | J13: 350837 | K13: 11.4 | L13: 11.4 | M13: 9.8 | N13: 9.28 | P13: -134 | R13: 346023 | S13: 347966 | T13: 349816 | U13: 351494 | W13: 328853 | X13: 333202 | Y13: 336440 | Z13: 339903 | AA13: 342658 | AB13: 62 | AC13: 470 | AF13: -604 | AM13: 11.4 | AN13: 9.8 | AO13: 9.28 | AQ13: 80133784100 | AR13: 9.8 | AS13: 9.28 | BB13: 0 | BP13: 353179 | BQ13: 354863 | BR13: 356552 | BS13: 358202 | BT13: 359803 | BU13: 361370 | BV13: 362919 | BW13: 364453 | BX13: 365976 | BY13: 367497 | BZ13: 369021 | CA13: 370555 | CB13: 372101 | CC13: 373658 | CD13: 375226 | CE13: 376805 | CF13: 378390 | CG13: 379980 | CI13: 352368 | CJ13: 353903 | CK13: 355447 | CL13: 356957 | CM13: 358423 | CN13: 359860 | CO13: 361284 | CP13: 362698 | CQ13: 364106 | CR13: 365516 | CS13: 366934 | CT13: 368368 | CU13: 369819 | CV13: 371286 | CW13: 372769 | CX13: 374269 | CY13: 375780 | CZ13: 377301 | DB13: 304116 | DC13: 306840 | DD13: 310665 | DE13: 314784 | DF13: 320333 | DG13: 324825 | DH13: 329352 | DI13: 340243 | DJ13: 342805 | DK13: 343746
A14: 14 | B14: Västra Götaland | C14: 438859736500 | E14: 1757225 | F14: 1767641 | G14: 1777217 | H14: 1786344 | I14: 1795017 | J14: 1802829 | K14: 11.48 | L14: 11.48 | M14: 9.67 | N14: 9.15 | P14: -394 | R14: 1779797 | S14: 1791507 | T14: 1802757 | U14: 1813139 | W14: 1707536 | X14: 1724529 | Y14: 1734344 | Z14: 1743304 | AA14: 1757225 | AB14: 0 | AC14: -410 | AF14: 16 | AM14: 11.48 | AN14: 9.67 | AO14: 9.15 | AQ14: 414054642800 | AR14: 9.67 | AS14: 9.15 | BB14: 0 | BP14: 1823576 | BQ14: 1834028 | BR14: 1844521 | BS14: 1854834 | BT14: 1864910 | BU14: 1874827 | BV14: 1884669 | BW14: 1894448 | BX14: 1904187 | BY14: 1913930 | BZ14: 1923706 | CA14: 1933554 | CB14: 1943482 | CC14: 1953482 | CD14: 1963559 | CE14: 1973712 | CF14: 1983913 | CG14: 1994155 | CI14: 1810698 | CJ14: 1818586 | CK14: 1826520 | CL14: 1834282 | CM14: 1841816 | CN14: 1849200 | CO14: 1856517 | CP14: 1863781 | CQ14: 1871015 | CR14: 1878261 | CS14: 1885550 | CT14: 1892919 | CU14: 1900376 | CV14: 1907912 | CW14: 1915534 | CX14: 1923240 | CY14: 1931003 | CZ14: 1938817 | DB14: 1600447 | DC14: 1615084 | DD14: 1632012 | DE14: 1648682 | DF14: 1671783 | DG14: 1690782 | DH14: 1709814 | DI14: 1744859 | DJ14: 1758656 | DK14: 1767016
A15: 17 | B15: Värmland | C15: 62868645800 | E15: 283951 | F15: 283661 | G15: 285199 | H15: 286665 | I15: 288057 | J15: 289308 | K15: 11.68 | L15: 11.68 | M15: 9.11 | N15: 8.59 | P15: 2020 | R15: 283885 | S15: 284025 | T15: 284081 | U15: 283990 | W15: 281305 | X15: 282342 | Y15: 282906 | Z15: 283169 | AA15: 283951 | AB15: 0 | AC15: 2661 | AF15: -641 | AM15: 11.68 | AN15: 9.11 | AO15: 8.59 | AQ15: 59733799800 | AR15: 9.11 | AS15: 8.59 | BB15: 0 | BP15: 283898 | BQ15: 283799 | BR15: 283697 | BS15: 283558 | BT15: 283375 | BU15: 283160 | BV15: 282926 | BW15: 282675 | BX15: 282411 | BY15: 282140 | BZ15: 281867 | CA15: 281597 | CB15: 281332 | CC15: 281070 | CD15: 280812 | CE15: 280558 | CF15: 280303 | CG15: 280047 | CI15: 290571 | CJ15: 291837 | CK15: 293110 | CL15: 294356 | CM15: 295565 | CN15: 296750 | CO15: 297924 | CP15: 299090 | CQ15: 300251 | CR15: 301414 | CS15: 302584 | CT15: 303767 | CU15: 304964 | CV15: 306173 | CW15: 307396 | CX15: 308633 | CY15: 309879 | CZ15: 311133 | DB15: 273080 | DC15: 273815 | DD15: 274691 | DE15: 275904 | DF15: 279334 | DG15: 280399 | DH15: 281482 | DI15: 283196 | DJ15: 283976 | DK15: 283548
A16: 18 | B16: Örebro | C16: 70099103500 | E16: 307656 | F16: 308413 | G16: 310084 | H16: 311676 | I16: 313188 | J16: 314553 | K16: 11.55 | L16: 12.3 | M16: 10.08 | N16: 9.56 | P16: 249 | R16: 309255 | S16: 310008 | T16: 310670 | U16: 311172 | W16: 301890 | X16: 304634 | Y16: 305715 | Z16: 306688 | AA16: 307656 | AB16: 0 | AC16: 932 | AF16: -683 | AM16: 12.3 | AN16: 10.08 | AO16: 9.56 | AQ16: 66569050200 | AR16: 10.08 | AS16: 9.56 | BB16: 0 | BP16: 311674 | BQ16: 312169 | BR16: 312662 | BS16: 313115 | BT16: 313519 | BU16: 313888 | BV16: 314236 | BW16: 314565 | BX16: 314880 | BY16: 315188 | BZ16: 315493 | CA16: 315802 | CB16: 316116 | CC16: 316434 | CD16: 316756 | CE16: 317082 | CF16: 317408 | CG16: 317732 | CI16: 315926 | CJ16: 317302 | CK16: 318686 | CL16: 320040 | CM16: 321354 | CN16: 322642 | CO16: 323919 | CP16: 325186 | CQ16: 326448 | CR16: 327712 | CS16: 328984 | CT16: 330270 | CU16: 331571 | CV16: 332886 | CW16: 334216 | CX16: 335561 | CY16: 336916 | CZ16: 338279 | DB16: 283113 | DC16: 285395 | DD16: 288150 | DE16: 291012 | DF16: 294941 | DG16: 298907 | DH16: 302252 | DI16: 306792 | DJ16: 307772 | DK16: 308116
A17: 19 | B17: Västmanland | C17: 65808779400 | E17: 280584 | F17: 280965 | G17: 282488 | H17: 283939 | I17: 285317 | J17: 286557 | K17: 10.88 | L17: 10.88 | M17: 8.89 | N17: 8.37 | P17: 291 | R17: 282072 | S17: 283099 | T17: 284045 | U17: 284847 | W17: 273495 | X17: 275634 | Y17: 277228 | Z17: 278721 | AA17: 280584 | AB17: 0 | AC17: 979 | AF17: -688 | AM17: 10.88 | AN17: 8.89 | AO17: 8.37 | AQ17: 62344887700 | AR17: 8.89 | AS17: 8.37 | BB17: 0 | BP17: 285651 | BQ17: 286450 | BR17: 287248 | BS17: 288011 | BT17: 288730 | BU17: 289418 | BV17: 290088 | BW17: 290742 | BX17: 291384 | BY17: 292020 | BZ17: 292655 | CA17: 293295 | CB17: 293941 | CC17: 294591 | CD17: 295246 | CE17: 295907 | CF17: 296568 | CG17: 297229 | CI17: 287808 | CJ17: 289062 | CK17: 290323 | CL17: 291557 | CM17: 292754 | CN17: 293928 | CO17: 295091 | CP17: 296246 | CQ17: 297396 | CR17: 298548 | CS17: 299707 | CT17: 300878 | CU17: 302063 | CV17: 303261 | CW17: 304472 | CX17: 305697 | CY17: 306931 | CZ17: 308173 | DB17: 256224 | DC17: 259054 | DD17: 261703 | DE17: 264276 | DF17: 267629 | DG17: 271095 | DH17: 273929 | DI17: 278967 | DJ17: 280713 | DK17: 280813
A18: 20 | B18: Dalarna | C18: 64577554300 | E18: 288343 | F18: 287451 | G18: 289007 | H18: 290492 | I18: 291902 | J18: 293173 | K18: 11.63 | L18: 11.64 | M18: 9.57 | N18: 9.05 | P18: 2497 | R18: 287073 | S18: 286610 | T18: 286063 | U18: 285369 | W18: 287014 | X18: 287795 | Y18: 287681 | Z18: 288164 | AA18: 288343 | AB18: 0 | AC18: 3143 | AF18: -646 | AM18: 11.64 | AN18: 9.57 | AO18: 9.05 | AQ18: 61634176500 | AR18: 9.56 | AS18: 9.04 | BB18: 0 | BP18: 284676 | BQ18: 283978 | BR18: 283279 | BS18: 282545 | BT18: 281768 | BU18: 280961 | BV18: 280138 | BW18: 279300 | BX18: 278451 | BY18: 277598 | BZ18: 276746 | CA18: 275899 | CB18: 275059 | CC18: 274224 | CD18: 273396 | CE18: 272573 | CF18: 271752 | CG18: 270932 | CI18: 294453 | CJ18: 295736 | CK18: 297026 | CL18: 298288 | CM18: 299513 | CN18: 300714 | CO18: 301904 | CP18: 303085 | CQ18: 304261 | CR18: 305439 | CS18: 306624 | CT18: 307822 | CU18: 309035 | CV18: 310261 | CW18: 311500 | CX18: 312753 | CY18: 314015 | CZ18: 315286 | DB18: 276555 | DC18: 277349 | DD18: 278903 | DE18: 281028 | DF18: 284531 | DG18: 286165 | DH18: 287191 | DI18: 288387 | DJ18: 288310 | DK18: 287253
A19: 21 | B19: Gävleborg | C19: 65051375300 | E19: 287431 | F19: 286085 | G19: 287635 | H19: 289113 | I19: 290516 | J19: 291780 | K19: 11.51 | L19: 11.51 | M19: 9.77 | N19: 9.25 | P19: 1759 | R19: 285173 | S19: 284180 | T19: 283106 | U19: 281890 | W19: 286399 | X19: 287333 | Y19: 287631 | Z19: 287873 | AA19: 287431 | AB19: 0 | AC19: 2599 | AF19: -840 | AM19: 11.51 | AN19: 9.77 | AO19: 9.25 | AQ19: 62306894800 | AR19: 9.77 | AS19: 9.25 | BB19: 0 | BP19: 280678 | BQ19: 279465 | BR19: 278254 | BS19: 277013 | BT19: 275734 | BU19: 274429 | BV19: 273112 | BW19: 271785 | BX19: 270451 | BY19: 269117 | BZ19: 267788 | CA19: 266468 | CB19: 265159 | CC19: 263859 | CD19: 262569 | CE19: 261288 | CF19: 260013 | CG19: 258743 | CI19: 293054 | CJ19: 294331 | CK19: 295615 | CL19: 296871 | CM19: 298090 | CN19: 299285 | CO19: 300469 | CP19: 301645 | CQ19: 302816 | CR19: 303989 | CS19: 305169 | CT19: 306362 | CU19: 307569 | CV19: 308789 | CW19: 310023 | CX19: 311270 | CY19: 312526 | CZ19: 313791 | DB19: 276637 | DC19: 277970 | DD19: 279991 | DE19: 281815 | DF19: 284586 | DG19: 285637 | DH19: 286547 | DI19: 287767 | DJ19: 287334 | DK19: 285642
A20: 22 | B20: Västernorrland | C20: 56664236600 | E20: 243334 | F20: 242343 | G20: 243656 | H20: 244908 | I20: 246097 | J20: 247168 | K20: 11.29 | L20: 11.29 | M20: 8.04 | N20: 7.52 | P20: 1791 | R20: 241389 | S20: 240368 | T20: 239280 | U20: 238074 | W20: 245376 | X20: 245380 | Y20: 244663 | Z20: 244223 | AA20: 243334 | AB20: 0 | AC20: 2746 | AF20: -955 | AM20: 11.29 | AN20: 8.04 | AO20: 7.52 | AQ20: 54358079800 | AR20: 8.04 | AS20: 7.52 | BB20: 0 | BP20: 236873 | BQ20: 235673 | BR20: 234476 | BS20: 233255 | BT20: 232004 | BU20: 230733 | BV20: 229454 | BW20: 228168 | BX20: 226878 | BY20: 225590 | BZ20: 224308 | CA20: 223035 | CB20: 221773 | CC20: 220520 | CD20: 219277 | CE20: 218044 | CF20: 216818 | CG20: 215597 | CI20: 248247 | CJ20: 249328 | CK20: 250416 | CL20: 251480 | CM20: 252513 | CN20: 253525 | CO20: 254528 | CP20: 255524 | CQ20: 256516 | CR20: 257509 | CS20: 258508 | CT20: 259518 | CU20: 260540 | CV20: 261573 | CW20: 262618 | CX20: 263675 | CY20: 264739 | CZ20: 265810 | DB20: 241981 | DC20: 242156 | DD20: 243061 | DE20: 243897 | DF20: 245572 | DG20: 245968 | DH20: 245453 | DI20: 244193 | DJ20: 243265 | DK20: 242148
A21: 23 | B21: Jämtland | C21: 29396356800 | E21: 132484 | F21: 132466 | G21: 133184 | H21: 133869 | I21: 134520 | J21: 135103 | K21: 11.7 | L21: 11.7 | M21: 8.91 | N21: 8.39 | P21: 2302 | R21: 132732 | S21: 132960 | T21: 133148 | U21: 133268 | W21: 130046 | X21: 130697 | Y21: 131064 | Z21: 131914 | AA21: 132484 | AB21: 0 | AC21: 3062 | AF21: -760 | AM21: 11.7 | AN21: 8.91 | AO21: 8.39 | AQ21: 27689423900 | AR21: 8.91 | AS21: 8.39 | BB21: 784 | BP21: 133387 | BQ21: 133503 | BR21: 133618 | BS21: 133716 | BT21: 133793 | BU21: 133854 | BV21: 133906 | BW21: 133950 | BX21: 133988 | BY21: 134023 | BZ21: 134057 | CA21: 134092 | CB21: 134129 | CC21: 134168 | CD21: 134208 | CE21: 134250 | CF21: 134292 | CG21: 134333 | CI21: 135693 | CJ21: 136284 | CK21: 136879 | CL21: 137461 | CM21: 138026 | CN21: 138579 | CO21: 139127 | CP21: 139671 | CQ21: 140213 | CR21: 140756 | CS21: 141302 | CT21: 141854 | CU21: 142413 | CV21: 142978 | CW21: 143549 | CX21: 144127 | CY21: 144709 | CZ21: 145295 | DB21: 126201 | DC21: 126461 | DD21: 126765 | DE21: 127376 | DF21: 128673 | DG21: 129806 | DH21: 130280 | DI21: 132054 | DJ21: 132670 | DK21: 132572
A22: 24 | B22: Västerbotten | C22: 65185171000 | E22: 276136 | F22: 278518 | G22: 280028 | H22: 281466 | I22: 282834 | J22: 284063 | K22: 11.35 | L22: 11.35 | M22: 8.53 | N22: 8.01 | P22: 492 | R22: 280510 | S22: 282433 | T22: 284284 | U22: 286000 | W22: 269954 | X22: 271621 | Y22: 273220 | Z22: 274533 | AA22: 276136 | AB22: 0 | AC22: 1476 | AF22: -984 | AM22: 11.35 | AN22: 8.53 | AO22: 8.01 | AQ22: 61388192800 | AR22: 8.53 | AS22: 8.01 | BB22: 242 | BP22: 287725 | BQ22: 289453 | BR22: 291189 | BS22: 292897 | BT22: 294569 | BU22: 296216 | BV22: 297852 | BW22: 299479 | BX22: 301101 | BY22: 302724 | BZ22: 304354 | CA22: 305996 | CB22: 307651 | CC22: 309319 | CD22: 311000 | CE22: 312694 | CF22: 314396 | CG22: 316106 | CI22: 285303 | CJ22: 286546 | CK22: 287796 | CL22: 289019 | CM22: 290206 | CN22: 291369 | CO22: 292522 | CP22: 293667 | CQ22: 294807 | CR22: 295949 | CS22: 297097 | CT22: 298258 | CU22: 299433 | CV22: 300620 | CW22: 301821 | CX22: 303035 | CY22: 304258 | CZ22: 305489 | DB22: 260217 | DC22: 261112 | DD22: 262362 | DE22: 263378 | DF22: 265881 | DG22: 268465 | DH22: 270154 | DI22: 274563 | DJ22: 276295 | DK22: 278729
A23: 25 | B23: Norrbotten | C23: 62287975500 | E23: 249285 | F23: 248653 | G23: 249998 | H23: 251282 | I23: 252502 | J23: 253603 | K23: 11.34 | L23: 11.34 | M23: 8.63 | N23: 8.11 | P23: 3059 | R23: 248086 | S23: 247447 | T23: 246736 | U23: 245900 | W23: 250424 | X23: 250230 | Y23: 249649 | Z23: 249752 | AA23: 249285 | AB23: 0 | AC23: 3920 | AF23: -861 | AM23: 11.34 | AN23: 8.63 | AO23: 8.11 | AQ23: 59165957800 | AR23: 8.63 | AS23: 8.11 | BB23: 652 | BP23: 245066 | BQ23: 244229 | BR23: 243392 | BS23: 242527 | BT23: 241627 | BU23: 240702 | BV23: 239765 | BW23: 238817 | BX23: 237861 | BY23: 236904 | BZ23: 235948 | CA23: 234999 | CB23: 234057 | CC23: 233121 | CD23: 232192 | CE23: 231270 | CF23: 230351 | CG23: 229434 | CI23: 254710 | CJ23: 255820 | CK23: 256936 | CL23: 258028 | CM23: 259088 | CN23: 260127 | CO23: 261156 | CP23: 262178 | CQ23: 263196 | CR23: 264215 | CS23: 265240 | CT23: 266277 | CU23: 267326 | CV23: 268386 | CW23: 269458 | CX23: 270542 | CY23: 271634 | CZ23: 272733 | DB23: 248637 | DC23: 249436 | DD23: 249987 | DE23: 249733 | DF23: 250570 | DG23: 251295 | DH23: 250497 | DI23: 249693 | DJ23: 249177 | DK23: 248480

Sheet Blad 1 Totala intäkter (hidden)
A1: Totala intäkter | B1: ='Blad 2 Indata'!A2 -> 
A2: =TODAY() -> 2024-02-23
A3: Rikets skatteunderlag | B3: Eget skatteunderlag | D3: Antal invånare | F3: Skattesats | H3: Statsbidrag
A4: =IF('Blad 2 Indata'!$M$3=1,"SKR","Egen prognos") -> SKR | B4: =IF('Blad 2 Indata'!$O$3=1,"Riksprognos","Egen prognos") -> Egen prognos | D4: =IF('Blad 2 Indata'!$O$4=1,"Riksprognos","Egen prognos") -> Riksprognos
A7: =IF(AND('Blad 2 Indata'!U3=2,SUM('Blad 2 Indata'!D62:F62)<>0),"Förändrad skattesats, %"," ") ->  | C7: =IF(AND('Blad 2 Indata'!$U$3=2,'Blad 2 Indata'!D62<>0),'Blad 2 Indata'!D62," ") ->  | D7: =IF(AND('Blad 2 Indata'!$U$3=2,'Blad 2 Indata'!E62<>0),'Blad 2 Indata'!E62," ") ->  | E7: =IF(AND('Blad 2 Indata'!$U$3=2,'Blad 2 Indata'!F62<>0),'Blad 2 Indata'!F62," ") ->  | F7: =IF(AND('Blad 2 Indata'!$U$3=2,'Blad 2 Indata'!G62<>0),'Blad 2 Indata'!G62," ") ->  | G7: =IF(AND('Blad 2 Indata'!$U$3=2,'Blad 2 Indata'!H62<>0),'Blad 2 Indata'!H62," ") ->  | H7: =IF(AND('Blad 2 Indata'!$U$3=2,'Blad 2 Indata'!I62<>0),'Blad 2 Indata'!I62," ") ->  | I7: =IF(AND('Blad 2 Indata'!$U$3=2,'Blad 2 Indata'!J62<>0),'Blad 2 Indata'!J62," ") -> 
B9: 2024 | C9: =B9+1 -> 2025 | D9: 2026 | E9: 2027 | F9: 2028 | G9: 2029 | H9: 2030 | I9: 2031 | K9: =B9 -> 2024 | L9: =K9+1 -> 2025 | M9: 2026 | N9: 2027 | O9: 2028 | P9: 2029 | Q9: 2030 | R9: 2031
B10: tkr | C10: tkr | D10: tkr | E10: tkr | F10: tkr | G10: tkr | H10: tkr | I10: tkr | K10: kr/inv | L10: kr/inv | M10: kr/inv | N10: kr/inv | O10: kr/inv | P10: kr/inv | Q10: kr/inv | R10: kr/inv
A12: Skatteintäkter | B12: =ROUND('Blad 3 Inkomstutjämning'!C24*1000*'Blad 2 Indata'!C63/100,0)/1000 -> 0 | C12: =ROUND('Blad 3 Inkomstutjämning'!D24*1000*'Blad 2 Indata'!D63/100,0)/1000 -> 0 | D12: =ROUND('Blad 3 Inkomstutjämning'!E24*1000*'Blad 2 Indata'!E63/100,0)/1000 -> 0 | E12: =ROUND('Blad 3 Inkomstutjämning'!F24*1000*'Blad 2 Indata'!F63/100,0)/1000 -> 0 | F12: =ROUND('Blad 3 Inkomstutjämning'!G24*1000*'Blad 2 Indata'!G63/100,0)/1000 -> 0 | G12: =ROUND('Blad 3 Inkomstutjämning'!H24*1000*'Blad 2 Indata'!H63/100,0)/1000 -> 0 | H12: =ROUND('Blad 3 Inkomstutjämning'!I24*1000*'Blad 2 Indata'!I63/100,0)/1000 -> 0 | I12: =ROUND('Blad 3 Inkomstutjämning'!J24*1000*'Blad 2 Indata'!J63/100,0)/1000 -> 0 | K12: =IF(ISERROR(B12*1000/'Blad 2 Indata'!C32),0,(B12*1000/'Blad 2 Indata'!C32)) -> 0 | L12: =IF(ISERROR(C12/IF('Blad 2 Indata'!$O$4=1,'Blad 2 Indata'!D32/1000,'Blad 2 Indata'!D33/1000)),0,(C12/IF('Blad 2 Indata'!$O$4=1,'Blad 2 Indata'!D32/1000,'Blad 2 Indata'!D33/1000))) -> 0 | M12: =IF(ISERROR(D12/IF('Blad 2 Indata'!$O$4=1,'Blad 2 Indata'!E32/1000,'Blad 2 Indata'!E33/1000)),0,(D12/IF('Blad 2 Indata'!$O$4=1,'Blad 2 Indata'!E32/1000,'Blad 2 Indata'!E33/1000))) -> 0 | N12: =IF(ISERROR(E12/IF('Blad 2 Indata'!$O$4=1,'Blad 2 Indata'!F32/1000,'Blad 2 Indata'!F33/1000)),0,(E12/IF('Blad 2 Indata'!$O$4=1,'Blad 2 Indata'!F32/1000,'Blad 2 Indata'!F33/1000))) -> 0 | O12: =IF(ISERROR(F12/IF('Blad 2 Indata'!$O$4=1,'Blad 2 Indata'!G32/1000,'Blad 2 Indata'!G33/1000)),0,(F12/IF('Blad 2 Indata'!$O$4=1,'Blad 2 Indata'!G32/1000,'Blad 2 Indata'!G33/1000))) -> 0 | P12: =IF(ISERROR(G12/IF('Blad 2 Indata'!$O$4=1,'Blad 2 Indata'!H32/1000,'Blad 2 Indata'!H33/1000)),0,(G12/IF('Blad 2 Indata'!$O$4=1,'Blad 2 Indata'!H32/1000,'Blad 2 Indata'!H33/1000))) -> 0 | Q12: =IF(ISERROR(H12/IF('Blad 2 Indata'!$O$4=1,'Blad 2 Indata'!I32/1000,'Blad 2 Indata'!I33/1000)),0,(H12/IF('Blad 2 Indata'!$O$4=1,'Blad 2 Indata'!I32/1000,'Blad 2 Indata'!I33/1000))) -> 0 | R12: =IF(ISERROR(I12/IF('Blad 2 Indata'!$O$4=1,'Blad 2 Indata'!J32/1000,'Blad 2 Indata'!J33/1000)),0,(I12/IF('Blad 2 Indata'!$O$4=1,'Blad 2 Indata'!J32/1000,'Blad 2 Indata'!J33/1000))) -> 0
A14: Inkomstutjämning | B14: ='Blad 3 Inkomstutjämning'!C41+'Blad 3 Inkomstutjämning'!C45 -> 0 | C14: ='Blad 3 Inkomstutjämning'!D41+'Blad 3 Inkomstutjämning'!D45 -> 0 | D14: ='Blad 3 Inkomstutjämning'!E41+'Blad 3 Inkomstutjämning'!E45 -> 0 | E14: ='Blad 3 Inkomstutjämning'!F41+'Blad 3 Inkomstutjämning'!F45 -> 0 | F14: ='Blad 3 Inkomstutjämning'!G41+'Blad 3 Inkomstutjämning'!G45 -> 0 | G14: ='Blad 3 Inkomstutjämning'!H41+'Blad 3 Inkomstutjämning'!H45 -> 0 | H14: ='Blad 3 Inkomstutjämning'!I41+'Blad 3 Inkomstutjämning'!I45 -> 0 | I14: ='Blad 3 Inkomstutjämning'!J41+'Blad 3 Inkomstutjämning'!J45 -> 0 | K14: ='Blad 3 Inkomstutjämning'!C40+'Blad 3 Inkomstutjämning'!C44 -> 0 | L14: ='Blad 3 Inkomstutjämning'!D40+'Blad 3 Inkomstutjämning'!D44 -> 0 | M14: ='Blad 3 Inkomstutjämning'!E40+'Blad 3 Inkomstutjämning'!E44 -> 0 | N14: ='Blad 3 Inkomstutjämning'!F40+'Blad 3 Inkomstutjämning'!F44 -> 0 | O14: ='Blad 3 Inkomstutjämning'!G40+'Blad 3 Inkomstutjämning'!G44 -> 0 | P14: ='Blad 3 Inkomstutjämning'!H40+'Blad 3 Inkomstutjämning'!H44 -> 0 | Q14: ='Blad 3 Inkomstutjämning'!I40+'Blad 3 Inkomstutjämning'!I44 -> 0 | R14: ='Blad 3 Inkomstutjämning'!J40+'Blad 3 Inkomstutjämning'!J44 -> 0
A16: Kostnadsutjämning | B16: =K16*'Blad 2 Indata'!C32/1000 -> 0 | C16: =L16*IF('Blad 2 Indata'!$O$4=1,'Blad 2 Indata'!D32/1000,'Blad 2 Indata'!D33/1000) -> 0 | D16: =M16*IF('Blad 2 Indata'!$O$4=1,'Blad 2 Indata'!E32/1000,'Blad 2 Indata'!E33/1000) -> 0 | E16: =N16*IF('Blad 2 Indata'!$O$4=1,'Blad 2 Indata'!F32/1000,'Blad 2 Indata'!F33/1000) -> 0 | F16: =O16*IF('Blad 2 Indata'!$O$4=1,'Blad 2 Indata'!G32/1000,'Blad 2 Indata'!G33/1000) -> 0 | G16: =P16*IF('Blad 2 Indata'!$O$4=1,'Blad 2 Indata'!H32/1000,'Blad 2 Indata'!H33/1000) -> 0 | H16: =Q16*IF('Blad 2 Indata'!$O$4=1,'Blad 2 Indata'!I32/1000,'Blad 2 Indata'!I33/1000) -> 0 | I16: =R16*IF('Blad 2 Indata'!$O$4=1,'Blad 2 Indata'!J32/1000,'Blad 2 Indata'!J33/1000) -> 0 | K16: ='Blad 4 Kostnadsutjämning'!B6 -> -82 | L16: =IF(ISERROR('Blad 4 Kostnadsutjämning'!C6),0,('Blad 4 Kostnadsutjämning'!C6)) -> -77.83891891 | M16: =IF(ISERROR('Blad 4 Kostnadsutjämning'!D6),0,('Blad 4 Kostnadsutjämning'!D6)) -> -76.21534111 | N16: =IF(ISERROR('Blad 4 Kostnadsutjämning'!E6),0,('Blad 4 Kostnadsutjämning'!E6)) -> -74.96975758 | O16: =IF(ISERROR('Blad 4 Kostnadsutjämning'!F6),0,('Blad 4 Kostnadsutjämning'!F6)) -> -77.13618943 | P16: =IF(ISERROR('Blad 4 Kostnadsutjämning'!G6),0,('Blad 4 Kostnadsutjämning'!G6)) -> -71.00587433 | Q16: =IF(ISERROR('Blad 4 Kostnadsutjämning'!H6),0,('Blad 4 Kostnadsutjämning'!H6)) -> -65.11939806 | R16: =IF(ISERROR('Blad 4 Kostnadsutjämning'!I6),0,('Blad 4 Kostnadsutjämning'!I6)) -> -59.55165775
A18: Regleringspost | B18: =K18*'Blad 2 Indata'!C32/1000 -> 0 | C18: =L18*IF('Blad 2 Indata'!$O$4=1,'Blad 2 Indata'!D32/1000,'Blad 2 Indata'!D33/1000) -> 0 | D18: =M18*IF('Blad 2 Indata'!$O$4=1,'Blad 2 Indata'!E32/1000,'Blad 2 Indata'!E33/1000) -> 0 | E18: =N18*IF('Blad 2 Indata'!$O$4=1,'Blad 2 Indata'!F32/1000,'Blad 2 Indata'!F33/1000) -> 0 | F18: =O18*IF('Blad 2 Indata'!$O$4=1,'Blad 2 Indata'!G32/1000,'Blad 2 Indata'!G33/1000) -> 0 | G18: =P18*IF('Blad 2 Indata'!$O$4=1,'Blad 2 Indata'!H32/1000,'Blad 2 Indata'!H33/1000) -> 0 | H18: =Q18*IF('Blad 2 Indata'!$O$4=1,'Blad 2 Indata'!I32/1000,'Blad 2 Indata'!I33/1000) -> 0 | I18: =R18*IF('Blad 2 Indata'!$O$4=1,'Blad 2 Indata'!J32/1000,'Blad 2 Indata'!J33/1000) -> 0 | K18: ='Blad 2 Indata'!C52 -> 729.5538913 | L18: ='Blad 2 Indata'!D52 -> 367.1952618 | M18: ='Blad 2 Indata'!E52 -> 216.5116075 | N18: =IF('Blad 2 Indata'!$V$3=1,'Blad 2 Indata'!F52,'Blad 2 Indata'!F53) -> 55.39282899 | O18: =IF('Blad 2 Indata'!$V$3=1,'Blad 2 Indata'!G52,'Blad 2 Indata'!G53) -> -119.5675624 | P18: =IF('Blad 2 Indata'!$V$3=1,'Blad 2 Indata'!H52,'Blad 2 Indata'!H53) -> -299.6940292 | Q18: =IF('Blad 2 Indata'!$V$3=1,'Blad 2 Indata'!I52,'Blad 2 Indata'!I53) -> -481.1912777 | R18: =IF('Blad 2 Indata'!$V$3=1,'Blad 2 Indata'!J52,'Blad 2 Indata'!J53) -> -653.2624509
A20: Strukturbidrag | B20: =K20*'Blad 2 Indata'!C32/1000 -> 0 | C20: =L20*IF('Blad 2 Indata'!$O$4=1,'Blad 2 Indata'!D32/1000,'Blad 2 Indata'!D33/1000) -> 0 | D20: =M20*IF('Blad 2 Indata'!$O$4=1,'Blad 2 Indata'!E32/1000,'Blad 2 Indata'!E33/1000) -> 0 | E20: =N20*IF('Blad 2 Indata'!$O$4=1,'Blad 2 Indata'!F32/1000,'Blad 2 Indata'!F33/1000) -> 0 | F20: =O20*IF('Blad 2 Indata'!$O$4=1,'Blad 2 Indata'!G32/1000,'Blad 2 Indata'!G33/1000) -> 0 | G20: =P20*IF('Blad 2 Indata'!$O$4=1,'Blad 2 Indata'!H32/1000,'Blad 2 Indata'!H33/1000) -> 0 | H20: =Q20*IF('Blad 2 Indata'!$O$4=1,'Blad 2 Indata'!I32/1000,'Blad 2 Indata'!I33/1000) -> 0 | I20: =R20*IF('Blad 2 Indata'!$O$4=1,'Blad 2 Indata'!J32/1000,'Blad 2 Indata'!J33/1000) -> 0 | K20: ='Blad 5 Strukturbidrag'!E7 -> 0 | L20: ='Blad 5 Strukturbidrag'!F7 -> 0 | M20: ='Blad 5 Strukturbidrag'!G7 -> 0 | N20: ='Blad 5 Strukturbidrag'!H7 -> 0 | O20: ='Blad 5 Strukturbidrag'!I7 -> 0 | P20: ='Blad 5 Strukturbidrag'!J7 -> 0 | Q20: ='Blad 5 Strukturbidrag'!K7 -> 0 | R20: ='Blad 5 Strukturbidrag'!L7 -> 0 | S20: =#REF! ->  | T20: =S20 ->  | BR20: =BQ20 ->  | ED20: =EC20 ->  | GP20: =GO20 -> 
A22: Införandebidrag | B22: =K22*'Blad 2 Indata'!C32/1000 -> 0 | C22: =L22*IF('Blad 2 Indata'!$O$4=1,'Blad 2 Indata'!D32/1000,'Blad 2 Indata'!D33/1000) -> 0 | D22: =M22*IF('Blad 2 Indata'!$O$4=1,'Blad 2 Indata'!E32/1000,'Blad 2 Indata'!E33/1000) -> 0 | E22: =N22*IF('Blad 2 Indata'!$O$4=1,'Blad 2 Indata'!F32/1000,'Blad 2 Indata'!F33/1000) -> 0 | F22: =O22*IF('Blad 2 Indata'!$O$4=1,'Blad 2 Indata'!G32/1000,'Blad 2 Indata'!G33/1000) -> 0 | G22: =P22*IF('Blad 2 Indata'!$O$4=1,'Blad 2 Indata'!H32/1000,'Blad 2 Indata'!H33/1000) -> 0 | H22: =Q22*IF('Blad 2 Indata'!$O$4=1,'Blad 2 Indata'!I32/1000,'Blad 2 Indata'!I33/1000) -> 0 | I22: =R22*IF('Blad 2 Indata'!$O$4=1,'Blad 2 Indata'!J32/1000,'Blad 2 Indata'!J33/1000) -> 0 | K22: ='Blad 5 Strukturbidrag'!E13 -> 0 | L22: ='Blad 5 Strukturbidrag'!F13 -> 0 | M22: ='Blad 5 Strukturbidrag'!G13 -> 0 | N22: ='Blad 5 Strukturbidrag'!H13 -> 0 | O22: ='Blad 5 Strukturbidrag'!I13 -> 0 | P22: ='Blad 5 Strukturbidrag'!J13 -> 0 | Q22: ='Blad 5 Strukturbidrag'!K13 -> 0 | R22: ='Blad 5 Strukturbidrag'!L13 -> 0 | S22: ='Blad 5 Strukturbidrag'!#REF! ->  | T22: ='Blad 5 Strukturbidrag'!#REF! ->  | U22: ='Blad 5 Strukturbidrag'!#REF! ->  | V22: ='Blad 5 Strukturbidrag'!#REF! ->  | W22: ='Blad 5 Strukturbidrag'!#REF! ->  | X22: ='Blad 5 Strukturbidrag'!#REF! ->  | Y22: ='Blad 5 Strukturbidrag'!#REF! ->  | Z22: ='Blad 5 Strukturbidrag'!#REF! ->  | AA22: ='Blad 5 Strukturbidrag'!#REF! ->  | AB22: ='Blad 5 Strukturbidrag'!#REF! ->  | AC22: ='Blad 5 Strukturbidrag'!#REF! ->  | AD22: ='Blad 5 Strukturbidrag'!#REF! ->  | AE22: ='Blad 5 Strukturbidrag'!#REF! ->  | AF22: ='Blad 5 Strukturbidrag'!#REF! ->  | AG22: ='Blad 5 Strukturbidrag'!#REF! ->  | AH22: ='Blad 5 Strukturbidrag'!#REF! ->  | AI22: ='Blad 5 Strukturbidrag'!#REF! ->  | AJ22: ='Blad 5 Strukturbidrag'!#REF! ->  | AK22: ='Blad 5 Strukturbidrag'!#REF! ->  | AL22: ='Blad 5 Strukturbidrag'!#REF! ->  | AM22: ='Blad 5 Strukturbidrag'!#REF! ->  | AN22: ='Blad 5 Strukturbidrag'!#REF! ->  | AO22: ='Blad 5 Strukturbidrag'!#REF! ->  | AP22: ='Blad 5 Strukturbidrag'!#REF! ->  | AQ22: ='Blad 5 Strukturbidrag'!#REF! ->  | AR22: ='Blad 5 Strukturbidrag'!#REF! ->  | AS22: ='Blad 5 Strukturbidrag'!#REF! ->  | AT22: ='Blad 5 Strukturbidrag'!#REF! ->  | AU22: ='Blad 5 Strukturbidrag'!#REF! ->  | AV22: ='Blad 5 Strukturbidrag'!#REF! ->  | AW22: ='Blad 5 Strukturbidrag'!#REF! ->  | AX22: ='Blad 5 Strukturbidrag'!#REF! ->  | AY22: ='Blad 5 Strukturbidrag'!#REF! ->  | AZ22: ='Blad 5 Strukturbidrag'!#REF! ->  | BA22: ='Blad 5 Strukturbidrag'!#REF! ->  | BB22: ='Blad 5 Strukturbidrag'!#REF! ->  | BC22: ='Blad 5 Strukturbidrag'!#REF! ->  | BD22: ='Blad 5 Strukturbidrag'!#REF! ->  | BE22: ='Blad 5 Strukturbidrag'!#REF! ->  | BF22: ='Blad 5 Strukturbidrag'!#REF! ->  | BG22: ='Blad 5 Strukturbidrag'!#REF! ->  | BH22: ='Blad 5 Strukturbidrag'!#REF! ->  | BI22: ='Blad 5 Strukturbidrag'!#REF! ->  | BJ22: ='Blad 5 Strukturbidrag'!#REF! ->  | BK22: ='Blad 5 Strukturbidrag'!#REF! ->  | BL22: ='Blad 5 Strukturbidrag'!#REF! ->  | BM22: ='Blad 5 Strukturbidrag'!#REF! ->  | BN22: ='Blad 5 Strukturbidrag'!#REF! ->  | BO22: ='Blad 5 Strukturbidrag'!#REF! ->  | BP22: ='Blad 5 Strukturbidrag'!#REF! ->  | BQ22: ='Blad 5 Strukturbidrag'!#REF! ->  | BR22: ='Blad 5 Strukturbidrag'!#REF! ->  | BS22: ='Blad 5 Strukturbidrag'!#REF! ->  | BT22: ='Blad 5 Strukturbidrag'!#REF! ->  | BU22: ='Blad 5 Strukturbidrag'!#REF! ->  | BV22: ='Blad 5 Strukturbidrag'!#REF! ->  | BW22: ='Blad 5 Strukturbidrag'!#REF! ->  | BX22: ='Blad 5 Strukturbidrag'!#REF! ->  | BY22: ='Blad 5 Strukturbidrag'!#REF! ->  | BZ22: ='Blad 5 Strukturbidrag'!#REF! ->  | CA22: ='Blad 5 Strukturbidrag'!#REF! ->  | CB22: ='Blad 5 Strukturbidrag'!#REF! ->  | CC22: ='Blad 5 Strukturbidrag'!#REF! ->  | CD22: ='Blad 5 Strukturbidrag'!#REF! ->  | CE22: ='Blad 5 Strukturbidrag'!#REF! ->  | CF22: ='Blad 5 Strukturbidrag'!#REF! ->  | CG22: ='Blad 5 Strukturbidrag'!#REF! ->  | CH22: ='Blad 5 Strukturbidrag'!#REF! ->  | CI22: ='Blad 5 Strukturbidrag'!#REF! ->  | CJ22: ='Blad 5 Strukturbidrag'!#REF! ->  | CK22: ='Blad 5 Strukturbidrag'!#REF! ->  | CL22: ='Blad 5 Strukturbidrag'!#REF! ->  | CM22: ='Blad 5 Strukturbidrag'!#REF! ->  | CN22: ='Blad 5 Strukturbidrag'!#REF! ->  | CO22: ='Blad 5 Strukturbidrag'!#REF! ->  | CP22: ='Blad 5 Strukturbidrag'!#REF! ->  | CQ22: ='Blad 5 Strukturbidrag'!#REF! ->  | CR22: ='Blad 5 Strukturbidrag'!#REF! ->  | CS22: ='Blad 5 Strukturbidrag'!#REF! ->  | CT22: ='Blad 5 Strukturbidrag'!#REF! ->  | CU22: ='Blad 5 Strukturbidrag'!#REF! ->  | CV22: ='Blad 5 Strukturbidrag'!#REF! ->  | CW22: ='Blad 5 Strukturbidrag'!#REF! ->  | CX22: ='Blad 5 Strukturbidrag'!#REF! ->  | CY22: ='Blad 5 Strukturbidrag'!#REF! ->  | CZ22: ='Blad 5 Strukturbidrag'!#REF! ->  | DA22: ='Blad 5 Strukturbidrag'!#REF! ->  | DB22: ='Blad 5 Strukturbidrag'!#REF! ->  | DC22: ='Blad 5 Strukturbidrag'!#REF! ->  | DD22: ='Blad 5 Strukturbidrag'!#REF! ->  | DE22: ='Blad 5 Strukturbidrag'!#REF! ->  | DF22: ='Blad 5 Strukturbidrag'!#REF! ->  | DG22: ='Blad 5 Strukturbidrag'!#REF! ->  | DH22: ='Blad 5 Strukturbidrag'!#REF! ->  | DI22: ='Blad 5 Strukturbidrag'!#REF! ->  | DJ22: ='Blad 5 Strukturbidrag'!#REF! ->  | DK22: ='Blad 5 Strukturbidrag'!#REF! ->  | DL22: ='Blad 5 Strukturbidrag'!#REF! ->  | DM22: ='Blad 5 Strukturbidrag'!#REF! ->  | DN22: ='Blad 5 Strukturbidrag'!#REF! ->  | DO22: ='Blad 5 Strukturbidrag'!#REF! ->  | DP22: ='Blad 5 Strukturbidrag'!#REF! ->  | DQ22: ='Blad 5 Strukturbidrag'!#REF! ->  | DR22: ='Blad 5 Strukturbidrag'!#REF! ->  | DS22: ='Blad 5 Strukturbidrag'!#REF! ->  | DT22: ='Blad 5 Strukturbidrag'!#REF! ->  | DU22: ='Blad 5 Strukturbidrag'!#REF! ->  | DV22: ='Blad 5 Strukturbidrag'!#REF! ->  | DW22: ='Blad 5 Strukturbidrag'!#REF! ->  | DX22: ='Blad 5 Strukturbidrag'!#REF! ->  | DY22: ='Blad 5 Strukturbidrag'!#REF! ->  | DZ22: ='Blad 5 Strukturbidrag'!#REF! ->  | EA22: ='Blad 5 Strukturbidrag'!#REF! ->  | EB22: ='Blad 5 Strukturbidrag'!#REF! ->  | EC22: ='Blad 5 Strukturbidrag'!#REF! ->  | ED22: ='Blad 5 Strukturbidrag'!#REF! ->  | EE22: ='Blad 5 Strukturbidrag'!#REF! ->  | EF22: ='Blad 5 Strukturbidrag'!#REF! ->  | EG22: ='Blad 5 Strukturbidrag'!#REF! ->  | EH22: ='Blad 5 Strukturbidrag'!#REF! ->  | EI22: ='Blad 5 Strukturbidrag'!#REF! ->  | EJ22: ='Blad 5 Strukturbidrag'!#REF! ->  | EK22: ='Blad 5 Strukturbidrag'!#REF! ->  | EL22: ='Blad 5 Strukturbidrag'!#REF! ->  | EM22: ='Blad 5 Strukturbidrag'!#REF! ->  | EN22: ='Blad 5 Strukturbidrag'!#REF! ->  | EO22: ='Blad 5 Strukturbidrag'!#REF! ->  | EP22: ='Blad 5 Strukturbidrag'!#REF! ->  | EQ22: ='Blad 5 Strukturbidrag'!#REF! ->  | ER22: ='Blad 5 Strukturbidrag'!#REF! ->  | ES22: ='Blad 5 Strukturbidrag'!#REF! ->  | ET22: ='Blad 5 Strukturbidrag'!#REF! ->  | EU22: ='Blad 5 Strukturbidrag'!#REF! ->  | EV22: ='Blad 5 Strukturbidrag'!#REF! ->  | EW22: ='Blad 5 Strukturbidrag'!#REF! ->  | EX22: ='Blad 5 Strukturbidrag'!#REF! ->  | EY22: ='Blad 5 Strukturbidrag'!#REF! ->  | EZ22: ='Blad 5 Strukturbidrag'!#REF! ->  | FA22: ='Blad 5 Strukturbidrag'!#REF! ->  | FB22: ='Blad 5 Strukturbidrag'!#REF! ->  | FC22: ='Blad 5 Strukturbidrag'!#REF! ->  | FD22: ='Blad 5 Strukturbidrag'!#REF! ->  | FE22: ='Blad 5 Strukturbidrag'!#REF! ->  | FF22: ='Blad 5 Strukturbidrag'!#REF! ->  | FG22: ='Blad 5 Strukturbidrag'!#REF! ->  | FH22: ='Blad 5 Strukturbidrag'!#REF! ->  | FI22: ='Blad 5 Strukturbidrag'!#REF! ->  | FJ22: ='Blad 5 Strukturbidrag'!#REF! ->  | FK22: ='Blad 5 Strukturbidrag'!#REF! ->  | FL22: ='Blad 5 Strukturbidrag'!#REF! ->  | FM22: ='Blad 5 Strukturbidrag'!#REF! ->  | FN22: ='Blad 5 Strukturbidrag'!#REF! ->  | FO22: ='Blad 5 Strukturbidrag'!#REF! ->  | FP22: ='Blad 5 Strukturbidrag'!#REF! ->  | FQ22: ='Blad 5 Strukturbidrag'!#REF! ->  | FR22: ='Blad 5 Strukturbidrag'!#REF! ->  | FS22: ='Blad 5 Strukturbidrag'!#REF! ->  | FT22: ='Blad 5 Strukturbidrag'!#REF! ->  | FU22: ='Blad 5 Strukturbidrag'!#REF! ->  | FV22: ='Blad 5 Strukturbidrag'!#REF! ->  | FW22: ='Blad 5 Strukturbidrag'!#REF! ->  | FX22: ='Blad 5 Strukturbidrag'!#REF! ->  | FY22: ='Blad 5 Strukturbidrag'!#REF! ->  | FZ22: ='Blad 5 Strukturbidrag'!#REF! ->  | GA22: ='Blad 5 Strukturbidrag'!#REF! ->  | GB22: ='Blad 5 Strukturbidrag'!#REF! ->  | GC22: ='Blad 5 Strukturbidrag'!#REF! ->  | GD22: ='Blad 5 Strukturbidrag'!#REF! ->  | GE22: ='Blad 5 Strukturbidrag'!#REF! ->  | GF22: ='Blad 5 Strukturbidrag'!#REF! ->  | GG22: ='Blad 5 Strukturbidrag'!#REF! ->  | GH22: ='Blad 5 Strukturbidrag'!#REF! ->  | GI22: ='Blad 5 Strukturbidrag'!#REF! ->  | GJ22: ='Blad 5 Strukturbidrag'!#REF! ->  | GK22: ='Blad 5 Strukturbidrag'!#REF! ->  | GL22: ='Blad 5 Strukturbidrag'!#REF! ->  | GM22: ='Blad 5 Strukturbidrag'!#REF! ->  | GN22: ='Blad 5 Strukturbidrag'!#REF! ->  | GO22: ='Blad 5 Strukturbidrag'!#REF! ->  | GP22: ='Blad 5 Strukturbidrag'!#REF! ->  | GQ22: ='Blad 5 Strukturbidrag'!#REF! ->  | GR22: ='Blad 5 Strukturbidrag'!#REF! ->  | GS22: ='Blad 5 Strukturbidrag'!#REF! ->  | GT22: ='Blad 5 Strukturbidrag'!#REF! ->  | GU22: ='Blad 5 Strukturbidrag'!#REF! ->  | GV22: ='Blad 5 Strukturbidrag'!#REF! ->  | GW22: ='Blad 5 Strukturbidrag'!#REF! ->  | GX22: ='Blad 5 Strukturbidrag'!#REF! ->  | GY22: ='Blad 5 Strukturbidrag'!#REF! ->  | GZ22: ='Blad 5 Strukturbidrag'!#REF! ->  | HA22: ='Blad 5 Strukturbidrag'!#REF! ->  | HB22: ='Blad 5 Strukturbidrag'!#REF! ->  | HC22: ='Blad 5 Strukturbidrag'!#REF! ->  | HD22: ='Blad 5 Strukturbidrag'!#REF! ->  | HE22: ='Blad 5 Strukturbidrag'!#REF! ->  | HF22: ='Blad 5 Strukturbidrag'!#REF! ->  | HG22: ='Blad 5 Strukturbidrag'!#REF! ->  | HH22: ='Blad 5 Strukturbidrag'!#REF! ->  | HI22: ='Blad 5 Strukturbidrag'!#REF! ->  | HJ22: ='Blad 5 Strukturbidrag'!#REF! ->  | HK22: ='Blad 5 Strukturbidrag'!#REF! ->  | HL22: ='Blad 5 Strukturbidrag'!#REF! ->  | HM22: ='Blad 5 Strukturbidrag'!#REF! ->  | HN22: ='Blad 5 Strukturbidrag'!#REF! ->  | HO22: ='Blad 5 Strukturbidrag'!#REF! -> 
A24: Summa intäkter | B24: =SUM(B12,B14,B16,B18,B20,B22) -> 0 | C24: =SUM(C12,C14,C16,C18,C20,C22) -> 0 | D24: 0 | E24: 0 | F24: 0 | G24: 0 | H24: 0 | I24: 0 | K24: =SUM(K12,K14,K16,K18,K20,K22) -> 647.5538913 | L24: 289.3563429 | M24: 140.2962664 | N24: -19.57692859 | O24: -196.7037518 | P24: -370.6999035 | Q24: -546.3106757 | R24: -712.8141087 | S24: =SUM(S12,S14,S16,S20,S18,S20,S22) ->  | BG24: =SUM(BG12,BG14,BG16,BG20,BG18,BG20,BG22) ->  | DS24: =SUM(DS12,DS14,DS16,DS20,DS18,DS20,DS22) ->  | GE24: =SUM(GE12,GE14,GE16,GE20,GE18,GE20,GE22) -> 
A26: ="Slutavräkning "&B9-1&" korrigering" -> Slutavräkning 2023 korrigering | B26: =(K26*'Blad 2 Indata'!B32)/1000 -> 0 | K26: ='Blad 8 Periodisering'!I32 -> 0
A28: ="Slutavräkning "&B9 -> Slutavräkning 2024 | B28: =(K28*'Blad 2 Indata'!C32)/1000 -> 0 | C28: =(L28*'Blad 2 Indata'!C32)/1000 -> 0 | K28: ='Blad 8 Periodisering'!G32 -> 0 | L28: ='Blad 8 Periodisering'!Q20 -> -4.640998696e-09
A30: ="Slutavräkning "&C9 -> Slutavräkning 2025 | C30: =IF('Blad 2 Indata'!O4=1,(L30*'Blad 2 Indata'!D32)/1000,L30*'Blad 2 Indata'!D33/1000) -> 0 | L30: ='Blad 8 Periodisering'!O20 -> 0
A32: Summa intäkter (inkl. avräkning) | B32: =B24+B26+B28+B30 -> 0 | C32: 0 | D32: 0 | E32: 0 | F32: 0 | G32: 0 | H32: =H24+H26+H28+H30 -> 0 | I32: =I24+I26+I28+I30 -> 0 | K32: =K24+K26+K28+K30 -> 647.5538913 | L32: 289.3563428 | M32: 140.2962664 | N32: -19.57692859 | O32: -196.7037518 | P32: -370.6999035 | Q32: =Q24+Q26+Q28+Q30 -> -546.3106757 | R32: =R24+R26+R28+R30 -> -712.8141087
A34: Varav summa skatteintäkter | B34: =B12+B26+B28 -> 0 | C34: =C12+C26+C28+C30 -> 0 | D34: =D12+D26+D28 -> 0 | E34: 0 | F34: 0 | G34: 0 | H34: 0 | I34: 0 | K34: =K12+K26+K28 -> 0 | L34: =L12+L26+L28+L30 -> -4.640998696e-09 | M34: =M12+M26+M28 -> 0 | N34: 0 | O34: 0 | P34: 0 | Q34: 0 | R34: 0

Sheet Blad 2 Indata (hidden)
A1: Indata | B1: =Prognosunderlag!B1 -> 0 | C1: =IF(B1>0," ","Skriv in länets kod i cellen B1") -> Skriv in länets kod i cellen B1 | M1: SKR | O1: Trend | Q1: Senaste utfall | S1: Oförändrat | U1: Oförändrad | V1: Ej värdesäkrat
A2: =IF(ISERROR(VLOOKUP(B1,Data!A2:V291,2)),"",(VLOOKUP(B1,Data!A2:V291,2))) ->  | M2: Egen prognos | O2: Egen prognos | Q2: Fungerar ej | S2: Egen prognos | U2: Förändrad | V2: Värdesäkrat
B3: ='Blad 1 Totala intäkter'!B9-1 -> 2023 | C3: =B3+1 -> 2024 | D3: 2025 | E3: 2026 | F3: 2027 | G3: 2028 | H3: 2029 | I3: 2030 | J3: 2031 | M3: 1 | P3: 1 | Q3: 1 | S3: 1 | U3: 1 | V3: 1
O4: 1
A5: Uppräkningsfaktorer
A6: Rikets skatteunderlag, %
A7: ="Fastställt för "&C3 -> Fastställt för 2024 | B7: 4.6 | C7: 3.3
A8: ="Fastställt för "&D3 -> Fastställt för 2025
A9: Sveriges Kommuner och Regioners prognos | B9: 5.062685106 | C9: 2.730090121 | D9: 4.867787057 | E9: 4.162183612 | F9: 4.01490337 | G9: 4.082761124 | H9: 4.082079983 | I9: 3.977838734 | J9: 3.663331343
A10: Egna antaganden
A11: ="Beskattningsutfall inkomstår "&B3 -> Beskattningsutfall inkomstår 2023 | B11: =(IF(C21>0,(C21/B21-1)*100,0)) -> 0
A12: ="Prognos slutavräkning bokslut "&B3&" och "&C3 -> Prognos slutavräkning bokslut 2023 och 2024 | B12: 5.237958693
A14: Länets skatteunderlag, %
A15: Riksprognos | B15: =IF(B18<>0,B18,IF('Blad 2 Indata'!$M3=1,'Blad 2 Indata'!B9,'Blad 2 Indata'!B10)) -> 5.062685106 | C15: =IF('Blad 2 Indata'!$M3=1,'Blad 2 Indata'!C9,'Blad 2 Indata'!C10) -> 2.730090121 | D15: =IF('Blad 2 Indata'!$M3=1,'Blad 2 Indata'!D9,'Blad 2 Indata'!D10) -> 4.867787057 | E15: =IF('Blad 2 Indata'!$M3=1,'Blad 2 Indata'!E9,'Blad 2 Indata'!E10) -> 4.162183612 | F15: =IF('Blad 2 Indata'!$M3=1,'Blad 2 Indata'!F9,'Blad 2 Indata'!F10) -> 4.01490337 | G15: =IF('Blad 2 Indata'!$M3=1,'Blad 2 Indata'!G9,'Blad 2 Indata'!G10) -> 4.082761124 | H15: =IF('Blad 2 Indata'!$M3=1,'Blad 2 Indata'!H9,'Blad 2 Indata'!H10) -> 4.082079983 | I15: =IF('Blad 2 Indata'!$M3=1,'Blad 2 Indata'!I9,'Blad 2 Indata'!I10) -> 3.977838734 | J15: =IF('Blad 2 Indata'!$M3=1,'Blad 2 Indata'!J9,'Blad 2 Indata'!J10) -> 3.663331343
A16: Enligt trend | B16: =IF(ISERROR((VLOOKUP($B1,'Blad 8 Periodisering'!$A51:$M72,3)-1)*100),0,VLOOKUP($B1,'Blad 8 Periodisering'!$A51:$M72,3)-1)*100 -> 0 | C16: =IF(ISERROR((VLOOKUP($B1,'Blad 8 Periodisering'!$A51:$M72,5)-1)*100),0,VLOOKUP($B1,'Blad 8 Periodisering'!$A51:$M72,5)-1)*100 -> 0 | D16: =IF(ISERROR((VLOOKUP($B1,'Blad 8 Periodisering'!$A51:$M72,7)-1)*100),0,VLOOKUP($B1,'Blad 8 Periodisering'!$A51:$M72,7)-1)*100 -> 0 | E16: =IF(ISERROR((VLOOKUP($B1,'Blad 8 Periodisering'!$A51:$M72,9)-1)*100),0,VLOOKUP($B1,'Blad 8 Periodisering'!$A51:$M72,9)-1)*100 -> 0 | F16: =IF(ISERROR((VLOOKUP($B1,'Blad 8 Periodisering'!$A51:$M72,11)-1)*100),0,VLOOKUP($B1,'Blad 8 Periodisering'!$A51:$M72,11)-1)*100 -> 0 | G16: =IF(ISERROR((VLOOKUP($B1,'Blad 8 Periodisering'!$A51:$M72,13)-1)*100),0,VLOOKUP($B1,'Blad 8 Periodisering'!$A51:$M72,13)-1)*100 -> 0 | H16: =IF(ISERROR((VLOOKUP($B1,'Blad 8 Periodisering'!$A51:$AY72,15)-1)*100),0,VLOOKUP($B1,'Blad 8 Periodisering'!$A51:$AY72,15)-1)*100 -> 0 | I16: =IF(ISERROR((VLOOKUP($B1,'Blad 8 Periodisering'!$A51:$AY72,17)-1)*100),0,VLOOKUP($B1,'Blad 8 Periodisering'!$A51:$AY72,17)-1)*100 -> 0 | J16: =IF(ISERROR((VLOOKUP($B1,'Blad 8 Periodisering'!$A51:$AY72,19)-1)*100),0,VLOOKUP($B1,'Blad 8 Periodisering'!$A51:$AY72,19)-1)*100 -> 0
A17: Egna antaganden | B17: =B16 -> 0 | C17: =C16 -> 0 | D17: =IF($B$1=0,0,IF(D33=0,D15,IF(ISERROR(VLOOKUP($B$1,'Blad 8 Periodisering'!$A$218:$M$238,3)-1)*100,0,(VLOOKUP($B$1,'Blad 8 Periodisering'!$A$218:$M$238,3)-1)*100))) -> 0 | E17: =IF($B$1=0,0,IF(E33=0,E15,IF(ISERROR(VLOOKUP($B$1,'Blad 8 Periodisering'!$A$218:$M$238,5)-1)*100,0,(VLOOKUP($B$1,'Blad 8 Periodisering'!$A$218:$M$238,5)-1)*100))) -> 0 | F17: =IF($B$1=0,0,IF(F33=0,F15,IF(ISERROR(VLOOKUP($B$1,'Blad 8 Periodisering'!$A$218:$M$238,7)-1)*100,0,(VLOOKUP($B$1,'Blad 8 Periodisering'!$A$218:$M$238,7)-1)*100))) -> 0 | G17: =IF($B$1=0,0,IF(G33=0,G15,IF(ISERROR(VLOOKUP($B$1,'Blad 8 Periodisering'!$A$218:$M$238,9)-1)*100,0,(VLOOKUP($B$1,'Blad 8 Periodisering'!$A$218:$M$238,9)-1)*100))) -> 0 | H17: =IF($B$1=0,0,IF(H33=0,H15,IF(ISERROR(VLOOKUP($B$1,'Blad 8 Periodisering'!$A$218:$AU$238,11)-1)*100,0,(VLOOKUP($B$1,'Blad 8 Periodisering'!$A$218:$AU$238,11)-1)*100))) -> 0 | I17: =IF($B$1=0,0,IF(I33=0,I15,IF(ISERROR(VLOOKUP($B$1,'Blad 8 Periodisering'!$A$218:$AU$238,13)-1)*100,0,(VLOOKUP($B$1,'Blad 8 Periodisering'!$A$218:$AU$238,13)-1)*100))) -> 0 | J17: =IF($B$1=0,0,IF(J33=0,J15,IF(ISERROR(VLOOKUP($B$1,'Blad 8 Periodisering'!$A$218:$AU$238,15)-1)*100,0,(VLOOKUP($B$1,'Blad 8 Periodisering'!$A$218:$AU$238,15)-1)*100))) -> 0
A18: ="Beskattningsutfall inkomstår "&B3 -> Beskattningsutfall inkomstår 2023 | B18: =IF(C22>0,(VLOOKUP(B1,'Blad 8 Periodisering'!A51:M72,3)-1)*100,0) -> 0
A20: ="Skatteunderlag inkomstår "&B3-1&" och "&B3 -> Skatteunderlag inkomstår 2022 och 2023
A21: Riket, miljoner kr | B21: 2645513.487
A22: Länet, tkr | B22: =IF(ISERROR(VLOOKUP(B1,Data!A2:V291,3)),0,(VLOOKUP(B1,Data!A2:V291,3)))/1000 -> 0 | C22: =IF(ISERROR(VLOOKUP(B1,Data!A2:V291,4)),0,(VLOOKUP(B1,Data!A2:V291,4)))/1000 -> 0
A25: Antal invånare den 1.11 året innan
A26: Riket
A27: Förändring i procent | D27: =((D28-C28)/C28)*100 -> 0.5417098185 | E27: 0.5137036954 | F27: 0.4854442184 | G27: 0.4350913429 | H27: 0.4364940651 | I27: 0.4356419348 | J27: 0.436274893
A28: Antal invånare i riket | B28: 10514719 | C28: 10557682 | D28: 10614874 | E28: 10669403 | F28: 10721197 | G28: 10767844 | H28: 10814845 | I28: 10861959 | J28: 10909347
A30: Länet
A31: Enligt riksprognos | B31: =IF(ISERROR(VLOOKUP(B1,Data!A2:V291,5)),0,(VLOOKUP(B1,Data!A2:V291,5))) -> 0 | C31: =IF(ISERROR(VLOOKUP(B1,Data!A2:V291,6)),0,(VLOOKUP(B1,Data!A2:V291,6))) -> 0 | D31: =ROUND(IF(ISERROR(VLOOKUP(B1,Data!A2:BO291,7)),0,(VLOOKUP(B1,Data!A2:BO291,7))),0) -> 0 | E31: =ROUND(IF(ISERROR(VLOOKUP(B1,Data!A2:BO291,8)),0,(VLOOKUP(B1,Data!A2:BO291,8))),0) -> 0 | F31: =ROUND(IF(ISERROR(VLOOKUP(B1,Data!A2:BO291,9)),0,(VLOOKUP(B1,Data!A2:BO291,9))),0) -> 0 | G31: =ROUND(IF(ISERROR(VLOOKUP(B1,Data!A2:BO291,10)),0,(VLOOKUP(B1,Data!A2:BO291,10))),0) -> 0 | H31: =INT(+G31*(1+H27/100)) -> 0 | I31: =INT(+H31*(1+I27/100)) -> 0 | J31: =INT(+I31*(1+J27/100)) -> 0
A32: Enligt trend | B32: =$B$31 -> 0 | C32: =$C$31 -> 0 | D32: =ROUND(IF(ISERROR(VLOOKUP(B1,Data!A2:BO291,18)),0,(VLOOKUP(B1,Data!A2:BO291,18))),0) -> 0 | E32: =ROUND(IF(ISERROR(VLOOKUP(B1,Data!A2:BO291,19)),0,(VLOOKUP(B1,Data!A2:BO291,19))),0) -> 0 | F32: =ROUND(IF(ISERROR(VLOOKUP(B1,Data!A2:BO291,20)),0,(VLOOKUP(B1,Data!A2:BO291,20))),0) -> 0 | G32: =ROUND(IF(ISERROR(VLOOKUP(B1,Data!A2:BO291,21)),0,(VLOOKUP(B1,Data!A2:BO291,21))),0) -> 0 | H32: =ROUND(IF(ISERROR(VLOOKUP($B1,Data!$A2:$BR291,68)),0,(VLOOKUP($B1,Data!$A2:$BR291,68))),0) -> 0 | I32: =ROUND(IF(ISERROR(VLOOKUP($B1,Data!$A2:$BR291,69)),0,(VLOOKUP($B1,Data!$A2:$BR291,69))),0) -> 0 | J32: =ROUND(IF(ISERROR(VLOOKUP($B1,Data!$A2:$BR291,70)),0,(VLOOKUP($B1,Data!$A2:$BR291,70))),0) -> 0
A33: Egna antaganden | B33: =$B$31 -> 0 | C33: =$C$31 -> 0 | D33: =D32 -> 0
A35: Anslag kommunalek. utj. mnkr | B35: 43847.606 | C35: 48694.896 | D35: 46854.896 | E35: 47039.896 | F35: 47099.896 | G35: 47099.896 | H35: 47099.896 | I35: 47099.896 | J35: 47099.896
A36: Värdesäkrad beräkning, miljoner kronor | F36: =(E35+Data!BK2)*(1+F59/100)*(1+F27/100) -> 48639.02766 | G36: =F36*(1+G59/100)*(1+G27/100) -> 50120.76881 | H36: =G36*(1+H59/100)*(1+H27/100) -> 51648.37111 | I36: =H36*(1+I59/100)*(1+I27/100) -> 53222.08077 | J36: =I36*(1+J59/100)*(1+J27/100) -> 54844.0865
A38: Inkomstutjämningsbidr, mnkr netto | B38: =SUM('Blad 8 Periodisering'!B103:B123)/1000000 -> 38852.32444 | C38: =SUM('Blad 8 Periodisering'!C103:C123)/1000000 -> 40488.03322 | D38: =SUM('Blad 8 Periodisering'!D103:D123)/1000000 -> 42410.1835 | E38: =SUM('Blad 8 Periodisering'!E103:E123)/1000000 -> 44182.73247 | F38: =SUM('Blad 8 Periodisering'!F103:F123)/1000000 -> 45958.92973 | G38: =SUM('Blad 8 Periodisering'!G103:G123)/1000000 -> 47840.59469 | H38: =SUM('Blad 8 Periodisering'!H103:H123)/1000000 -> 49794.55327 | I38: =SUM('Blad 8 Periodisering'!I103:I123)/1000000 -> 51780.39628 | J38: =SUM('Blad 8 Periodisering'!J103:J123)/1000000 -> 53680.68998
A41: Kostnadsutjämning, netto
A42: Miljoner kronor | B42: -40.033424 | C42: -42.227944
A44: Strukturbidrag
A45: Miljoner kronor | B45: =SUMPRODUCT(Data!E3:E23,'Blad 8 Periodisering'!B129:B149)/1000000 -> 547.026316 | C45: =SUMPRODUCT(Data!F3:F23,'Blad 8 Periodisering'!C129:C149)/1000000 -> 546.69274 | D45: =SUMPRODUCT(Data!R3:R23,'Blad 8 Periodisering'!D129:D149)/1000000 -> 546.981062 | E45: =SUMPRODUCT(Data!S3:S23,'Blad 8 Periodisering'!E129:E149)/1000000 -> 547.113937 | F45: =SUMPRODUCT(Data!T3:T23,'Blad 8 Periodisering'!F129:F149)/1000000 -> 547.088841 | G45: =SUMPRODUCT(Data!U3:U23,'Blad 8 Periodisering'!G129:G149)/1000000 -> 546.786171 | H45: =SUMPRODUCT(Data!BP3:BP23,'Blad 8 Periodisering'!H129:H149)/1000000 -> 546.487201 | I45: =SUMPRODUCT(Data!BQ3:BQ23,'Blad 8 Periodisering'!I129:I149)/1000000 -> 546.179645 | J45: =SUMPRODUCT(Data!BR3:BR23,'Blad 8 Periodisering'!J129:J149)/1000000 -> 545.872781
A47: Införandebidrag
A48: Miljoner kronor | B48: =SUMPRODUCT(Data!E3:E23,'Blad 8 Periodisering'!B156:B176)/1000000 -> 0 | C48: =SUMPRODUCT(Data!F3:F23,'Blad 8 Periodisering'!C156:C176)/1000000 -> 0 | D48: =SUMPRODUCT(Data!R3:R23,'Blad 8 Periodisering'!D156:D176)/1000000 -> 0 | E48: =SUMPRODUCT(Data!S3:S23,'Blad 8 Periodisering'!E156:E176)/1000000 -> 0 | F48: =SUMPRODUCT(Data!T3:T23,'Blad 8 Periodisering'!F156:F176)/1000000 -> 0 | G48: =SUMPRODUCT(Data!U3:U23,'Blad 8 Periodisering'!G156:G176)/1000000 -> 0 | H48: =SUMPRODUCT(Data!BP3:BP23,'Blad 8 Periodisering'!H156:H176)/1000000 -> 0 | I48: =SUMPRODUCT(Data!BQ3:BQ23,'Blad 8 Periodisering'!I156:I176)/1000000 -> 0 | J48: =SUMPRODUCT(Data!BR3:BR23,'Blad 8 Periodisering'!J156:J176)/1000000 -> 0
A50: Regleringsbidrag/-avgift
A51: Miljoner kronor | B51: =B35-(B38+B42+B45+B48) -> 4488.288668 | C51: =C35-(C38+C42+C45+C48) -> 7702.397986 | D51: =D35-(D38+D42+D45+D48) -> 3897.731437 | E51: 2310.049595 | F51: 593.877432 | G51: -1287.484859 | H51: -3241.144473 | I51: -5226.679929 | J51: -7126.666759
A52: Kronor per invånare | B52: =(B51*1000000)/B28 -> 426.8576904 | C52: 729.5538913 | D52: =(D51*1000000)/D28 -> 367.1952618 | E52: 216.5116075 | F52: 55.39282899 | G52: -119.5675624 | H52: =(H51*1000000)/H28 -> -299.6940292 | I52: =(I51*1000000)/I28 -> -481.1912777 | J52: =(J51*1000000)/J28 -> -653.2624509
A53: Om egen prognos för anslag | F53: =IF($M$3+$V$3=2,0,(((F36-(F38+F42+F45+F48))*1000000)/F28)) -> 0 | G53: =IF($M$3+$V$3=2,0,(((G36-(G38+G42+G45+G48))*1000000)/G28)) -> 0 | H53: =IF($M$3+$V$3=2,0,(((H36-(H38+H42+H45+H48))*1000000)/H28)) -> 0 | I53: =IF($M$3+$V$3=2,0,(((I36-(I38+I42+I45+I48))*1000000)/I28)) -> 0 | J53: =IF($M$3+$V$3=2,0,(((J36-(J38+J42+J45+J48))*1000000)/J28)) -> 0
A55: Garantinivå, procent | B55: 1.15 | C55: 1.15 | D55: 1.15 | E55: 1.15 | F55: 1.15 | G55: 1.15 | H55: 1.15 | I55: 1.15 | J55: 1.15
A58: Landstingsprisindex
A59: Sveriges Kommuner och Regioners prognos | B59: 7.4 | C59: 4.3 | D59: -0.9 | E59: 0.8 | F59: 2.9 | G59: 2.6 | H59: 2.6 | I59: 2.6 | J59: 2.6
A61: Skattesatser | D61: +/– | E61: +/– | F61: +/– | G61: +/– | H61: +/– | I61: +/– | J61: +/–
A62: Ändrad skattesats, procentenheter
A63: Länets skattesats | B63: =IF(ISERROR(VLOOKUP(B1,Data!A2:V291,11)),0,(VLOOKUP(B1,Data!A2:V291,11))) -> 0 | C63: =IF(ISERROR(VLOOKUP(B1,Data!A2:V291,12)),0,(VLOOKUP(B1,Data!A2:V291,12))) -> 0 | D63: =IF(ISERROR(IF((VLOOKUP(B1,Data!A2:V291,22))=0,(IF($U$3=2,C63+D62,C63)),(VLOOKUP(B1,Data!A2:V291,22)))),0,(IF((VLOOKUP(B1,Data!A2:V291,22))=0,(IF($U$3=2,C63+D62,C63)),(VLOOKUP(B1,Data!A2:V291,22))))) -> 0 | E63: =IF($U$3=2,D63+E62,D63) -> 0 | F63: 0 | G63: 0 | H63: 0 | I63: 0 | J63: 0
A64: Länsvis skattesats, 90% | C64: =IF(ISERROR(VLOOKUP(B1,Data!A2:V291,13)),0,(VLOOKUP(B1,Data!A2:V291,13))) -> 0 | D64: =IF(ISERROR(VLOOKUP(B1,Data!A2:AQ291,40)),0,(VLOOKUP(B1,Data!A2:AQ291,40))) -> 0 | E64: =D64 -> 0 | F64: 0 | G64: 0 | H64: =G64 -> 0 | I64: 0 | J64: 0
A65: Länsvis skattesats, 85% | C65: =IF(ISERROR(VLOOKUP(B1,Data!A2:V291,14)),0,(VLOOKUP(B1,Data!A2:V291,14))) -> 0 | D65: =IF(ISERROR(VLOOKUP(B1,Data!A2:AQ291,41)),0,(VLOOKUP(B1,Data!A2:AQ291,41))) -> 0 | E65: 0 | F65: 0 | G65: =F65 -> 0 | H65: 0 | I65: 0 | J65: 0
A68: Kostnadsutjämning
A69: ="Kostnadsutjämning exkl bef.förändr. "&C3&" och "&D3 -> Kostnadsutjämning exkl bef.förändr. 2024 och 2025 | C69: =ROUND(IF(ISERROR(VLOOKUP(B1,Data!A2:V291,16)),0,(VLOOKUP(B1,Data!A2:V291,16))),0) -> 0 | D69: =ROUND(IF(ISERROR(VLOOKUP(B1,Data!A2:V291,17)),0,(VLOOKUP(B1,Data!A2:V291,17))),0) -> 0
A71: Antal invånare den 1.11
A72: Totalt 5 år innan | B72: =IF(ISERROR(VLOOKUP($B$1,Data!$A$2:$BO$291,23)),0,(VLOOKUP($B$1,Data!$A$2:$BO$291,23,0))) -> 0 | C72: =IF(ISERROR(VLOOKUP($B$1,Data!$A$2:$BO$291,24)),0,(VLOOKUP($B$1,Data!$A$2:$BO$291,24,0))) -> 0 | D72: =IF(ISERROR(VLOOKUP($B$1,Data!$A$2:$BO$291,25)),0,(VLOOKUP($B$1,Data!$A$2:$BO$291,25,0))) -> 0 | E72: =IF(ISERROR(VLOOKUP($B$1,Data!$A$2:$BO$291,26)),0,(VLOOKUP($B$1,Data!$A$2:$BO$291,26,0))) -> 0 | F72: =IF(ISERROR(VLOOKUP($B$1,Data!$A$2:$BO$291,27)),0,(VLOOKUP($B$1,Data!$A$2:$BO$291,27,0))) -> 0 | G72: =IF(ISERROR(VLOOKUP($B$1,Data!$A$2:$BO$291,6)),0,(VLOOKUP($B$1,Data!$A$2:$BO$291,6,0))) -> 0
A74: Antal invånare den 31.12 året innan
A75: Antal | B75: 10581643 | C75: 10638965 | D75: 10693618 | E75: 10745530 | F75: 10792283 | G75: 10839391 | H75: 10869078 | I75: 10917101 | J75: 10934108
A77: Finansiering befolkningsförändringar | C77: 82 | D77: 77.83891891 | E77: 76.21534111 | F77: 74.96975758 | G77: 77.13618943 | H77: 71.00587433 | I77: 65.11939806 | J77: 59.55165775

Sheet Blad 3 Inkomstutjämning (hidden)
A1: Inkomstutjämning | D1: Rikets skatteunderlag | F1: =IF('Blad 2 Indata'!$M$3=1,"Kommunförbundet","Egen prognos") -> Kommunförbundet
D3: Eget skatteunderlag | F3: =IF('Blad 2 Indata'!$O$3=1,"Riksprognos","Egen prognos") -> Egen prognos
A4: ="Länets skatteunderlag inkomstår "&""&B7-1 &" tkr" -> Länets skatteunderlag inkomstår 2022 tkr | B4: ='Blad 2 Indata'!B22 -> 0
D5: Antal invånare | F5: =IF('Blad 2 Indata'!$P$3=1,"Riksprognos","Egen prognos") -> Riksprognos
B7: ='Blad 1 Totala intäkter'!B9-1 -> 2023 | C7: =B7+1 -> 2024 | D7: 2025 | E7: 2026 | F7: 2027 | G7: 2028 | H7: 2029 | I7: 2030 | J7: 2031
A9: Uppräkningsfaktorer, %
A10: ="Riket, fastställt för "&C7 -> Riket, fastställt för 2024 | B10: ='Blad 2 Indata'!B7 -> 4.6 | C10: ='Blad 2 Indata'!C7 -> 3.3
A11: ="Riket, fastställt för "&D7 -> Riket, fastställt för 2025 | C11: ='Blad 2 Indata'!C8 -> 0 | D11: ='Blad 2 Indata'!D8 -> 0
A12: Riksprognos | B12: =IF('Blad 2 Indata'!$M3=1,'Blad 2 Indata'!B9,'Blad 2 Indata'!B10) -> 5.062685106 | C12: =IF('Blad 2 Indata'!$M3=1,'Blad 2 Indata'!C9,'Blad 2 Indata'!C10) -> 2.730090121 | D12: =IF('Blad 2 Indata'!$M3=1,'Blad 2 Indata'!D9,'Blad 2 Indata'!D10) -> 4.867787057 | E12: =IF('Blad 2 Indata'!$M3=1,'Blad 2 Indata'!E9,'Blad 2 Indata'!E10) -> 4.162183612 | F12: =IF('Blad 2 Indata'!$M3=1,'Blad 2 Indata'!F9,'Blad 2 Indata'!F10) -> 4.01490337 | G12: =IF('Blad 2 Indata'!$M3=1,'Blad 2 Indata'!G9,'Blad 2 Indata'!G10) -> 4.082761124 | H12: =IF('Blad 2 Indata'!$M3=1,'Blad 2 Indata'!H9,'Blad 2 Indata'!H10) -> 4.082079983 | I12: =IF('Blad 2 Indata'!$M3=1,'Blad 2 Indata'!I9,'Blad 2 Indata'!I10) -> 3.977838734 | J12: =IF('Blad 2 Indata'!$M3=1,'Blad 2 Indata'!J9,'Blad 2 Indata'!J10) -> 3.663331343
A13: Eget skatteunderlag | B13: =IF('Blad 2 Indata'!$P3=2,'Blad 2 Indata'!B17,'Blad 2 Indata'!B16) -> 0 | C13: =IF('Blad 2 Indata'!$P3=2,'Blad 2 Indata'!C17,'Blad 2 Indata'!C16) -> 0 | D13: =IF('Blad 2 Indata'!$P3=2,'Blad 2 Indata'!D17,'Blad 2 Indata'!D16) -> 0 | E13: =IF('Blad 2 Indata'!$P3=2,'Blad 2 Indata'!E17,'Blad 2 Indata'!E16) -> 0 | F13: =IF('Blad 2 Indata'!$P3=2,'Blad 2 Indata'!F17,'Blad 2 Indata'!F16) -> 0 | G13: =IF('Blad 2 Indata'!$P3=2,'Blad 2 Indata'!G17,'Blad 2 Indata'!G16) -> 0 | H13: =IF('Blad 2 Indata'!$P3=2,'Blad 2 Indata'!H17,'Blad 2 Indata'!H16) -> 0 | I13: =IF('Blad 2 Indata'!$P3=2,'Blad 2 Indata'!I17,'Blad 2 Indata'!I16) -> 0 | J13: =IF('Blad 2 Indata'!$P3=2,'Blad 2 Indata'!J17,'Blad 2 Indata'!J16) -> 0
A15: Medelskattekraft, kr/inv
A16: ="Fastställt för "&C7&" och "&D7 -> Fastställt för 2024 och 2025 | B16: 260928 | C16: =ROUND('Blad 2 Indata'!B21*1000000*(1+'Blad 2 Indata'!B7/100)*(1+'Blad 2 Indata'!C7/100)/'Blad 2 Indata'!C28,0) -> 270753 | D16: =IF(D11<>0,ROUND('Blad 2 Indata'!B21*1000000*(1+'Blad 3 Inkomstutjämning'!B12/100)*(1+'Blad 3 Inkomstutjämning'!C11/100)*(1+'Blad 3 Inkomstutjämning'!D11/100)/'Blad 2 Indata'!D28,0),0) -> 0
A17: Prognos | B17: =ROUND('Blad 2 Indata'!$B21*1000000*(1+B12/100)/'Blad 2 Indata'!B28,0) -> 264339 | C17: =ROUND('Blad 2 Indata'!$B21*1000000*(1+B12/100)*(1+C12/100)/'Blad 2 Indata'!C28,0) -> 270450 | D17: =ROUND('Blad 2 Indata'!$B21*1000000*(1+B12/100)*(1+C12/100)*(1+D12/100)/'Blad 2 Indata'!D28,0) -> 282087 | E17: =ROUND('Blad 2 Indata'!$B21*1000000*(1+B12/100)*(1+C12/100)*(1+D12/100)*(1+E12/100)/'Blad 2 Indata'!E28,0) -> 292327 | F17: =ROUND('Blad 2 Indata'!$B21*1000000*(1+B12/100)*(1+C12/100)*(1+D12/100)*(1+E12/100)*(1+F12/100)/'Blad 2 Indata'!F28,0) -> 302594 | G17: =ROUND('Blad 2 Indata'!$B21*1000000*(1+B12/100)*(1+C12/100)*(1+D12/100)*(1+E12/100)*(1+F12/100)*(1+G12/100)/'Blad 2 Indata'!G28,0) -> 313584 | H17: =ROUND('Blad 2 Indata'!$B21*1000000*(1+B12/100)*(1+C12/100)*(1+D12/100)*(1+E12/100)*(1+F12/100)*(1+G12/100)*(1+H12/100)/'Blad 2 Indata'!H28,0) -> 324966 | I17: =ROUND('Blad 2 Indata'!$B21*1000000*(1+B12/100)*(1+C12/100)*(1+D12/100)*(1+E12/100)*(1+F12/100)*(1+G12/100)*(1+H12/100)*(1+I12/100)/'Blad 2 Indata'!I28,0) -> 336427 | J17: =ROUND('Blad 2 Indata'!$B21*1000000*(1+B12/100)*(1+C12/100)*(1+D12/100)*(1+E12/100)*(1+F12/100)*(1+G12/100)*(1+H12/100)*(1+I12/100)*(1+J12/100)/'Blad 2 Indata'!J28,0) -> 347237
A19: Garanterad skattekraft, riket | C19: =IF(C16>0,C16*'Blad 2 Indata'!C55,C17*'Blad 2 Indata'!C55) -> 311365.95 | D19: =IF(D16>0,D16*'Blad 2 Indata'!D55,D17*'Blad 2 Indata'!D55) -> 324400.05 | E19: =(E17*'Blad 2 Indata'!E55) -> 336176.05 | F19: =F17*'Blad 2 Indata'!F55 -> 347983.1 | G19: =G17*'Blad 2 Indata'!G55 -> 360621.6 | H19: =H17*'Blad 2 Indata'!H55 -> 373710.9 | I19: =I17*'Blad 2 Indata'!I55 -> 386891.05 | J19: =J17*'Blad 2 Indata'!J55 -> 399322.55
A21: Antal invånare 1/11 året innan | C21: ='Blad 2 Indata'!C32 -> 0 | D21: =IF('Blad 2 Indata'!$O$4=1,'Blad 2 Indata'!D32,'Blad 2 Indata'!D33) -> 0 | E21: =IF('Blad 2 Indata'!$O$4=1,'Blad 2 Indata'!E32,'Blad 2 Indata'!E33) -> 0 | F21: =IF('Blad 2 Indata'!$O$4=1,'Blad 2 Indata'!F32,'Blad 2 Indata'!F33) -> 0 | G21: =IF('Blad 2 Indata'!$O$4=1,'Blad 2 Indata'!G32,'Blad 2 Indata'!G33) -> 0 | H21: =IF('Blad 2 Indata'!$O$4=1,'Blad 2 Indata'!H32,'Blad 2 Indata'!H33) -> 0 | I21: =IF('Blad 2 Indata'!$O$4=1,'Blad 2 Indata'!I32,'Blad 2 Indata'!I33) -> 0 | J21: =IF('Blad 2 Indata'!$O$4=1,'Blad 2 Indata'!J32,'Blad 2 Indata'!J33) -> 0
A24: Skatteutjämningsunderlag, tkr | C24: =(ROUND($B$4*1000*(1+B10/100)*(1+C10/100),0)/1000) -> 0 | D24: =IF(C11<>0,ROUND($B$4*1000*(1+B13/100)*(1+C11/100)*(1+D11/100),0)/1000,ROUND($B$4*1000*(1+B13/100)*(1+C12/100)*(1+D12/100),0)/1000) -> 0 | E24: =ROUND($B$4*1000*(1+B13/100)*(1+C13/100)*(1+D12/100)*(1+E12/100),0)/1000 -> 0 | F24: =ROUND($B$4*1000*(1+B13/100)*(1+C13/100)*(1+D13/100)*(1+E12/100)*(1+F12/100),0)/1000 -> 0 | G24: =ROUND($B$4*1000*(1+B13/100)*(1+C13/100)*(1+D13/100)*(1+E13/100)*(1+F12/100)*(1+G12/100),0)/1000 -> 0 | H24: =ROUND($B$4*1000*(1+B13/100)*(1+C13/100)*(1+D13/100)*(1+E13/100)*(1+F13/100)*(1+G12/100)*(1+H12/100),0)/1000 -> 0 | I24: =ROUND($B$4*1000*(1+B13/100)*(1+C13/100)*(1+D13/100)*(1+E13/100)*(1+F13/100)*(1+G13/100)*(1+H12/100)*(1+I12/100),0)/1000 -> 0 | J24: =ROUND($B$4*1000*(1+B13/100)*(1+C13/100)*(1+D13/100)*(1+E13/100)*(1+F13/100)*(1+G13/100)*(1+H13/100)*(1+I12/100)*(1+J12/100),0)/1000 -> 0
A27: Garanterat skatteunderlag, tkr | C27: =ROUND(C19*C21,3)/1000 -> 0 | D27: =ROUND(IF(D16>0,(D16*'Blad 2 Indata'!D55*D21)/1000,(D17*'Blad 2 Indata'!D55*D21)/1000),3) -> 0 | E27: =ROUND((E17*'Blad 2 Indata'!E55*E21)/1000,3) -> 0 | F27: =ROUND((F17*'Blad 2 Indata'!F55*F21)/1000,3) -> 0 | G27: =ROUND((G17*'Blad 2 Indata'!G55*G21)/1000,3) -> 0 | H27: =ROUND((H17*'Blad 2 Indata'!H55*H21)/1000,3) -> 0 | I27: =ROUND((I17*'Blad 2 Indata'!I55*I21)/1000,3) -> 0 | J27: =ROUND((J17*'Blad 2 Indata'!J55*J21)/1000,3) -> 0
A30: Underlag för inkomstutjämning, tkr | C30: =C27-C24 -> 0 | D30: 0 | E30: 0 | F30: 0 | G30: 0 | H30: 0 | I30: 0 | J30: 0
A33: Länet
A34: Skattekraft, kr/inv | C34: =IF(ISERROR(ROUND(((($B$4*1000*(1+B10/100)*(1+C10/100)/1000)/C21)*1000),0)),0,(ROUND(((($B$4*1000*(1+B10/100)*(1+C10/100)/1000)/C21)*1000),0))) -> 0 | D34: =IF(ISERROR(ROUND((((IF(C11<>0,($B$4*1000*(1+B13/100)*(1+C11/100)*(1+D11/100))/1000,($B$4*1000*(1+B13/100)*(1+C12/100)*(1+D12/100))/1000)/D21)*1000)),0)),0,(ROUND((((IF(C11<>0,($B$4*1000*(1+B13/100)*(1+C11/100)*(1+D11/100))/1000,($B$4*1000*(1+B13/100)*(1+C12/100)*(1+D12/100))/1000)/D21)*1000)),0))) -> 0 | E34: =IF(ISERROR(ROUND(B4*1000*(1+B13/100)*(1+C13/100)*(1+D12/100)*(1+E12/100)/E21,0)),0,(ROUND(B4*1000*(1+B13/100)*(1+C13/100)*(1+D12/100)*(1+E12/100)/E21,0))) -> 0 | F34: =IF(ISERROR(ROUND(B4*1000*(1+B13/100)*(1+C13/100)*(1+D13/100)*(1+E12/100)*(1+F12/100)/F21,0)),0,(ROUND(B4*1000*(1+B13/100)*(1+C13/100)*(1+D13/100)*(1+E12/100)*(1+F12/100)/F21,0))) -> 0 | G34: =IF(ISERROR(ROUND(B4*1000*(1+B13/100)*(1+C13/100)*(1+D13/100)*(1+E13/100)*(1+F12/100)*(1+G12/100)/G21,0)),0,(ROUND(B4*1000*(1+B13/100)*(1+C13/100)*(1+D13/100)*(1+E13/100)*(1+F12/100)*(1+G12/100)/G21,0))) -> 0 | H34: =IF(ISERROR(ROUND($B4*1000*(1+B13/100)*(1+C13/100)*(1+D13/100)*(1+E13/100)*(1+F13/100)*(1+G12/100)*(1+H12/100)/H21,0)),0,(ROUND($B4*1000*(1+B13/100)*(1+C13/100)*(1+D13/100)*(1+E13/100)*(1+F13/100)*(1+G12/100)*(1+H12/100)/H21,0))) -> 0 | I34: =IF(ISERROR(ROUND($B4*1000*(1+B13/100)*(1+C13/100)*(1+D13/100)*(1+E13/100)*(1+F13/100)*(1+G13/100)*(1+H12/100)*(1+I12/100)/I21,0)),0,(ROUND($B4*1000*(1+B13/100)*(1+C13/100)*(1+D13/100)*(1+E13/100)*(1+F13/100)*(1+G13/100)*(1+H12/100)*(1+I12/100)/I21,0))) -> 0 | J34: =IF(ISERROR(ROUND($B4*1000*(1+B13/100)*(1+C13/100)*(1+D13/100)*(1+E13/100)*(1+F13/100)*(1+G13/100)*(1+H13/100)*(1+I12/100)*(1+J12/100)/J21,0)),0,(ROUND($B4*1000*(1+B13/100)*(1+C13/100)*(1+D13/100)*(1+E13/100)*(1+F13/100)*(1+G13/100)*(1+H13/100)*(1+I12/100)*(1+J12/100)/J21,0))) -> 0
A35: Skattekraft i procent av rikets | C35: =IF(C16=0,(C34/C17),(C34/C16)) -> 0 | D35: =IF(D16=0,(D34/D17),(D34/D16)) -> 0 | E35: =+E34/E17 -> 0 | F35: 0 | G35: 0 | H35: 0 | I35: 0 | J35: 0
A37: Länsvis skattesats avgift 85%/bidrag 90% | C37: =IF(C34<C19,'Blad 2 Indata'!C64,'Blad 2 Indata'!C65) -> 0 | D37: =IF(D34<D19,'Blad 2 Indata'!D64,'Blad 2 Indata'!D65) -> 0 | E37: =IF(E34<E19,'Blad 2 Indata'!E64,'Blad 2 Indata'!E65) -> 0 | F37: =IF(F34<F19,'Blad 2 Indata'!F64,'Blad 2 Indata'!F65) -> 0 | G37: =IF(G34<G19,'Blad 2 Indata'!G64,'Blad 2 Indata'!G65) -> 0 | H37: =IF(H34<H19,'Blad 2 Indata'!H64,'Blad 2 Indata'!H65) -> 0 | I37: =IF(I34<I19,'Blad 2 Indata'!I64,'Blad 2 Indata'!I65) -> 0 | J37: =IF(J34<J19,'Blad 2 Indata'!J64,'Blad 2 Indata'!J65) -> 0
A39: Inkomstutjämningsbidrag
A40: kronor per invånare | C40: =IF(C30<0,0,IF(ISERROR(ROUND(ROUND(C30*1000*C37/100,0)/C21,0)),0,ROUND(ROUND(C30*1000*C37/100,0)/C21,0))) -> 0 | D40: 0 | E40: 0 | F40: 0 | G40: 0 | H40: 0 | I40: 0 | J40: 0
A41: tkr | C41: =C40*C21/1000 -> 0 | D41: 0 | E41: 0 | F41: 0 | G41: 0 | H41: 0 | I41: 0 | J41: 0
A43: Inkomstutjämningsavgift
A44: kronor per invånare | C44: =IF(C30>0,0,IF(ISERROR(ROUND(ROUND(C30*1000*C37/100,0)/C21,0)),0,ROUND(ROUND(C30*1000*C37/100,0)/C21,0))) -> 0 | D44: =IF(D30>0,0,IF(ISERROR(ROUND(ROUND(D30*1000*D37/100,0)/D21,0)),0,ROUND(ROUND(D30*1000*D37/100,0)/D21,0))) -> 0 | E44: =IF(E30>0,0,IF(ISERROR(ROUND(ROUND(E30*1000*E37/100,0)/E21,0)),0,ROUND(ROUND(E30*1000*E37/100,0)/E21,0))) -> 0 | F44: 0 | G44: 0 | H44: 0 | I44: 0 | J44: 0
A45: tkr | C45: =C44*C21/1000 -> 0 | D45: =D44*D21/1000 -> 0 | E45: 0 | F45: 0 | G45: 0 | H45: 0 | I45: 0 | J45: 0

Sheet Blad 4 Kostnadsutjämning (hidden)
A1: Kostnadsutjämning | C1: =IF('Blad 2 Indata'!$Q$3=1,"Senaste utfall utan pris",IF('Blad 2 Indata'!$Q$3=2,"Senaste utfall med pris",IF('Blad 2 Indata'!$Q$3=3,"Demografi utan pris","Demografi med pris"))) -> Senaste utfall utan pris
A2: Kronor per invånare
B5: ='Blad 1 Totala intäkter'!B9 -> 2024 | C5: =B5+1 -> 2025 | D5: 2026 | E5: 2027 | F5: 2028 | G5: 2029 | H5: 2030 | I5: 2031
A6: Bidrag/avgift totalt | B6: =B15 -> -82 | C6: =C15 -> -77.83891891 | D6: =D15 -> -76.21534111 | E6: -74.96975758 | F6: -77.13618943 | G6: -71.00587433 | H6: -65.11939806 | I6: -59.55165775
A8: Lpi, procent | B8: ='Blad 2 Indata'!C59 -> 4.3 | C8: ='Blad 2 Indata'!D59 -> -0.9 | D8: ='Blad 2 Indata'!E59 -> 0.8 | E8: ='Blad 2 Indata'!F59 -> 2.9 | F8: ='Blad 2 Indata'!G59 -> 2.6 | G8: ='Blad 2 Indata'!H59 -> 2.6 | H8: ='Blad 2 Indata'!I59 -> 2.6 | I8: ='Blad 2 Indata'!J59 -> 2.6
A10: Delmodeller
A11: Hälso-och sjukvård | B11: =IF(ISERROR(VLOOKUP('Blad 2 Indata'!$B$1,Data!$A$3:$DA$23,29)),0,VLOOKUP('Blad 2 Indata'!$B$1,Data!$A$3:$DA$23,29)) -> 0 | C11: =IF('Blad 2 Indata'!D$69<>0,VLOOKUP('Blad 2 Indata'!B$1,Data!$A$3:$DA$23,34),B11*(C$8/100+1)) -> 0 | D11: =C11*(D$8/100+1) -> 0 | E11: 0 | F11: 0 | G11: 0 | H11: 0 | I11: 0
A12: Befolkningsförändringar | B12: =IF(ISERROR(VLOOKUP('Blad 2 Indata'!$B$1,Data!$A$3:$AO$23,28)),0,VLOOKUP('Blad 2 Indata'!$B$1,Data!$A$3:$AO$23,28)) -> 0 | C12: =ROUND(IF(ISERROR(IF(VLOOKUP('Blad 2 Indata'!$B$1,Data!$A$3:$AO$23,33)<>0,VLOOKUP('Blad 2 Indata'!$B$1,Data!$A$3:$AO$23,33),'Blad 6 Befolkningsförändringar'!D36+'Blad 6 Befolkningsförändringar'!D46)),0,IF(VLOOKUP('Blad 2 Indata'!$B$1,Data!$A$3:$AO$23,33)<>0,VLOOKUP('Blad 2 Indata'!$B$1,Data!$A$3:$AO$23,33),'Blad 6 Befolkningsförändringar'!D36+'Blad 6 Befolkningsförändringar'!D46)),0) -> 0 | D12: ='Blad 6 Befolkningsförändringar'!E36+'Blad 6 Befolkningsförändringar'!E46 -> 0 | E12: ='Blad 6 Befolkningsförändringar'!F36+'Blad 6 Befolkningsförändringar'!F46 -> 0 | F12: ='Blad 6 Befolkningsförändringar'!G36+'Blad 6 Befolkningsförändringar'!G46 -> 0 | G12: ='Blad 6 Befolkningsförändringar'!H36+'Blad 6 Befolkningsförändringar'!H46 -> 0 | H12: ='Blad 6 Befolkningsförändringar'!I36+'Blad 6 Befolkningsförändringar'!I46 -> 0 | I12: ='Blad 6 Befolkningsförändringar'!J36+'Blad 6 Befolkningsförändringar'!J46 -> 0 | J12: ='Blad 6 Befolkningsförändringar'!AA36 -> 0 | K12: ='Blad 6 Befolkningsförändringar'!AB36 -> 0 | L12: ='Blad 6 Befolkningsförändringar'!AC36 -> 0 | M12: ='Blad 6 Befolkningsförändringar'!AD36 -> 0 | N12: ='Blad 6 Befolkningsförändringar'!AE36 -> 0 | O12: ='Blad 6 Befolkningsförändringar'!AF36 -> 0 | P12: ='Blad 6 Befolkningsförändringar'!AG36 -> 0 | Q12: ='Blad 6 Befolkningsförändringar'!AH36 -> 0 | R12: ='Blad 6 Befolkningsförändringar'!AI36 -> 0 | S12: ='Blad 6 Befolkningsförändringar'!AJ36 -> 0 | T12: ='Blad 6 Befolkningsförändringar'!AK36 -> 0 | U12: ='Blad 6 Befolkningsförändringar'!AL36 -> 0 | V12: ='Blad 6 Befolkningsförändringar'!AM36 -> 0 | W12: ='Blad 6 Befolkningsförändringar'!AN36 -> 0 | X12: ='Blad 6 Befolkningsförändringar'!AO36 -> 0 | Y12: ='Blad 6 Befolkningsförändringar'!AP36 -> 0 | Z12: ='Blad 6 Befolkningsförändringar'!AQ36 -> 0 | AA12: ='Blad 6 Befolkningsförändringar'!AR36 -> 0 | AB12: ='Blad 6 Befolkningsförändringar'!AS36 -> 0 | AC12: ='Blad 6 Befolkningsförändringar'!AT36 -> 0 | AD12: ='Blad 6 Befolkningsförändringar'!AU36 -> 0 | AE12: ='Blad 6 Befolkningsförändringar'!AV36 -> 0 | AF12: ='Blad 6 Befolkningsförändringar'!AW36 -> 0 | AG12: ='Blad 6 Befolkningsförändringar'!AX36 -> 0 | AH12: ='Blad 6 Befolkningsförändringar'!AY36 -> 0 | AI12: ='Blad 6 Befolkningsförändringar'!AZ36 -> 0 | AJ12: ='Blad 6 Befolkningsförändringar'!BA36 -> 0 | AK12: ='Blad 6 Befolkningsförändringar'!BB36 -> 0 | AL12: ='Blad 6 Befolkningsförändringar'!BC36 -> 0 | AM12: ='Blad 6 Befolkningsförändringar'!BD36 -> 0 | AN12: ='Blad 6 Befolkningsförändringar'!BE36 -> 0 | AO12: ='Blad 6 Befolkningsförändringar'!BF36 -> 0 | AP12: ='Blad 6 Befolkningsförändringar'!BG36 -> 0 | AQ12: ='Blad 6 Befolkningsförändringar'!BH36 -> 0 | AR12: ='Blad 6 Befolkningsförändringar'!BI36 -> 0 | AS12: ='Blad 6 Befolkningsförändringar'!BJ36 -> 0 | AT12: ='Blad 6 Befolkningsförändringar'!BK36 -> 0 | AU12: ='Blad 6 Befolkningsförändringar'!BL36 -> 0 | AV12: ='Blad 6 Befolkningsförändringar'!BM36 -> 0 | AW12: ='Blad 6 Befolkningsförändringar'!BN36 -> 0 | AX12: ='Blad 6 Befolkningsförändringar'!BO36 -> 0 | AY12: ='Blad 6 Befolkningsförändringar'!BP36 -> 0 | AZ12: ='Blad 6 Befolkningsförändringar'!BQ36 -> 0 | BA12: ='Blad 6 Befolkningsförändringar'!BR36 -> 0 | BB12: ='Blad 6 Befolkningsförändringar'!BS36 -> 0 | BC12: ='Blad 6 Befolkningsförändringar'!BT36 -> 0 | BD12: ='Blad 6 Befolkningsförändringar'!BU36 -> 0 | BE12: ='Blad 6 Befolkningsförändringar'!BV36 -> 0 | BF12: ='Blad 6 Befolkningsförändringar'!BW36 -> 0 | BG12: ='Blad 6 Befolkningsförändringar'!BX36 -> 0 | BH12: ='Blad 6 Befolkningsförändringar'!BY36 -> 0 | BI12: ='Blad 6 Befolkningsförändringar'!BZ36 -> 0 | BJ12: ='Blad 6 Befolkningsförändringar'!CA36 -> 0 | BK12: ='Blad 6 Befolkningsförändringar'!CB36 -> 0 | BL12: ='Blad 6 Befolkningsförändringar'!CC36 -> 0 | BM12: ='Blad 6 Befolkningsförändringar'!CD36 -> 0 | BN12: ='Blad 6 Befolkningsförändringar'!CE36 -> 0 | BO12: ='Blad 6 Befolkningsförändringar'!CF36 -> 0 | BP12: ='Blad 6 Befolkningsförändringar'!CG36 -> 0 | BQ12: ='Blad 6 Befolkningsförändringar'!CH36 -> 0 | BR12: ='Blad 6 Befolkningsförändringar'!CI36 -> 0 | BS12: ='Blad 6 Befolkningsförändringar'!CJ36 -> 0 | BT12: ='Blad 6 Befolkningsförändringar'!CK36 -> 0 | BU12: ='Blad 6 Befolkningsförändringar'!CL36 -> 0 | BV12: ='Blad 6 Befolkningsförändringar'!CM36 -> 0 | BW12: ='Blad 6 Befolkningsförändringar'!CN36 -> 0 | BX12: ='Blad 6 Befolkningsförändringar'!CO36 -> 0 | BY12: ='Blad 6 Befolkningsförändringar'!CP36 -> 0 | BZ12: ='Blad 6 Befolkningsförändringar'!CQ36 -> 0 | CA12: ='Blad 6 Befolkningsförändringar'!CR36 -> 0 | CB12: ='Blad 6 Befolkningsförändringar'!CS36 -> 0 | CC12: ='Blad 6 Befolkningsförändringar'!CT36 -> 0 | CD12: ='Blad 6 Befolkningsförändringar'!CU36 -> 0 | CE12: ='Blad 6 Befolkningsförändringar'!CV36 -> 0 | CF12: ='Blad 6 Befolkningsförändringar'!CW36 -> 0 | CG12: ='Blad 6 Befolkningsförändringar'!CX36 -> 0 | CH12: ='Blad 6 Befolkningsförändringar'!CY36 -> 0 | CI12: ='Blad 6 Befolkningsförändringar'!CZ36 -> 0 | CJ12: ='Blad 6 Befolkningsförändringar'!DA36 -> 0 | CK12: ='Blad 6 Befolkningsförändringar'!DB36 -> 0 | CL12: ='Blad 6 Befolkningsförändringar'!DC36 -> 0 | CM12: ='Blad 6 Befolkningsförändringar'!DD36 -> 0 | CN12: ='Blad 6 Befolkningsförändringar'!DE36 -> 0 | CO12: ='Blad 6 Befolkningsförändringar'!DF36 -> 0 | CP12: ='Blad 6 Befolkningsförändringar'!DG36 -> 0 | CQ12: ='Blad 6 Befolkningsförändringar'!DH36 -> 0 | CR12: ='Blad 6 Befolkningsförändringar'!DI36 -> 0 | CS12: ='Blad 6 Befolkningsförändringar'!DJ36 -> 0 | CT12: ='Blad 6 Befolkningsförändringar'!DK36 -> 0 | CU12: ='Blad 6 Befolkningsförändringar'!DL36 -> 0 | CV12: ='Blad 6 Befolkningsförändringar'!DM36 -> 0 | CW12: ='Blad 6 Befolkningsförändringar'!DN36 -> 0 | CX12: ='Blad 6 Befolkningsförändringar'!DO36 -> 0 | CY12: ='Blad 6 Befolkningsförändringar'!DP36 -> 0 | CZ12: ='Blad 6 Befolkningsförändringar'!DQ36 -> 0 | DA12: ='Blad 6 Befolkningsförändringar'!DR36 -> 0 | DB12: ='Blad 6 Befolkningsförändringar'!DS36 -> 0 | DC12: ='Blad 6 Befolkningsförändringar'!DT36 -> 0 | DD12: ='Blad 6 Befolkningsförändringar'!DU36 -> 0 | DE12: ='Blad 6 Befolkningsförändringar'!DV36 -> 0 | DF12: ='Blad 6 Befolkningsförändringar'!DW36 -> 0 | DG12: ='Blad 6 Befolkningsförändringar'!DX36 -> 0 | DH12: ='Blad 6 Befolkningsförändringar'!DY36 -> 0 | DI12: ='Blad 6 Befolkningsförändringar'!DZ36 -> 0 | DJ12: ='Blad 6 Befolkningsförändringar'!EA36 -> 0 | DK12: ='Blad 6 Befolkningsförändringar'!EB36 -> 0 | DL12: ='Blad 6 Befolkningsförändringar'!EC36 -> 0 | DM12: ='Blad 6 Befolkningsförändringar'!ED36 -> 0 | DN12: ='Blad 6 Befolkningsförändringar'!EE36 -> 0 | DO12: ='Blad 6 Befolkningsförändringar'!EF36 -> 0 | DP12: ='Blad 6 Befolkningsförändringar'!EG36 -> 0 | DQ12: ='Blad 6 Befolkningsförändringar'!EH36 -> 0 | DR12: ='Blad 6 Befolkningsförändringar'!EI36 -> 0 | DS12: ='Blad 6 Befolkningsförändringar'!EJ36 -> 0 | DT12: ='Blad 6 Befolkningsförändringar'!EK36 -> 0 | DU12: ='Blad 6 Befolkningsförändringar'!EL36 -> 0 | DV12: ='Blad 6 Befolkningsförändringar'!EM36 -> 0 | DW12: ='Blad 6 Befolkningsförändringar'!EN36 -> 0 | DX12: ='Blad 6 Befolkningsförändringar'!EO36 -> 0 | DY12: ='Blad 6 Befolkningsförändringar'!EP36 -> 0 | DZ12: ='Blad 6 Befolkningsförändringar'!EQ36 -> 0 | EA12: ='Blad 6 Befolkningsförändringar'!ER36 -> 0 | EB12: ='Blad 6 Befolkningsförändringar'!ES36 -> 0 | EC12: ='Blad 6 Befolkningsförändringar'!ET36 -> 0 | ED12: ='Blad 6 Befolkningsförändringar'!EU36 -> 0 | EE12: ='Blad 6 Befolkningsförändringar'!EV36 -> 0 | EF12: ='Blad 6 Befolkningsförändringar'!EW36 -> 0 | EG12: ='Blad 6 Befolkningsförändringar'!EX36 -> 0 | EH12: ='Blad 6 Befolkningsförändringar'!EY36 -> 0 | EI12: ='Blad 6 Befolkningsförändringar'!EZ36 -> 0 | EJ12: ='Blad 6 Befolkningsförändringar'!FA36 -> 0 | EK12: ='Blad 6 Befolkningsförändringar'!FB36 -> 0 | EL12: ='Blad 6 Befolkningsförändringar'!FC36 -> 0 | EM12: ='Blad 6 Befolkningsförändringar'!FD36 -> 0 | EN12: ='Blad 6 Befolkningsförändringar'!FE36 -> 0 | EO12: ='Blad 6 Befolkningsförändringar'!FF36 -> 0 | EP12: ='Blad 6 Befolkningsförändringar'!FG36 -> 0 | EQ12: ='Blad 6 Befolkningsförändringar'!FH36 -> 0 | ER12: ='Blad 6 Befolkningsförändringar'!FI36 -> 0 | ES12: ='Blad 6 Befolkningsförändringar'!FJ36 -> 0 | ET12: ='Blad 6 Befolkningsförändringar'!FK36 -> 0 | EU12: ='Blad 6 Befolkningsförändringar'!FL36 -> 0 | EV12: ='Blad 6 Befolkningsförändringar'!FM36 -> 0 | EW12: ='Blad 6 Befolkningsförändringar'!FN36 -> 0 | EX12: ='Blad 6 Befolkningsförändringar'!FO36 -> 0 | EY12: ='Blad 6 Befolkningsförändringar'!FP36 -> 0 | EZ12: ='Blad 6 Befolkningsförändringar'!FQ36 -> 0 | FA12: ='Blad 6 Befolkningsförändringar'!FR36 -> 0 | FB12: ='Blad 6 Befolkningsförändringar'!FS36 -> 0 | FC12: ='Blad 6 Befolkningsförändringar'!FT36 -> 0 | FD12: ='Blad 6 Befolkningsförändringar'!FU36 -> 0 | FE12: ='Blad 6 Befolkningsförändringar'!FV36 -> 0 | FF12: ='Blad 6 Befolkningsförändringar'!FW36 -> 0 | FG12: ='Blad 6 Befolkningsförändringar'!FX36 -> 0 | FH12: ='Blad 6 Befolkningsförändringar'!FY36 -> 0 | FI12: ='Blad 6 Befolkningsförändringar'!FZ36 -> 0 | FJ12: ='Blad 6 Befolkningsförändringar'!GA36 -> 0 | FK12: ='Blad 6 Befolkningsförändringar'!GB36 -> 0 | FL12: ='Blad 6 Befolkningsförändringar'!GC36 -> 0 | FM12: ='Blad 6 Befolkningsförändringar'!GD36 -> 0 | FN12: ='Blad 6 Befolkningsförändringar'!GE36 -> 0 | FO12: ='Blad 6 Befolkningsförändringar'!GF36 -> 0 | FP12: ='Blad 6 Befolkningsförändringar'!GG36 -> 0 | FQ12: ='Blad 6 Befolkningsförändringar'!GH36 -> 0 | FR12: ='Blad 6 Befolkningsförändringar'!GI36 -> 0 | FS12: ='Blad 6 Befolkningsförändringar'!GJ36 -> 0 | FT12: ='Blad 6 Befolkningsförändringar'!GK36 -> 0 | FU12: ='Blad 6 Befolkningsförändringar'!GL36 -> 0 | FV12: ='Blad 6 Befolkningsförändringar'!GM36 -> 0 | FW12: ='Blad 6 Befolkningsförändringar'!GN36 -> 0 | FX12: ='Blad 6 Befolkningsförändringar'!GO36 -> 0 | FY12: ='Blad 6 Befolkningsförändringar'!GP36 -> 0 | FZ12: ='Blad 6 Befolkningsförändringar'!GQ36 -> 0 | GA12: ='Blad 6 Befolkningsförändringar'!GR36 -> 0 | GB12: ='Blad 6 Befolkningsförändringar'!GS36 -> 0 | GC12: ='Blad 6 Befolkningsförändringar'!GT36 -> 0 | GD12: ='Blad 6 Befolkningsförändringar'!GU36 -> 0 | GE12: ='Blad 6 Befolkningsförändringar'!GV36 -> 0 | GF12: ='Blad 6 Befolkningsförändringar'!GW36 -> 0 | GG12: ='Blad 6 Befolkningsförändringar'!GX36 -> 0 | GH12: ='Blad 6 Befolkningsförändringar'!GY36 -> 0 | GI12: ='Blad 6 Befolkningsförändringar'!GZ36 -> 0 | GJ12: ='Blad 6 Befolkningsförändringar'!HA36 -> 0 | GK12: ='Blad 6 Befolkningsförändringar'!HB36 -> 0 | GL12: ='Blad 6 Befolkningsförändringar'!HC36 -> 0 | GM12: ='Blad 6 Befolkningsförändringar'!HD36 -> 0 | GN12: ='Blad 6 Befolkningsförändringar'!HE36 -> 0 | GO12: ='Blad 6 Befolkningsförändringar'!HF36 -> 0 | GP12: ='Blad 6 Befolkningsförändringar'!HG36 -> 0 | GQ12: ='Blad 6 Befolkningsförändringar'!HH36 -> 0 | GR12: ='Blad 6 Befolkningsförändringar'!HI36 -> 0 | GS12: ='Blad 6 Befolkningsförändringar'!HJ36 -> 0 | GT12: ='Blad 6 Befolkningsförändringar'!HK36 -> 0 | GU12: ='Blad 6 Befolkningsförändringar'!HL36 -> 0 | GV12: ='Blad 6 Befolkningsförändringar'!HM36 -> 0 | GW12: ='Blad 6 Befolkningsförändringar'!HN36 -> 0 | GX12: ='Blad 6 Befolkningsförändringar'!HO36 -> 0 | GY12: ='Blad 6 Befolkningsförändringar'!HP36 -> 0 | GZ12: ='Blad 6 Befolkningsförändringar'!HQ36 -> 0 | HA12: ='Blad 6 Befolkningsförändringar'!HR36 -> 0 | HB12: ='Blad 6 Befolkningsförändringar'!HS36 -> 0 | HC12: ='Blad 6 Befolkningsförändringar'!HT36 -> 0 | HD12: ='Blad 6 Befolkningsförändringar'!HU36 -> 0 | HE12: ='Blad 6 Befolkningsförändringar'!HV36 -> 0 | HF12: ='Blad 6 Befolkningsförändringar'!HW36 -> 0 | HG12: ='Blad 6 Befolkningsförändringar'!HX36 -> 0 | HH12: ='Blad 6 Befolkningsförändringar'!HY36 -> 0 | HI12: ='Blad 6 Befolkningsförändringar'!HZ36 -> 0 | HJ12: ='Blad 6 Befolkningsförändringar'!IA36 -> 0 | HK12: ='Blad 6 Befolkningsförändringar'!IB36 -> 0 | HL12: ='Blad 6 Befolkningsförändringar'!IC36 -> 0 | HM12: ='Blad 6 Befolkningsförändringar'!ID36 -> 0 | HN12: ='Blad 6 Befolkningsförändringar'!IE36 -> 0 | HO12: ='Blad 6 Befolkningsförändringar'!IF36 -> 0 | HP12: ='Blad 6 Befolkningsförändringar'!IG36 -> 0 | HQ12: ='Blad 6 Befolkningsförändringar'!IH36 -> 0 | HR12: ='Blad 6 Befolkningsförändringar'!II36 -> 0 | HS12: ='Blad 6 Befolkningsförändringar'!IJ36 -> 0 | HT12: ='Blad 6 Befolkningsförändringar'!IK36 -> 0 | HU12: ='Blad 6 Befolkningsförändringar'!IL36 -> 0 | HV12: ='Blad 6 Befolkningsförändringar'!IM36 -> 0 | HW12: ='Blad 6 Befolkningsförändringar'!IN36 -> 0 | HX12: ='Blad 6 Befolkningsförändringar'!IO36 -> 0 | HY12: ='Blad 6 Befolkningsförändringar'!IP36 -> 0 | HZ12: ='Blad 6 Befolkningsförändringar'!IQ36 -> 0 | IA12: ='Blad 6 Befolkningsförändringar'!IR36 -> 0 | IB12: ='Blad 6 Befolkningsförändringar'!IS36 -> 0 | IC12: ='Blad 6 Befolkningsförändringar'!IT36 -> 0 | ID12: ='Blad 6 Befolkningsförändringar'!IU36 -> 0 | IE12: ='Blad 6 Befolkningsförändringar'!IV36 -> 0 | IF12: ='Blad 6 Befolkningsförändringar'!#REF! -> 
A13: Finansiering befolkningsförändringar | B13: =-'Blad 2 Indata'!C77 -> -82 | C13: =-'Blad 2 Indata'!D77 -> -77.83891891 | D13: =-'Blad 2 Indata'!E77 -> -76.21534111 | E13: =-'Blad 2 Indata'!F77 -> -74.96975758 | F13: =-'Blad 2 Indata'!G77 -> -77.13618943 | G13: =-'Blad 2 Indata'!H77 -> -71.00587433 | H13: =-'Blad 2 Indata'!I77 -> -65.11939806 | I13: =-'Blad 2 Indata'!J77 -> -59.55165775
A14: Kollektivtrafik | B14: =IF(ISERROR(VLOOKUP('Blad 2 Indata'!$B$1,Data!$A$3:$AO$23,32)),0,VLOOKUP('Blad 2 Indata'!$B$1,Data!$A$3:$AO$23,32)) -> 0 | C14: =IF('Blad 2 Indata'!D69<>0,VLOOKUP('Blad 2 Indata'!$B$1,Data!$A$3:$AO$23,37),B14*(1+C8/100)) -> 0 | D14: =C14*(1+D8/100) -> 0 | E14: 0 | F14: 0 | G14: 0 | H14: 0 | I14: 0
A15: Totalt | B15: =B11+B12+B13+B14 -> -82 | C15: =C11+C12+C13+C14 -> -77.83891891 | D15: =D11+D12+D13+D14 -> -76.21534111 | E15: -74.96975758 | F15: -77.13618943 | G15: -71.00587433 | H15: -65.11939806 | I15: -59.55165775
A117: Befolkningsuppgifter riket
A119: Män 0 år
A120: Kvinnor 0 år
A121: Män 1-4 år
A122: Kvinnor 1-4 år
A123: Män 5-9 år
A124: Kvinnor 5-9 år
A125: Män 10-14 år
A126: Kvinnor 10-14 år
A127: Män 15-19 år
A128: Kvinnor 15-19 år
A129: Män 20-24 år
A130: Kvinnor 20-24 år
A131: Män 25-29 år
A132: Kvinnor 25-29 år
A133: Män 30-39 år
A134: Kvinnor 30-39 år
A135: Män 40-49 år
A136: Kvinnor 40-49 år
A137: Män 50-59 år
A138: Kvinnor 50-59 år
A139: Män 60-69 år
A140: Kvinnor 60-69 år
A141: Män 70-74 år
A142: Kvinnor 70-74 år
A143: Män 75-79 år
A144: Kvinnor 75-79 år
A145: Män 80-89 år
A146: Kvinnor 80-89 år
A147: Män 90+ år
A148: Kvinnor 90+ år

Sheet Blad 5 Strukturbidrag (hidden)
A1: Strukturbidrag | B1: ='Blad 2 Indata'!B1 -> 0
A2: Kronor per invånare
E4: ='Blad 1 Totala intäkter'!B9 -> 2024 | F4: ='Blad 1 Totala intäkter'!C9 -> 2025 | G4: ='Blad 1 Totala intäkter'!D9 -> 2026 | H4: ='Blad 1 Totala intäkter'!E9 -> 2027 | I4: ='Blad 1 Totala intäkter'!F9 -> 2028 | J4: ='Blad 1 Totala intäkter'!G9 -> 2029 | K4: ='Blad 1 Totala intäkter'!H9 -> 2030 | L4: ='Blad 1 Totala intäkter'!I9 -> 2031
A7: Strukturbidrag | E7: =IF(ISERROR(VLOOKUP('Blad 2 Indata'!$B$1,Data!$A$2:$BT$28,54)),0,(VLOOKUP('Blad 2 Indata'!$B$1,Data!$A$2:BW$28,54))) -> 0 | F7: =IF(ISERROR(VLOOKUP('Blad 2 Indata'!$B$1,Data!$A$2:$BT$28,54)),0,(VLOOKUP('Blad 2 Indata'!$B$1,Data!$A$2:BX$28,54))) -> 0 | G7: =IF(ISERROR(VLOOKUP('Blad 2 Indata'!$B$1,Data!$A$2:$BT$28,54)),0,(VLOOKUP('Blad 2 Indata'!$B$1,Data!$A$2:BY$28,54))) -> 0 | H7: =IF(ISERROR(VLOOKUP('Blad 2 Indata'!$B$1,Data!$A$2:$BT$28,54)),0,(VLOOKUP('Blad 2 Indata'!$B$1,Data!$A$2:BZ$28,54))) -> 0 | I7: =IF(ISERROR(VLOOKUP('Blad 2 Indata'!$B$1,Data!$A$2:$BT$28,54)),0,(VLOOKUP('Blad 2 Indata'!$B$1,Data!$A$2:CA$28,54))) -> 0 | J7: =IF(ISERROR(VLOOKUP('Blad 2 Indata'!$B$1,Data!$A$2:$BT$28,54)),0,(VLOOKUP('Blad 2 Indata'!$B$1,Data!$A$2:CB$28,54))) -> 0 | K7: =IF(ISERROR(VLOOKUP('Blad 2 Indata'!$B$1,Data!$A$2:$BT$28,54)),0,(VLOOKUP('Blad 2 Indata'!$B$1,Data!$A$2:CC$28,54))) -> 0 | L7: =IF(ISERROR(VLOOKUP('Blad 2 Indata'!$B$1,Data!$A$2:$BT$28,54)),0,(VLOOKUP('Blad 2 Indata'!$B$1,Data!$A$2:CD$28,54))) -> 0
A10: Införandebidrag
A11: Införandebidrag avseende 2014 års förändring | E11: 0 | F11: 0 | G11: 0 | H11: 0 | I11: 0 | J11: 0 | K11: 0 | L11: 0
A12: Införandebidrag 2020-2022 p.g.a. ny kostnadsutjämning | E12: =IF(ISERROR(VLOOKUP('Blad 2 Indata'!$B$1,Data!$A$2:$BT$28,56)),0,(VLOOKUP('Blad 2 Indata'!$B$1,Data!$A$2:$BT$28,56))) -> 0 | F12: =IF(ISERROR(VLOOKUP('Blad 2 Indata'!$B$1,Data!$A$2:$BT$28,57)),0,(VLOOKUP('Blad 2 Indata'!$B$1,Data!$A$2:$BT$28,57))) -> 0 | G12: 0 | H12: 0 | I12: 0 | J12: 0 | K12: 0 | L12: 0
A13: Summa införandebidrag | E13: =E11+E12 -> 0 | F13: 0 | G13: 0 | H13: 0 | I13: 0 | J13: 0 | K13: 0 | L13: 0

Sheet Blad 6 Befolkningsförändringar (hidden)
A1: Befolkningsförändringar
B3: ='Blad 1 Totala intäkter'!B9-1 -> 2023 | C3: =B3+1 -> 2024 | D3: 2025 | E3: 2026 | F3: 2027 | G3: 2028 | H3: 2029 | I3: 2030 | J3: 2031
A5: Ersättning för eftersläpning
A6: Folkmängd 1 nov
A7: året innan | B7: ='Blad 2 Indata'!B31 -> 0 | C7: ='Blad 2 Indata'!C31 -> 0 | D7: =IF('Blad 2 Indata'!$O$4=1,'Blad 2 Indata'!D32,'Blad 2 Indata'!D33) -> 0 | E7: =IF('Blad 2 Indata'!$O$4=1,'Blad 2 Indata'!E32,'Blad 2 Indata'!E33) -> 0 | F7: =IF('Blad 2 Indata'!$O$4=1,'Blad 2 Indata'!F32,'Blad 2 Indata'!F33) -> 0 | G7: =IF('Blad 2 Indata'!$O$4=1,'Blad 2 Indata'!G32,'Blad 2 Indata'!G33) -> 0 | H7: =IF('Blad 2 Indata'!$O$4=1,'Blad 2 Indata'!H32,'Blad 2 Indata'!H33) -> 0 | I7: =IF('Blad 2 Indata'!$O$4=1,'Blad 2 Indata'!I32,'Blad 2 Indata'!I33) -> 0 | J7: =IF('Blad 2 Indata'!$O$4=1,'Blad 2 Indata'!J32,'Blad 2 Indata'!J33) -> 0
A8: 2 år innan | B8: ='Blad 2 Indata'!E72 -> 0 | C8: =B7 -> 0 | D8: 0 | E8: 0 | F8: 0 | G8: 0 | H8: 0 | I8: 0 | J8: 0
A9: 3 år innan | B9: ='Blad 2 Indata'!D72 -> 0 | C9: =B8 -> 0 | D9: =C8 -> 0 | E9: 0 | F9: 0 | G9: 0 | H9: 0 | I9: 0 | J9: 0
A10: 4 år innan | B10: ='Blad 2 Indata'!C72 -> 0 | C10: 0 | D10: 0 | E10: =D9 -> 0 | F10: 0 | G10: 0 | H10: =G9 -> 0 | I10: 0 | J10: 0
A11: 5 år innan | B11: ='Blad 2 Indata'!B72 -> 0 | C11: 0 | D11: 0 | E11: 0 | F11: 0 | G11: 0 | H11: 0 | I11: 0 | J11: 0
A13: Procentuell förändring
C14: =IF(ISERROR(B7/B8-1),0,(B7/B8-1)) -> 0 | D14: =IF(ISERROR(C7/C8-1),0,(C7/C8-1)) -> 0 | E14: 0 | F14: 0 | G14: 0 | H14: 0 | I14: 0 | J14: 0
C15: 0 | D15: =IF(ISERROR(C8/C9-1),0,(C8/C9-1)) -> 0 | E15: 0 | F15: =IF(ISERROR(E8/E9-1),0,(E8/E9-1)) -> 0 | G15: 0 | H15: 0 | I15: =IF(ISERROR(H8/H9-1),0,(H8/H9-1)) -> 0 | J15: 0
C16: 0 | D16: 0 | E16: 0 | F16: 0 | G16: 0 | H16: 0 | I16: 0 | J16: 0
C17: =IF(ISERROR(B10/B11-1),0,(B10/B11-1)) -> 0 | D17: =IF(ISERROR(C10/C11-1),0,(C10/C11-1)) -> 0 | E17: =IF(ISERROR(D10/D11-1),0,(D10/D11-1)) -> 0 | F17: 0 | G17: =IF(ISERROR(F10/F11-1),0,(F10/F11-1)) -> 0 | H17: 0 | I17: 0 | J17: 0
A19: Genomsnitt på 5 år | C19: =PRODUCT(1+C14:C17)^(1/4)-1 -> 0 | D19: =PRODUCT(1+D14:D17)^(1/4)-1 -> 0 | E19: =PRODUCT(1+E14:E17)^(1/4)-1 -> 0 | F19: =PRODUCT(1+F14:F17)^(1/4)-1 -> 0 | G19: =PRODUCT(1+G14:G17)^(1/4)-1 -> 0 | H19: =PRODUCT(1+H14:H17)^(1/4)-1 -> 0 | I19: =PRODUCT(1+I14:I17)^(1/4)-1 -> 0 | J19: =PRODUCT(1+J14:J17)^(1/4)-1 -> 0
A21: Gräns på 5 år | B21: 0.012
A23: Procentuell förändring nov - nov | C23: =IF(ISERROR(C7/C8-1),0,(C7/C8-1)) -> 0 | D23: 0 | E23: 0 | F23: 0 | G23: 0 | H23: 0 | I23: 0 | J23: 0
A25: Gräns, nov - nov | B25: 0.012
A27: Antal ersatta personer | D27: =IF(D19>$B$21,IF(D23>$B$25,(D7-D8)-D8*($B$25),0),0) -> 0 | E27: 0 | F27: 0 | G27: 0 | H27: 0 | I27: 0 | J27: =IF(J19>$B$21,IF(J23>$B$25,(J7-J8)-J8*($B$25),0),0) -> 0
A30: Utbetalat året innan, tkr | D30: =ROUND(('Blad 1 Totala intäkter'!K14+'Blad 1 Totala intäkter'!K16+'Blad 1 Totala intäkter'!K18+'Blad 1 Totala intäkter'!K20+'Blad 1 Totala intäkter'!K22)*C7/1000,3) -> 0 | E30: =('Blad 1 Totala intäkter'!L14+'Blad 1 Totala intäkter'!L16+'Blad 1 Totala intäkter'!L18+'Blad 1 Totala intäkter'!L20+'Blad 1 Totala intäkter'!L22)*D7/1000 -> 0 | F30: =('Blad 1 Totala intäkter'!M14+'Blad 1 Totala intäkter'!M16+'Blad 1 Totala intäkter'!M18+'Blad 1 Totala intäkter'!M20+'Blad 1 Totala intäkter'!M22)*E7/1000 -> 0 | G30: =('Blad 1 Totala intäkter'!N14+'Blad 1 Totala intäkter'!N16+'Blad 1 Totala intäkter'!N18+'Blad 1 Totala intäkter'!N20+'Blad 1 Totala intäkter'!N22)*F7/1000 -> 0 | H30: =('Blad 1 Totala intäkter'!O14+'Blad 1 Totala intäkter'!O16+'Blad 1 Totala intäkter'!O18+'Blad 1 Totala intäkter'!O20+'Blad 1 Totala intäkter'!O22)*G7/1000 -> 0 | I30: =('Blad 1 Totala intäkter'!P14+'Blad 1 Totala intäkter'!P16+'Blad 1 Totala intäkter'!P18+'Blad 1 Totala intäkter'!P20+'Blad 1 Totala intäkter'!P22)*H7/1000 -> 0 | J30: =('Blad 1 Totala intäkter'!Q14+'Blad 1 Totala intäkter'!Q16+'Blad 1 Totala intäkter'!Q18+'Blad 1 Totala intäkter'!Q20+'Blad 1 Totala intäkter'!Q22)*I7/1000 -> 0 | AA30: =('Blad 1 Totala intäkter'!#REF!+'Blad 1 Totala intäkter'!#REF!+'Blad 1 Totala intäkter'!#REF!+'Blad 1 Totala intäkter'!#REF!+'Blad 1 Totala intäkter'!#REF!)*Z7/1000 ->  | AB30: =('Blad 1 Totala intäkter'!S14+'Blad 1 Totala intäkter'!S18+'Blad 1 Totala intäkter'!S16+'Blad 1 Totala intäkter'!S20+'Blad 1 Totala intäkter'!S22)*AA7/1000 ->  | AC30: =('Blad 1 Totala intäkter'!T14+'Blad 1 Totala intäkter'!T18+'Blad 1 Totala intäkter'!T16+'Blad 1 Totala intäkter'!T20+'Blad 1 Totala intäkter'!T22)*AB7/1000 ->  | AD30: =('Blad 1 Totala intäkter'!U14+'Blad 1 Totala intäkter'!U18+'Blad 1 Totala intäkter'!U16+'Blad 1 Totala intäkter'!U20+'Blad 1 Totala intäkter'!U22)*AC7/1000 ->  | AE30: =('Blad 1 Totala intäkter'!V14+'Blad 1 Totala intäkter'!V18+'Blad 1 Totala intäkter'!V16+'Blad 1 Totala intäkter'!V20+'Blad 1 Totala intäkter'!V22)*AD7/1000 ->  | AF30: =('Blad 1 Totala intäkter'!W14+'Blad 1 Totala intäkter'!W18+'Blad 1 Totala intäkter'!W16+'Blad 1 Totala intäkter'!W20+'Blad 1 Totala intäkter'!W22)*AE7/1000 ->  | AG30: =('Blad 1 Totala intäkter'!X14+'Blad 1 Totala intäkter'!X18+'Blad 1 Totala intäkter'!X16+'Blad 1 Totala intäkter'!X20+'Blad 1 Totala intäkter'!X22)*AF7/1000 ->  | AH30: =('Blad 1 Totala intäkter'!Y14+'Blad 1 Totala intäkter'!Y18+'Blad 1 Totala intäkter'!Y16+'Blad 1 Totala intäkter'!Y20+'Blad 1 Totala intäkter'!Y22)*AG7/1000 ->  | AI30: =('Blad 1 Totala intäkter'!Z14+'Blad 1 Totala intäkter'!Z18+'Blad 1 Totala intäkter'!Z16+'Blad 1 Totala intäkter'!Z20+'Blad 1 Totala intäkter'!Z22)*AH7/1000 ->  | AJ30: =('Blad 1 Totala intäkter'!AA14+'Blad 1 Totala intäkter'!AA18+'Blad 1 Totala intäkter'!AA16+'Blad 1 Totala intäkter'!AA20+'Blad 1 Totala intäkter'!AA22)*AI7/1000 ->  | AK30: =('Blad 1 Totala intäkter'!AB14+'Blad 1 Totala intäkter'!AB18+'Blad 1 Totala intäkter'!AB16+'Blad 1 Totala intäkter'!AB20+'Blad 1 Totala intäkter'!AB22)*AJ7/1000 ->  | AL30: =('Blad 1 Totala intäkter'!AC14+'Blad 1 Totala intäkter'!AC18+'Blad 1 Totala intäkter'!AC16+'Blad 1 Totala intäkter'!AC20+'Blad 1 Totala intäkter'!AC22)*AK7/1000 ->  | AM30: =('Blad 1 Totala intäkter'!AD14+'Blad 1 Totala intäkter'!AD18+'Blad 1 Totala intäkter'!AD16+'Blad 1 Totala intäkter'!AD20+'Blad 1 Totala intäkter'!AD22)*AL7/1000 ->  | AN30: =('Blad 1 Totala intäkter'!AE14+'Blad 1 Totala intäkter'!AE18+'Blad 1 Totala intäkter'!AE16+'Blad 1 Totala intäkter'!AE20+'Blad 1 Totala intäkter'!AE22)*AM7/1000 ->  | AO30: =('Blad 1 Totala intäkter'!AF14+'Blad 1 Totala intäkter'!AF18+'Blad 1 Totala intäkter'!AF16+'Blad 1 Totala intäkter'!AF20+'Blad 1 Totala intäkter'!AF22)*AN7/1000 ->  | AP30: =('Blad 1 Totala intäkter'!AG14+'Blad 1 Totala intäkter'!AG18+'Blad 1 Totala intäkter'!AG16+'Blad 1 Totala intäkter'!AG20+'Blad 1 Totala intäkter'!AG22)*AO7/1000 ->  | AQ30: =('Blad 1 Totala intäkter'!AH14+'Blad 1 Totala intäkter'!AH18+'Blad 1 Totala intäkter'!AH16+'Blad 1 Totala intäkter'!AH20+'Blad 1 Totala intäkter'!AH22)*AP7/1000 ->  | AR30: =('Blad 1 Totala intäkter'!AI14+'Blad 1 Totala intäkter'!AI18+'Blad 1 Totala intäkter'!AI16+'Blad 1 Totala intäkter'!AI20+'Blad 1 Totala intäkter'!AI22)*AQ7/1000 ->  | AS30: =('Blad 1 Totala intäkter'!AJ14+'Blad 1 Totala intäkter'!AJ18+'Blad 1 Totala intäkter'!AJ16+'Blad 1 Totala intäkter'!AJ20+'Blad 1 Totala intäkter'!AJ22)*AR7/1000 ->  | AT30: =('Blad 1 Totala intäkter'!AK14+'Blad 1 Totala intäkter'!AK18+'Blad 1 Totala intäkter'!AK16+'Blad 1 Totala intäkter'!AK20+'Blad 1 Totala intäkter'!AK22)*AS7/1000 ->  | AU30: =('Blad 1 Totala intäkter'!AL14+'Blad 1 Totala intäkter'!AL18+'Blad 1 Totala intäkter'!AL16+'Blad 1 Totala intäkter'!AL20+'Blad 1 Totala intäkter'!AL22)*AT7/1000 ->  | AV30: =('Blad 1 Totala intäkter'!AM14+'Blad 1 Totala intäkter'!AM18+'Blad 1 Totala intäkter'!AM16+'Blad 1 Totala intäkter'!AM20+'Blad 1 Totala intäkter'!AM22)*AU7/1000 ->  | AW30: =('Blad 1 Totala intäkter'!AN14+'Blad 1 Totala intäkter'!AN18+'Blad 1 Totala intäkter'!AN16+'Blad 1 Totala intäkter'!AN20+'Blad 1 Totala intäkter'!AN22)*AV7/1000 ->  | AX30: =('Blad 1 Totala intäkter'!AO14+'Blad 1 Totala intäkter'!AO18+'Blad 1 Totala intäkter'!AO16+'Blad 1 Totala intäkter'!AO20+'Blad 1 Totala intäkter'!AO22)*AW7/1000 ->  | AY30: =('Blad 1 Totala intäkter'!AP14+'Blad 1 Totala intäkter'!AP18+'Blad 1 Totala intäkter'!AP16+'Blad 1 Totala intäkter'!AP20+'Blad 1 Totala intäkter'!AP22)*AX7/1000 ->  | AZ30: =('Blad 1 Totala intäkter'!AQ14+'Blad 1 Totala intäkter'!AQ18+'Blad 1 Totala intäkter'!AQ16+'Blad 1 Totala intäkter'!AQ20+'Blad 1 Totala intäkter'!AQ22)*AY7/1000 ->  | BA30: =('Blad 1 Totala intäkter'!AR14+'Blad 1 Totala intäkter'!AR18+'Blad 1 Totala intäkter'!AR16+'Blad 1 Totala intäkter'!AR20+'Blad 1 Totala intäkter'!AR22)*AZ7/1000 ->  | BB30: =('Blad 1 Totala intäkter'!AS14+'Blad 1 Totala intäkter'!AS18+'Blad 1 Totala intäkter'!AS16+'Blad 1 Totala intäkter'!AS20+'Blad 1 Totala intäkter'!AS22)*BA7/1000 ->  | BC30: =('Blad 1 Totala intäkter'!AT14+'Blad 1 Totala intäkter'!AT18+'Blad 1 Totala intäkter'!AT16+'Blad 1 Totala intäkter'!AT20+'Blad 1 Totala intäkter'!AT22)*BB7/1000 ->  | BD30: =('Blad 1 Totala intäkter'!AU14+'Blad 1 Totala intäkter'!AU18+'Blad 1 Totala intäkter'!AU16+'Blad 1 Totala intäkter'!AU20+'Blad 1 Totala intäkter'!AU22)*BC7/1000 ->  | BE30: =('Blad 1 Totala intäkter'!AV14+'Blad 1 Totala intäkter'!AV18+'Blad 1 Totala intäkter'!AV16+'Blad 1 Totala intäkter'!AV20+'Blad 1 Totala intäkter'!AV22)*BD7/1000 ->  | BF30: =('Blad 1 Totala intäkter'!AW14+'Blad 1 Totala intäkter'!AW18+'Blad 1 Totala intäkter'!AW16+'Blad 1 Totala intäkter'!AW20+'Blad 1 Totala intäkter'!AW22)*BE7/1000 ->  | BG30: =('Blad 1 Totala intäkter'!AX14+'Blad 1 Totala intäkter'!AX18+'Blad 1 Totala intäkter'!AX16+'Blad 1 Totala intäkter'!AX20+'Blad 1 Totala intäkter'!AX22)*BF7/1000 ->  | BH30: =('Blad 1 Totala intäkter'!AY14+'Blad 1 Totala intäkter'!AY18+'Blad 1 Totala intäkter'!AY16+'Blad 1 Totala intäkter'!AY20+'Blad 1 Totala intäkter'!AY22)*BG7/1000 ->  | BI30: =('Blad 1 Totala intäkter'!AZ14+'Blad 1 Totala intäkter'!AZ18+'Blad 1 Totala intäkter'!AZ16+'Blad 1 Totala intäkter'!AZ20+'Blad 1 Totala intäkter'!AZ22)*BH7/1000 ->  | BJ30: =('Blad 1 Totala intäkter'!BA14+'Blad 1 Totala intäkter'!BA18+'Blad 1 Totala intäkter'!BA16+'Blad 1 Totala intäkter'!BA20+'Blad 1 Totala intäkter'!BA22)*BI7/1000 ->  | BK30: =('Blad 1 Totala intäkter'!BB14+'Blad 1 Totala intäkter'!BB18+'Blad 1 Totala intäkter'!BB16+'Blad 1 Totala intäkter'!BB20+'Blad 1 Totala intäkter'!BB22)*BJ7/1000 ->  | BL30: =('Blad 1 Totala intäkter'!BC14+'Blad 1 Totala intäkter'!BC18+'Blad 1 Totala intäkter'!BC16+'Blad 1 Totala intäkter'!BC20+'Blad 1 Totala intäkter'!BC22)*BK7/1000 ->  | BM30: =('Blad 1 Totala intäkter'!BD14+'Blad 1 Totala intäkter'!BD18+'Blad 1 Totala intäkter'!BD16+'Blad 1 Totala intäkter'!BD20+'Blad 1 Totala intäkter'!BD22)*BL7/1000 ->  | BN30: =('Blad 1 Totala intäkter'!BE14+'Blad 1 Totala intäkter'!BE18+'Blad 1 Totala intäkter'!BE16+'Blad 1 Totala intäkter'!BE20+'Blad 1 Totala intäkter'!BE22)*BM7/1000 ->  | BO30: =('Blad 1 Totala intäkter'!BF14+'Blad 1 Totala intäkter'!BF18+'Blad 1 Totala intäkter'!BF16+'Blad 1 Totala intäkter'!BF20+'Blad 1 Totala intäkter'!BF22)*BN7/1000 ->  | BP30: =('Blad 1 Totala intäkter'!BG14+'Blad 1 Totala intäkter'!BG18+'Blad 1 Totala intäkter'!BG16+'Blad 1 Totala intäkter'!BG20+'Blad 1 Totala intäkter'!BG22)*BO7/1000 ->  | BQ30: =('Blad 1 Totala intäkter'!BH14+'Blad 1 Totala intäkter'!BH18+'Blad 1 Totala intäkter'!BH16+'Blad 1 Totala intäkter'!BH20+'Blad 1 Totala intäkter'!BH22)*BP7/1000 ->  | BR30: =('Blad 1 Totala intäkter'!BI14+'Blad 1 Totala intäkter'!BI18+'Blad 1 Totala intäkter'!BI16+'Blad 1 Totala intäkter'!BI20+'Blad 1 Totala intäkter'!BI22)*BQ7/1000 ->  | BS30: =('Blad 1 Totala intäkter'!BJ14+'Blad 1 Totala intäkter'!BJ18+'Blad 1 Totala intäkter'!BJ16+'Blad 1 Totala intäkter'!BJ20+'Blad 1 Totala intäkter'!BJ22)*BR7/1000 ->  | BT30: =('Blad 1 Totala intäkter'!BK14+'Blad 1 Totala intäkter'!BK18+'Blad 1 Totala intäkter'!BK16+'Blad 1 Totala intäkter'!BK20+'Blad 1 Totala intäkter'!BK22)*BS7/1000 ->  | BU30: =('Blad 1 Totala intäkter'!BL14+'Blad 1 Totala intäkter'!BL18+'Blad 1 Totala intäkter'!BL16+'Blad 1 Totala intäkter'!BL20+'Blad 1 Totala intäkter'!BL22)*BT7/1000 ->  | BV30: =('Blad 1 Totala intäkter'!BM14+'Blad 1 Totala intäkter'!BM18+'Blad 1 Totala intäkter'!BM16+'Blad 1 Totala intäkter'!BM20+'Blad 1 Totala intäkter'!BM22)*BU7/1000 ->  | BW30: =('Blad 1 Totala intäkter'!BN14+'Blad 1 Totala intäkter'!BN18+'Blad 1 Totala intäkter'!BN16+'Blad 1 Totala intäkter'!BN20+'Blad 1 Totala intäkter'!BN22)*BV7/1000 ->  | BX30: =('Blad 1 Totala intäkter'!BO14+'Blad 1 Totala intäkter'!BO18+'Blad 1 Totala intäkter'!BO16+'Blad 1 Totala intäkter'!BO20+'Blad 1 Totala intäkter'!BO22)*BW7/1000 ->  | BY30: =('Blad 1 Totala intäkter'!BP14+'Blad 1 Totala intäkter'!BP18+'Blad 1 Totala intäkter'!BP16+'Blad 1 Totala intäkter'!BP20+'Blad 1 Totala intäkter'!BP22)*BX7/1000 ->  | BZ30: =('Blad 1 Totala intäkter'!BQ14+'Blad 1 Totala intäkter'!BQ18+'Blad 1 Totala intäkter'!BQ16+'Blad 1 Totala intäkter'!BQ20+'Blad 1 Totala intäkter'!BQ22)*BY7/1000 ->  | CA30: =('Blad 1 Totala intäkter'!BR14+'Blad 1 Totala intäkter'!BR18+'Blad 1 Totala intäkter'!BR16+'Blad 1 Totala intäkter'!BR20+'Blad 1 Totala intäkter'!BR22)*BZ7/1000 ->  | CB30: =('Blad 1 Totala intäkter'!BS14+'Blad 1 Totala intäkter'!BS18+'Blad 1 Totala intäkter'!BS16+'Blad 1 Totala intäkter'!BS20+'Blad 1 Totala intäkter'!BS22)*CA7/1000 ->  | CC30: =('Blad 1 Totala intäkter'!BT14+'Blad 1 Totala intäkter'!BT18+'Blad 1 Totala intäkter'!BT16+'Blad 1 Totala intäkter'!BT20+'Blad 1 Totala intäkter'!BT22)*CB7/1000 ->  | CD30: =('Blad 1 Totala intäkter'!BU14+'Blad 1 Totala intäkter'!BU18+'Blad 1 Totala intäkter'!BU16+'Blad 1 Totala intäkter'!BU20+'Blad 1 Totala intäkter'!BU22)*CC7/1000 ->  | CE30: =('Blad 1 Totala intäkter'!BV14+'Blad 1 Totala intäkter'!BV18+'Blad 1 Totala intäkter'!BV16+'Blad 1 Totala intäkter'!BV20+'Blad 1 Totala intäkter'!BV22)*CD7/1000 ->  | CF30: =('Blad 1 Totala intäkter'!BW14+'Blad 1 Totala intäkter'!BW18+'Blad 1 Totala intäkter'!BW16+'Blad 1 Totala intäkter'!BW20+'Blad 1 Totala intäkter'!BW22)*CE7/1000 ->  | CG30: =('Blad 1 Totala intäkter'!BX14+'Blad 1 Totala intäkter'!BX18+'Blad 1 Totala intäkter'!BX16+'Blad 1 Totala intäkter'!BX20+'Blad 1 Totala intäkter'!BX22)*CF7/1000 ->  | CH30: =('Blad 1 Totala intäkter'!BY14+'Blad 1 Totala intäkter'!BY18+'Blad 1 Totala intäkter'!BY16+'Blad 1 Totala intäkter'!BY20+'Blad 1 Totala intäkter'!BY22)*CG7/1000 ->  | CI30: =('Blad 1 Totala intäkter'!BZ14+'Blad 1 Totala intäkter'!BZ18+'Blad 1 Totala intäkter'!BZ16+'Blad 1 Totala intäkter'!BZ20+'Blad 1 Totala intäkter'!BZ22)*CH7/1000 ->  | CJ30: =('Blad 1 Totala intäkter'!CA14+'Blad 1 Totala intäkter'!CA18+'Blad 1 Totala intäkter'!CA16+'Blad 1 Totala intäkter'!CA20+'Blad 1 Totala intäkter'!CA22)*CI7/1000 ->  | CK30: =('Blad 1 Totala intäkter'!CB14+'Blad 1 Totala intäkter'!CB18+'Blad 1 Totala intäkter'!CB16+'Blad 1 Totala intäkter'!CB20+'Blad 1 Totala intäkter'!CB22)*CJ7/1000 ->  | CL30: =('Blad 1 Totala intäkter'!CC14+'Blad 1 Totala intäkter'!CC18+'Blad 1 Totala intäkter'!CC16+'Blad 1 Totala intäkter'!CC20+'Blad 1 Totala intäkter'!CC22)*CK7/1000 ->  | CM30: =('Blad 1 Totala intäkter'!CD14+'Blad 1 Totala intäkter'!CD18+'Blad 1 Totala intäkter'!CD16+'Blad 1 Totala intäkter'!CD20+'Blad 1 Totala intäkter'!CD22)*CL7/1000 ->  | CN30: =('Blad 1 Totala intäkter'!CE14+'Blad 1 Totala intäkter'!CE18+'Blad 1 Totala intäkter'!CE16+'Blad 1 Totala intäkter'!CE20+'Blad 1 Totala intäkter'!CE22)*CM7/1000 ->  | CO30: =('Blad 1 Totala intäkter'!CF14+'Blad 1 Totala intäkter'!CF18+'Blad 1 Totala intäkter'!CF16+'Blad 1 Totala intäkter'!CF20+'Blad 1 Totala intäkter'!CF22)*CN7/1000 ->  | CP30: =('Blad 1 Totala intäkter'!CG14+'Blad 1 Totala intäkter'!CG18+'Blad 1 Totala intäkter'!CG16+'Blad 1 Totala intäkter'!CG20+'Blad 1 Totala intäkter'!CG22)*CO7/1000 ->  | CQ30: =('Blad 1 Totala intäkter'!CH14+'Blad 1 Totala intäkter'!CH18+'Blad 1 Totala intäkter'!CH16+'Blad 1 Totala intäkter'!CH20+'Blad 1 Totala intäkter'!CH22)*CP7/1000 ->  | CR30: =('Blad 1 Totala intäkter'!CI14+'Blad 1 Totala intäkter'!CI18+'Blad 1 Totala intäkter'!CI16+'Blad 1 Totala intäkter'!CI20+'Blad 1 Totala intäkter'!CI22)*CQ7/1000 ->  | CS30: =('Blad 1 Totala intäkter'!CJ14+'Blad 1 Totala intäkter'!CJ18+'Blad 1 Totala intäkter'!CJ16+'Blad 1 Totala intäkter'!CJ20+'Blad 1 Totala intäkter'!CJ22)*CR7/1000 ->  | CT30: =('Blad 1 Totala intäkter'!CK14+'Blad 1 Totala intäkter'!CK18+'Blad 1 Totala intäkter'!CK16+'Blad 1 Totala intäkter'!CK20+'Blad 1 Totala intäkter'!CK22)*CS7/1000 ->  | CU30: =('Blad 1 Totala intäkter'!CL14+'Blad 1 Totala intäkter'!CL18+'Blad 1 Totala intäkter'!CL16+'Blad 1 Totala intäkter'!CL20+'Blad 1 Totala intäkter'!CL22)*CT7/1000 ->  | CV30: =('Blad 1 Totala intäkter'!CM14+'Blad 1 Totala intäkter'!CM18+'Blad 1 Totala intäkter'!CM16+'Blad 1 Totala intäkter'!CM20+'Blad 1 Totala intäkter'!CM22)*CU7/1000 ->  | CW30: =('Blad 1 Totala intäkter'!CN14+'Blad 1 Totala intäkter'!CN18+'Blad 1 Totala intäkter'!CN16+'Blad 1 Totala intäkter'!CN20+'Blad 1 Totala intäkter'!CN22)*CV7/1000 ->  | CX30: =('Blad 1 Totala intäkter'!CO14+'Blad 1 Totala intäkter'!CO18+'Blad 1 Totala intäkter'!CO16+'Blad 1 Totala intäkter'!CO20+'Blad 1 Totala intäkter'!CO22)*CW7/1000 ->  | CY30: =('Blad 1 Totala intäkter'!CP14+'Blad 1 Totala intäkter'!CP18+'Blad 1 Totala intäkter'!CP16+'Blad 1 Totala intäkter'!CP20+'Blad 1 Totala intäkter'!CP22)*CX7/1000 ->  | CZ30: =('Blad 1 Totala intäkter'!CQ14+'Blad 1 Totala intäkter'!CQ18+'Blad 1 Totala intäkter'!CQ16+'Blad 1 Totala intäkter'!CQ20+'Blad 1 Totala intäkter'!CQ22)*CY7/1000 ->  | DA30: =('Blad 1 Totala intäkter'!CR14+'Blad 1 Totala intäkter'!CR18+'Blad 1 Totala intäkter'!CR16+'Blad 1 Totala intäkter'!CR20+'Blad 1 Totala intäkter'!CR22)*CZ7/1000 ->  | DB30: =('Blad 1 Totala intäkter'!CS14+'Blad 1 Totala intäkter'!CS18+'Blad 1 Totala intäkter'!CS16+'Blad 1 Totala intäkter'!CS20+'Blad 1 Totala intäkter'!CS22)*DA7/1000 ->  | DC30: =('Blad 1 Totala intäkter'!CT14+'Blad 1 Totala intäkter'!CT18+'Blad 1 Totala intäkter'!CT16+'Blad 1 Totala intäkter'!CT20+'Blad 1 Totala intäkter'!CT22)*DB7/1000 ->  | DD30: =('Blad 1 Totala intäkter'!CU14+'Blad 1 Totala intäkter'!CU18+'Blad 1 Totala intäkter'!CU16+'Blad 1 Totala intäkter'!CU20+'Blad 1 Totala intäkter'!CU22)*DC7/1000 ->  | DE30: =('Blad 1 Totala intäkter'!CV14+'Blad 1 Totala intäkter'!CV18+'Blad 1 Totala intäkter'!CV16+'Blad 1 Totala intäkter'!CV20+'Blad 1 Totala intäkter'!CV22)*DD7/1000 ->  | DF30: =('Blad 1 Totala intäkter'!CW14+'Blad 1 Totala intäkter'!CW18+'Blad 1 Totala intäkter'!CW16+'Blad 1 Totala intäkter'!CW20+'Blad 1 Totala intäkter'!CW22)*DE7/1000 ->  | DG30: =('Blad 1 Totala intäkter'!CX14+'Blad 1 Totala intäkter'!CX18+'Blad 1 Totala intäkter'!CX16+'Blad 1 Totala intäkter'!CX20+'Blad 1 Totala intäkter'!CX22)*DF7/1000 ->  | DH30: =('Blad 1 Totala intäkter'!CY14+'Blad 1 Totala intäkter'!CY18+'Blad 1 Totala intäkter'!CY16+'Blad 1 Totala intäkter'!CY20+'Blad 1 Totala intäkter'!CY22)*DG7/1000 ->  | DI30: =('Blad 1 Totala intäkter'!CZ14+'Blad 1 Totala intäkter'!CZ18+'Blad 1 Totala intäkter'!CZ16+'Blad 1 Totala intäkter'!CZ20+'Blad 1 Totala intäkter'!CZ22)*DH7/1000 ->  | DJ30: =('Blad 1 Totala intäkter'!DA14+'Blad 1 Totala intäkter'!DA18+'Blad 1 Totala intäkter'!DA16+'Blad 1 Totala intäkter'!DA20+'Blad 1 Totala intäkter'!DA22)*DI7/1000 ->  | DK30: =('Blad 1 Totala intäkter'!DB14+'Blad 1 Totala intäkter'!DB18+'Blad 1 Totala intäkter'!DB16+'Blad 1 Totala intäkter'!DB20+'Blad 1 Totala intäkter'!DB22)*DJ7/1000 ->  | DL30: =('Blad 1 Totala intäkter'!DC14+'Blad 1 Totala intäkter'!DC18+'Blad 1 Totala intäkter'!DC16+'Blad 1 Totala intäkter'!DC20+'Blad 1 Totala intäkter'!DC22)*DK7/1000 ->  | DM30: =('Blad 1 Totala intäkter'!DD14+'Blad 1 Totala intäkter'!DD18+'Blad 1 Totala intäkter'!DD16+'Blad 1 Totala intäkter'!DD20+'Blad 1 Totala intäkter'!DD22)*DL7/1000 ->  | DN30: =('Blad 1 Totala intäkter'!DE14+'Blad 1 Totala intäkter'!DE18+'Blad 1 Totala intäkter'!DE16+'Blad 1 Totala intäkter'!DE20+'Blad 1 Totala intäkter'!DE22)*DM7/1000 ->  | DO30: =('Blad 1 Totala intäkter'!DF14+'Blad 1 Totala intäkter'!DF18+'Blad 1 Totala intäkter'!DF16+'Blad 1 Totala intäkter'!DF20+'Blad 1 Totala intäkter'!DF22)*DN7/1000 ->  | DP30: =('Blad 1 Totala intäkter'!DG14+'Blad 1 Totala intäkter'!DG18+'Blad 1 Totala intäkter'!DG16+'Blad 1 Totala intäkter'!DG20+'Blad 1 Totala intäkter'!DG22)*DO7/1000 ->  | DQ30: =('Blad 1 Totala intäkter'!DH14+'Blad 1 Totala intäkter'!DH18+'Blad 1 Totala intäkter'!DH16+'Blad 1 Totala intäkter'!DH20+'Blad 1 Totala intäkter'!DH22)*DP7/1000 ->  | DR30: =('Blad 1 Totala intäkter'!DI14+'Blad 1 Totala intäkter'!DI18+'Blad 1 Totala intäkter'!DI16+'Blad 1 Totala intäkter'!DI20+'Blad 1 Totala intäkter'!DI22)*DQ7/1000 ->  | DS30: =('Blad 1 Totala intäkter'!DJ14+'Blad 1 Totala intäkter'!DJ18+'Blad 1 Totala intäkter'!DJ16+'Blad 1 Totala intäkter'!DJ20+'Blad 1 Totala intäkter'!DJ22)*DR7/1000 ->  | DT30: =('Blad 1 Totala intäkter'!DK14+'Blad 1 Totala intäkter'!DK18+'Blad 1 Totala intäkter'!DK16+'Blad 1 Totala intäkter'!DK20+'Blad 1 Totala intäkter'!DK22)*DS7/1000 ->  | DU30: =('Blad 1 Totala intäkter'!DL14+'Blad 1 Totala intäkter'!DL18+'Blad 1 Totala intäkter'!DL16+'Blad 1 Totala intäkter'!DL20+'Blad 1 Totala intäkter'!DL22)*DT7/1000 ->  | DV30: =('Blad 1 Totala intäkter'!DM14+'Blad 1 Totala intäkter'!DM18+'Blad 1 Totala intäkter'!DM16+'Blad 1 Totala intäkter'!DM20+'Blad 1 Totala intäkter'!DM22)*DU7/1000 ->  | DW30: =('Blad 1 Totala intäkter'!DN14+'Blad 1 Totala intäkter'!DN18+'Blad 1 Totala intäkter'!DN16+'Blad 1 Totala intäkter'!DN20+'Blad 1 Totala intäkter'!DN22)*DV7/1000 ->  | DX30: =('Blad 1 Totala intäkter'!DO14+'Blad 1 Totala intäkter'!DO18+'Blad 1 Totala intäkter'!DO16+'Blad 1 Totala intäkter'!DO20+'Blad 1 Totala intäkter'!DO22)*DW7/1000 ->  | DY30: =('Blad 1 Totala intäkter'!DP14+'Blad 1 Totala intäkter'!DP18+'Blad 1 Totala intäkter'!DP16+'Blad 1 Totala intäkter'!DP20+'Blad 1 Totala intäkter'!DP22)*DX7/1000 ->  | DZ30: =('Blad 1 Totala intäkter'!DQ14+'Blad 1 Totala intäkter'!DQ18+'Blad 1 Totala intäkter'!DQ16+'Blad 1 Totala intäkter'!DQ20+'Blad 1 Totala intäkter'!DQ22)*DY7/1000 ->  | EA30: =('Blad 1 Totala intäkter'!DR14+'Blad 1 Totala intäkter'!DR18+'Blad 1 Totala intäkter'!DR16+'Blad 1 Totala intäkter'!DR20+'Blad 1 Totala intäkter'!DR22)*DZ7/1000 ->  | EB30: =('Blad 1 Totala intäkter'!DS14+'Blad 1 Totala intäkter'!DS18+'Blad 1 Totala intäkter'!DS16+'Blad 1 Totala intäkter'!DS20+'Blad 1 Totala intäkter'!DS22)*EA7/1000 ->  | EC30: =('Blad 1 Totala intäkter'!DT14+'Blad 1 Totala intäkter'!DT18+'Blad 1 Totala intäkter'!DT16+'Blad 1 Totala intäkter'!DT20+'Blad 1 Totala intäkter'!DT22)*EB7/1000 ->  | ED30: =('Blad 1 Totala intäkter'!DU14+'Blad 1 Totala intäkter'!DU18+'Blad 1 Totala intäkter'!DU16+'Blad 1 Totala intäkter'!DU20+'Blad 1 Totala intäkter'!DU22)*EC7/1000 ->  | EE30: =('Blad 1 Totala intäkter'!DV14+'Blad 1 Totala intäkter'!DV18+'Blad 1 Totala intäkter'!DV16+'Blad 1 Totala intäkter'!DV20+'Blad 1 Totala intäkter'!DV22)*ED7/1000 ->  | EF30: =('Blad 1 Totala intäkter'!DW14+'Blad 1 Totala intäkter'!DW18+'Blad 1 Totala intäkter'!DW16+'Blad 1 Totala intäkter'!DW20+'Blad 1 Totala intäkter'!DW22)*EE7/1000 ->  | EG30: =('Blad 1 Totala intäkter'!DX14+'Blad 1 Totala intäkter'!DX18+'Blad 1 Totala intäkter'!DX16+'Blad 1 Totala intäkter'!DX20+'Blad 1 Totala intäkter'!DX22)*EF7/1000 ->  | EH30: =('Blad 1 Totala intäkter'!DY14+'Blad 1 Totala intäkter'!DY18+'Blad 1 Totala intäkter'!DY16+'Blad 1 Totala intäkter'!DY20+'Blad 1 Totala intäkter'!DY22)*EG7/1000 ->  | EI30: =('Blad 1 Totala intäkter'!DZ14+'Blad 1 Totala intäkter'!DZ18+'Blad 1 Totala intäkter'!DZ16+'Blad 1 Totala intäkter'!DZ20+'Blad 1 Totala intäkter'!DZ22)*EH7/1000 ->  | EJ30: =('Blad 1 Totala intäkter'!EA14+'Blad 1 Totala intäkter'!EA18+'Blad 1 Totala intäkter'!EA16+'Blad 1 Totala intäkter'!EA20+'Blad 1 Totala intäkter'!EA22)*EI7/1000 ->  | EK30: =('Blad 1 Totala intäkter'!EB14+'Blad 1 Totala intäkter'!EB18+'Blad 1 Totala intäkter'!EB16+'Blad 1 Totala intäkter'!EB20+'Blad 1 Totala intäkter'!EB22)*EJ7/1000 ->  | EL30: =('Blad 1 Totala intäkter'!EC14+'Blad 1 Totala intäkter'!EC18+'Blad 1 Totala intäkter'!EC16+'Blad 1 Totala intäkter'!EC20+'Blad 1 Totala intäkter'!EC22)*EK7/1000 ->  | EM30: =('Blad 1 Totala intäkter'!ED14+'Blad 1 Totala intäkter'!ED18+'Blad 1 Totala intäkter'!ED16+'Blad 1 Totala intäkter'!ED20+'Blad 1 Totala intäkter'!ED22)*EL7/1000 ->  | EN30: =('Blad 1 Totala intäkter'!EE14+'Blad 1 Totala intäkter'!EE18+'Blad 1 Totala intäkter'!EE16+'Blad 1 Totala intäkter'!EE20+'Blad 1 Totala intäkter'!EE22)*EM7/1000 ->  | EO30: =('Blad 1 Totala intäkter'!EF14+'Blad 1 Totala intäkter'!EF18+'Blad 1 Totala intäkter'!EF16+'Blad 1 Totala intäkter'!EF20+'Blad 1 Totala intäkter'!EF22)*EN7/1000 ->  | EP30: =('Blad 1 Totala intäkter'!EG14+'Blad 1 Totala intäkter'!EG18+'Blad 1 Totala intäkter'!EG16+'Blad 1 Totala intäkter'!EG20+'Blad 1 Totala intäkter'!EG22)*EO7/1000 ->  | EQ30: =('Blad 1 Totala intäkter'!EH14+'Blad 1 Totala intäkter'!EH18+'Blad 1 Totala intäkter'!EH16+'Blad 1 Totala intäkter'!EH20+'Blad 1 Totala intäkter'!EH22)*EP7/1000 ->  | ER30: =('Blad 1 Totala intäkter'!EI14+'Blad 1 Totala intäkter'!EI18+'Blad 1 Totala intäkter'!EI16+'Blad 1 Totala intäkter'!EI20+'Blad 1 Totala intäkter'!EI22)*EQ7/1000 ->  | ES30: =('Blad 1 Totala intäkter'!EJ14+'Blad 1 Totala intäkter'!EJ18+'Blad 1 Totala intäkter'!EJ16+'Blad 1 Totala intäkter'!EJ20+'Blad 1 Totala intäkter'!EJ22)*ER7/1000 ->  | ET30: =('Blad 1 Totala intäkter'!EK14+'Blad 1 Totala intäkter'!EK18+'Blad 1 Totala intäkter'!EK16+'Blad 1 Totala intäkter'!EK20+'Blad 1 Totala intäkter'!EK22)*ES7/1000 ->  | EU30: =('Blad 1 Totala intäkter'!EL14+'Blad 1 Totala intäkter'!EL18+'Blad 1 Totala intäkter'!EL16+'Blad 1 Totala intäkter'!EL20+'Blad 1 Totala intäkter'!EL22)*ET7/1000 ->  | EV30: =('Blad 1 Totala intäkter'!EM14+'Blad 1 Totala intäkter'!EM18+'Blad 1 Totala intäkter'!EM16+'Blad 1 Totala intäkter'!EM20+'Blad 1 Totala intäkter'!EM22)*EU7/1000 ->  | EW30: =('Blad 1 Totala intäkter'!EN14+'Blad 1 Totala intäkter'!EN18+'Blad 1 Totala intäkter'!EN16+'Blad 1 Totala intäkter'!EN20+'Blad 1 Totala intäkter'!EN22)*EV7/1000 ->  | EX30: =('Blad 1 Totala intäkter'!EO14+'Blad 1 Totala intäkter'!EO18+'Blad 1 Totala intäkter'!EO16+'Blad 1 Totala intäkter'!EO20+'Blad 1 Totala intäkter'!EO22)*EW7/1000 ->  | EY30: =('Blad 1 Totala intäkter'!EP14+'Blad 1 Totala intäkter'!EP18+'Blad 1 Totala intäkter'!EP16+'Blad 1 Totala intäkter'!EP20+'Blad 1 Totala intäkter'!EP22)*EX7/1000 ->  | EZ30: =('Blad 1 Totala intäkter'!EQ14+'Blad 1 Totala intäkter'!EQ18+'Blad 1 Totala intäkter'!EQ16+'Blad 1 Totala intäkter'!EQ20+'Blad 1 Totala intäkter'!EQ22)*EY7/1000 ->  | FA30: =('Blad 1 Totala intäkter'!ER14+'Blad 1 Totala intäkter'!ER18+'Blad 1 Totala intäkter'!ER16+'Blad 1 Totala intäkter'!ER20+'Blad 1 Totala intäkter'!ER22)*EZ7/1000 ->  | FB30: =('Blad 1 Totala intäkter'!ES14+'Blad 1 Totala intäkter'!ES18+'Blad 1 Totala intäkter'!ES16+'Blad 1 Totala intäkter'!ES20+'Blad 1 Totala intäkter'!ES22)*FA7/1000 ->  | FC30: =('Blad 1 Totala intäkter'!ET14+'Blad 1 Totala intäkter'!ET18+'Blad 1 Totala intäkter'!ET16+'Blad 1 Totala intäkter'!ET20+'Blad 1 Totala intäkter'!ET22)*FB7/1000 ->  | FD30: =('Blad 1 Totala intäkter'!EU14+'Blad 1 Totala intäkter'!EU18+'Blad 1 Totala intäkter'!EU16+'Blad 1 Totala intäkter'!EU20+'Blad 1 Totala intäkter'!EU22)*FC7/1000 ->  | FE30: =('Blad 1 Totala intäkter'!EV14+'Blad 1 Totala intäkter'!EV18+'Blad 1 Totala intäkter'!EV16+'Blad 1 Totala intäkter'!EV20+'Blad 1 Totala intäkter'!EV22)*FD7/1000 ->  | FF30: =('Blad 1 Totala intäkter'!EW14+'Blad 1 Totala intäkter'!EW18+'Blad 1 Totala intäkter'!EW16+'Blad 1 Totala intäkter'!EW20+'Blad 1 Totala intäkter'!EW22)*FE7/1000 ->  | FG30: =('Blad 1 Totala intäkter'!EX14+'Blad 1 Totala intäkter'!EX18+'Blad 1 Totala intäkter'!EX16+'Blad 1 Totala intäkter'!EX20+'Blad 1 Totala intäkter'!EX22)*FF7/1000 ->  | FH30: =('Blad 1 Totala intäkter'!EY14+'Blad 1 Totala intäkter'!EY18+'Blad 1 Totala intäkter'!EY16+'Blad 1 Totala intäkter'!EY20+'Blad 1 Totala intäkter'!EY22)*FG7/1000 ->  | FI30: =('Blad 1 Totala intäkter'!EZ14+'Blad 1 Totala intäkter'!EZ18+'Blad 1 Totala intäkter'!EZ16+'Blad 1 Totala intäkter'!EZ20+'Blad 1 Totala intäkter'!EZ22)*FH7/1000 ->  | FJ30: =('Blad 1 Totala intäkter'!FA14+'Blad 1 Totala intäkter'!FA18+'Blad 1 Totala intäkter'!FA16+'Blad 1 Totala intäkter'!FA20+'Blad 1 Totala intäkter'!FA22)*FI7/1000 ->  | FK30: =('Blad 1 Totala intäkter'!FB14+'Blad 1 Totala intäkter'!FB18+'Blad 1 Totala intäkter'!FB16+'Blad 1 Totala intäkter'!FB20+'Blad 1 Totala intäkter'!FB22)*FJ7/1000 ->  | FL30: =('Blad 1 Totala intäkter'!FC14+'Blad 1 Totala intäkter'!FC18+'Blad 1 Totala intäkter'!FC16+'Blad 1 Totala intäkter'!FC20+'Blad 1 Totala intäkter'!FC22)*FK7/1000 ->  | FM30: =('Blad 1 Totala intäkter'!FD14+'Blad 1 Totala intäkter'!FD18+'Blad 1 Totala intäkter'!FD16+'Blad 1 Totala intäkter'!FD20+'Blad 1 Totala intäkter'!FD22)*FL7/1000 ->  | FN30: =('Blad 1 Totala intäkter'!FE14+'Blad 1 Totala intäkter'!FE18+'Blad 1 Totala intäkter'!FE16+'Blad 1 Totala intäkter'!FE20+'Blad 1 Totala intäkter'!FE22)*FM7/1000 ->  | FO30: =('Blad 1 Totala intäkter'!FF14+'Blad 1 Totala intäkter'!FF18+'Blad 1 Totala intäkter'!FF16+'Blad 1 Totala intäkter'!FF20+'Blad 1 Totala intäkter'!FF22)*FN7/1000 ->  | FP30: =('Blad 1 Totala intäkter'!FG14+'Blad 1 Totala intäkter'!FG18+'Blad 1 Totala intäkter'!FG16+'Blad 1 Totala intäkter'!FG20+'Blad 1 Totala intäkter'!FG22)*FO7/1000 ->  | FQ30: =('Blad 1 Totala intäkter'!FH14+'Blad 1 Totala intäkter'!FH18+'Blad 1 Totala intäkter'!FH16+'Blad 1 Totala intäkter'!FH20+'Blad 1 Totala intäkter'!FH22)*FP7/1000 ->  | FR30: =('Blad 1 Totala intäkter'!FI14+'Blad 1 Totala intäkter'!FI18+'Blad 1 Totala intäkter'!FI16+'Blad 1 Totala intäkter'!FI20+'Blad 1 Totala intäkter'!FI22)*FQ7/1000 ->  | FS30: =('Blad 1 Totala intäkter'!FJ14+'Blad 1 Totala intäkter'!FJ18+'Blad 1 Totala intäkter'!FJ16+'Blad 1 Totala intäkter'!FJ20+'Blad 1 Totala intäkter'!FJ22)*FR7/1000 ->  | FT30: =('Blad 1 Totala intäkter'!FK14+'Blad 1 Totala intäkter'!FK18+'Blad 1 Totala intäkter'!FK16+'Blad 1 Totala intäkter'!FK20+'Blad 1 Totala intäkter'!FK22)*FS7/1000 ->  | FU30: =('Blad 1 Totala intäkter'!FL14+'Blad 1 Totala intäkter'!FL18+'Blad 1 Totala intäkter'!FL16+'Blad 1 Totala intäkter'!FL20+'Blad 1 Totala intäkter'!FL22)*FT7/1000 ->  | FV30: =('Blad 1 Totala intäkter'!FM14+'Blad 1 Totala intäkter'!FM18+'Blad 1 Totala intäkter'!FM16+'Blad 1 Totala intäkter'!FM20+'Blad 1 Totala intäkter'!FM22)*FU7/1000 ->  | FW30: =('Blad 1 Totala intäkter'!FN14+'Blad 1 Totala intäkter'!FN18+'Blad 1 Totala intäkter'!FN16+'Blad 1 Totala intäkter'!FN20+'Blad 1 Totala intäkter'!FN22)*FV7/1000 ->  | FX30: =('Blad 1 Totala intäkter'!FO14+'Blad 1 Totala intäkter'!FO18+'Blad 1 Totala intäkter'!FO16+'Blad 1 Totala intäkter'!FO20+'Blad 1 Totala intäkter'!FO22)*FW7/1000 ->  | FY30: =('Blad 1 Totala intäkter'!FP14+'Blad 1 Totala intäkter'!FP18+'Blad 1 Totala intäkter'!FP16+'Blad 1 Totala intäkter'!FP20+'Blad 1 Totala intäkter'!FP22)*FX7/1000 ->  | FZ30: =('Blad 1 Totala intäkter'!FQ14+'Blad 1 Totala intäkter'!FQ18+'Blad 1 Totala intäkter'!FQ16+'Blad 1 Totala intäkter'!FQ20+'Blad 1 Totala intäkter'!FQ22)*FY7/1000 ->  | GA30: =('Blad 1 Totala intäkter'!FR14+'Blad 1 Totala intäkter'!FR18+'Blad 1 Totala intäkter'!FR16+'Blad 1 Totala intäkter'!FR20+'Blad 1 Totala intäkter'!FR22)*FZ7/1000 ->  | GB30: =('Blad 1 Totala intäkter'!FS14+'Blad 1 Totala intäkter'!FS18+'Blad 1 Totala intäkter'!FS16+'Blad 1 Totala intäkter'!FS20+'Blad 1 Totala intäkter'!FS22)*GA7/1000 ->  | GC30: =('Blad 1 Totala intäkter'!FT14+'Blad 1 Totala intäkter'!FT18+'Blad 1 Totala intäkter'!FT16+'Blad 1 Totala intäkter'!FT20+'Blad 1 Totala intäkter'!FT22)*GB7/1000 ->  | GD30: =('Blad 1 Totala intäkter'!FU14+'Blad 1 Totala intäkter'!FU18+'Blad 1 Totala intäkter'!FU16+'Blad 1 Totala intäkter'!FU20+'Blad 1 Totala intäkter'!FU22)*GC7/1000 ->  | GE30: =('Blad 1 Totala intäkter'!FV14+'Blad 1 Totala intäkter'!FV18+'Blad 1 Totala intäkter'!FV16+'Blad 1 Totala intäkter'!FV20+'Blad 1 Totala intäkter'!FV22)*GD7/1000 ->  | GF30: =('Blad 1 Totala intäkter'!FW14+'Blad 1 Totala intäkter'!FW18+'Blad 1 Totala intäkter'!FW16+'Blad 1 Totala intäkter'!FW20+'Blad 1 Totala intäkter'!FW22)*GE7/1000 ->  | GG30: =('Blad 1 Totala intäkter'!FX14+'Blad 1 Totala intäkter'!FX18+'Blad 1 Totala intäkter'!FX16+'Blad 1 Totala intäkter'!FX20+'Blad 1 Totala intäkter'!FX22)*GF7/1000 ->  | GH30: =('Blad 1 Totala intäkter'!FY14+'Blad 1 Totala intäkter'!FY18+'Blad 1 Totala intäkter'!FY16+'Blad 1 Totala intäkter'!FY20+'Blad 1 Totala intäkter'!FY22)*GG7/1000 ->  | GI30: =('Blad 1 Totala intäkter'!FZ14+'Blad 1 Totala intäkter'!FZ18+'Blad 1 Totala intäkter'!FZ16+'Blad 1 Totala intäkter'!FZ20+'Blad 1 Totala intäkter'!FZ22)*GH7/1000 ->  | GJ30: =('Blad 1 Totala intäkter'!GA14+'Blad 1 Totala intäkter'!GA18+'Blad 1 Totala intäkter'!GA16+'Blad 1 Totala intäkter'!GA20+'Blad 1 Totala intäkter'!GA22)*GI7/1000 ->  | GK30: =('Blad 1 Totala intäkter'!GB14+'Blad 1 Totala intäkter'!GB18+'Blad 1 Totala intäkter'!GB16+'Blad 1 Totala intäkter'!GB20+'Blad 1 Totala intäkter'!GB22)*GJ7/1000 ->  | GL30: =('Blad 1 Totala intäkter'!GC14+'Blad 1 Totala intäkter'!GC18+'Blad 1 Totala intäkter'!GC16+'Blad 1 Totala intäkter'!GC20+'Blad 1 Totala intäkter'!GC22)*GK7/1000 ->  | GM30: =('Blad 1 Totala intäkter'!GD14+'Blad 1 Totala intäkter'!GD18+'Blad 1 Totala intäkter'!GD16+'Blad 1 Totala intäkter'!GD20+'Blad 1 Totala intäkter'!GD22)*GL7/1000 ->  | GN30: =('Blad 1 Totala intäkter'!GE14+'Blad 1 Totala intäkter'!GE18+'Blad 1 Totala intäkter'!GE16+'Blad 1 Totala intäkter'!GE20+'Blad 1 Totala intäkter'!GE22)*GM7/1000 ->  | GO30: =('Blad 1 Totala intäkter'!GF14+'Blad 1 Totala intäkter'!GF18+'Blad 1 Totala intäkter'!GF16+'Blad 1 Totala intäkter'!GF20+'Blad 1 Totala intäkter'!GF22)*GN7/1000 ->  | GP30: =('Blad 1 Totala intäkter'!GG14+'Blad 1 Totala intäkter'!GG18+'Blad 1 Totala intäkter'!GG16+'Blad 1 Totala intäkter'!GG20+'Blad 1 Totala intäkter'!GG22)*GO7/1000 ->  | GQ30: =('Blad 1 Totala intäkter'!GH14+'Blad 1 Totala intäkter'!GH18+'Blad 1 Totala intäkter'!GH16+'Blad 1 Totala intäkter'!GH20+'Blad 1 Totala intäkter'!GH22)*GP7/1000 ->  | GR30: =('Blad 1 Totala intäkter'!GI14+'Blad 1 Totala intäkter'!GI18+'Blad 1 Totala intäkter'!GI16+'Blad 1 Totala intäkter'!GI20+'Blad 1 Totala intäkter'!GI22)*GQ7/1000 ->  | GS30: =('Blad 1 Totala intäkter'!GJ14+'Blad 1 Totala intäkter'!GJ18+'Blad 1 Totala intäkter'!GJ16+'Blad 1 Totala intäkter'!GJ20+'Blad 1 Totala intäkter'!GJ22)*GR7/1000 ->  | GT30: =('Blad 1 Totala intäkter'!GK14+'Blad 1 Totala intäkter'!GK18+'Blad 1 Totala intäkter'!GK16+'Blad 1 Totala intäkter'!GK20+'Blad 1 Totala intäkter'!GK22)*GS7/1000 ->  | GU30: =('Blad 1 Totala intäkter'!GL14+'Blad 1 Totala intäkter'!GL18+'Blad 1 Totala intäkter'!GL16+'Blad 1 Totala intäkter'!GL20+'Blad 1 Totala intäkter'!GL22)*GT7/1000 ->  | GV30: =('Blad 1 Totala intäkter'!GM14+'Blad 1 Totala intäkter'!GM18+'Blad 1 Totala intäkter'!GM16+'Blad 1 Totala intäkter'!GM20+'Blad 1 Totala intäkter'!GM22)*GU7/1000 ->  | GW30: =('Blad 1 Totala intäkter'!GN14+'Blad 1 Totala intäkter'!GN18+'Blad 1 Totala intäkter'!GN16+'Blad 1 Totala intäkter'!GN20+'Blad 1 Totala intäkter'!GN22)*GV7/1000 ->  | GX30: =('Blad 1 Totala intäkter'!GO14+'Blad 1 Totala intäkter'!GO18+'Blad 1 Totala intäkter'!GO16+'Blad 1 Totala intäkter'!GO20+'Blad 1 Totala intäkter'!GO22)*GW7/1000 ->  | GY30: =('Blad 1 Totala intäkter'!GP14+'Blad 1 Totala intäkter'!GP18+'Blad 1 Totala intäkter'!GP16+'Blad 1 Totala intäkter'!GP20+'Blad 1 Totala intäkter'!GP22)*GX7/1000 ->  | GZ30: =('Blad 1 Totala intäkter'!GQ14+'Blad 1 Totala intäkter'!GQ18+'Blad 1 Totala intäkter'!GQ16+'Blad 1 Totala intäkter'!GQ20+'Blad 1 Totala intäkter'!GQ22)*GY7/1000 ->  | HA30: =('Blad 1 Totala intäkter'!GR14+'Blad 1 Totala intäkter'!GR18+'Blad 1 Totala intäkter'!GR16+'Blad 1 Totala intäkter'!GR20+'Blad 1 Totala intäkter'!GR22)*GZ7/1000 ->  | HB30: =('Blad 1 Totala intäkter'!GS14+'Blad 1 Totala intäkter'!GS18+'Blad 1 Totala intäkter'!GS16+'Blad 1 Totala intäkter'!GS20+'Blad 1 Totala intäkter'!GS22)*HA7/1000 ->  | HC30: =('Blad 1 Totala intäkter'!GT14+'Blad 1 Totala intäkter'!GT18+'Blad 1 Totala intäkter'!GT16+'Blad 1 Totala intäkter'!GT20+'Blad 1 Totala intäkter'!GT22)*HB7/1000 ->  | HD30: =('Blad 1 Totala intäkter'!GU14+'Blad 1 Totala intäkter'!GU18+'Blad 1 Totala intäkter'!GU16+'Blad 1 Totala intäkter'!GU20+'Blad 1 Totala intäkter'!GU22)*HC7/1000 ->  | HE30: =('Blad 1 Totala intäkter'!GV14+'Blad 1 Totala intäkter'!GV18+'Blad 1 Totala intäkter'!GV16+'Blad 1 Totala intäkter'!GV20+'Blad 1 Totala intäkter'!GV22)*HD7/1000 ->  | HF30: =('Blad 1 Totala intäkter'!GW14+'Blad 1 Totala intäkter'!GW18+'Blad 1 Totala intäkter'!GW16+'Blad 1 Totala intäkter'!GW20+'Blad 1 Totala intäkter'!GW22)*HE7/1000 ->  | HG30: =('Blad 1 Totala intäkter'!GX14+'Blad 1 Totala intäkter'!GX18+'Blad 1 Totala intäkter'!GX16+'Blad 1 Totala intäkter'!GX20+'Blad 1 Totala intäkter'!GX22)*HF7/1000 ->  | HH30: =('Blad 1 Totala intäkter'!GY14+'Blad 1 Totala intäkter'!GY18+'Blad 1 Totala intäkter'!GY16+'Blad 1 Totala intäkter'!GY20+'Blad 1 Totala intäkter'!GY22)*HG7/1000 ->  | HI30: =('Blad 1 Totala intäkter'!GZ14+'Blad 1 Totala intäkter'!GZ18+'Blad 1 Totala intäkter'!GZ16+'Blad 1 Totala intäkter'!GZ20+'Blad 1 Totala intäkter'!GZ22)*HH7/1000 ->  | HJ30: =('Blad 1 Totala intäkter'!HA14+'Blad 1 Totala intäkter'!HA18+'Blad 1 Totala intäkter'!HA16+'Blad 1 Totala intäkter'!HA20+'Blad 1 Totala intäkter'!HA22)*HI7/1000 ->  | HK30: =('Blad 1 Totala intäkter'!HB14+'Blad 1 Totala intäkter'!HB18+'Blad 1 Totala intäkter'!HB16+'Blad 1 Totala intäkter'!HB20+'Blad 1 Totala intäkter'!HB22)*HJ7/1000 ->  | HL30: =('Blad 1 Totala intäkter'!HC14+'Blad 1 Totala intäkter'!HC18+'Blad 1 Totala intäkter'!HC16+'Blad 1 Totala intäkter'!HC20+'Blad 1 Totala intäkter'!HC22)*HK7/1000 ->  | HM30: =('Blad 1 Totala intäkter'!HD14+'Blad 1 Totala intäkter'!HD18+'Blad 1 Totala intäkter'!HD16+'Blad 1 Totala intäkter'!HD20+'Blad 1 Totala intäkter'!HD22)*HL7/1000 ->  | HN30: =('Blad 1 Totala intäkter'!HE14+'Blad 1 Totala intäkter'!HE18+'Blad 1 Totala intäkter'!HE16+'Blad 1 Totala intäkter'!HE20+'Blad 1 Totala intäkter'!HE22)*HM7/1000 ->  | HO30: =('Blad 1 Totala intäkter'!HF14+'Blad 1 Totala intäkter'!HF18+'Blad 1 Totala intäkter'!HF16+'Blad 1 Totala intäkter'!HF20+'Blad 1 Totala intäkter'!HF22)*HN7/1000 ->  | HP30: =('Blad 1 Totala intäkter'!HG14+'Blad 1 Totala intäkter'!HG18+'Blad 1 Totala intäkter'!HG16+'Blad 1 Totala intäkter'!HG20+'Blad 1 Totala intäkter'!HG22)*HO7/1000 ->  | HQ30: =('Blad 1 Totala intäkter'!HH14+'Blad 1 Totala intäkter'!HH18+'Blad 1 Totala intäkter'!HH16+'Blad 1 Totala intäkter'!HH20+'Blad 1 Totala intäkter'!HH22)*HP7/1000 ->  | HR30: =('Blad 1 Totala intäkter'!HI14+'Blad 1 Totala intäkter'!HI18+'Blad 1 Totala intäkter'!HI16+'Blad 1 Totala intäkter'!HI20+'Blad 1 Totala intäkter'!HI22)*HQ7/1000 ->  | HS30: =('Blad 1 Totala intäkter'!HJ14+'Blad 1 Totala intäkter'!HJ18+'Blad 1 Totala intäkter'!HJ16+'Blad 1 Totala intäkter'!HJ20+'Blad 1 Totala intäkter'!HJ22)*HR7/1000 ->  | HT30: =('Blad 1 Totala intäkter'!HK14+'Blad 1 Totala intäkter'!HK18+'Blad 1 Totala intäkter'!HK16+'Blad 1 Totala intäkter'!HK20+'Blad 1 Totala intäkter'!HK22)*HS7/1000 ->  | HU30: =('Blad 1 Totala intäkter'!HL14+'Blad 1 Totala intäkter'!HL18+'Blad 1 Totala intäkter'!HL16+'Blad 1 Totala intäkter'!HL20+'Blad 1 Totala intäkter'!HL22)*HT7/1000 ->  | HV30: =('Blad 1 Totala intäkter'!HM14+'Blad 1 Totala intäkter'!HM18+'Blad 1 Totala intäkter'!HM16+'Blad 1 Totala intäkter'!HM20+'Blad 1 Totala intäkter'!HM22)*HU7/1000 ->  | HW30: =('Blad 1 Totala intäkter'!HN14+'Blad 1 Totala intäkter'!HN18+'Blad 1 Totala intäkter'!HN16+'Blad 1 Totala intäkter'!HN20+'Blad 1 Totala intäkter'!HN22)*HV7/1000 ->  | HX30: =('Blad 1 Totala intäkter'!HO14+'Blad 1 Totala intäkter'!HO18+'Blad 1 Totala intäkter'!HO16+'Blad 1 Totala intäkter'!HO20+'Blad 1 Totala intäkter'!HO22)*HW7/1000 ->  | HY30: =('Blad 1 Totala intäkter'!#REF!+'Blad 1 Totala intäkter'!#REF!+'Blad 1 Totala intäkter'!#REF!+'Blad 1 Totala intäkter'!#REF!+'Blad 1 Totala intäkter'!#REF!)*HX7/1000 ->  | HZ30: =('Blad 1 Totala intäkter'!#REF!+'Blad 1 Totala intäkter'!#REF!+'Blad 1 Totala intäkter'!#REF!+'Blad 1 Totala intäkter'!#REF!+'Blad 1 Totala intäkter'!#REF!)*HY7/1000 ->  | IA30: =('Blad 1 Totala intäkter'!#REF!+'Blad 1 Totala intäkter'!#REF!+'Blad 1 Totala intäkter'!#REF!+'Blad 1 Totala intäkter'!#REF!+'Blad 1 Totala intäkter'!#REF!)*HZ7/1000 ->  | IB30: =('Blad 1 Totala intäkter'!#REF!+'Blad 1 Totala intäkter'!#REF!+'Blad 1 Totala intäkter'!#REF!+'Blad 1 Totala intäkter'!#REF!+'Blad 1 Totala intäkter'!#REF!)*IA7/1000 ->  | IC30: =('Blad 1 Totala intäkter'!#REF!+'Blad 1 Totala intäkter'!#REF!+'Blad 1 Totala intäkter'!#REF!+'Blad 1 Totala intäkter'!#REF!+'Blad 1 Totala intäkter'!#REF!)*IB7/1000 ->  | ID30: =('Blad 1 Totala intäkter'!#REF!+'Blad 1 Totala intäkter'!#REF!+'Blad 1 Totala intäkter'!#REF!+'Blad 1 Totala intäkter'!#REF!+'Blad 1 Totala intäkter'!#REF!)*IC7/1000 ->  | IE30: =('Blad 1 Totala intäkter'!#REF!+'Blad 1 Totala intäkter'!#REF!+'Blad 1 Totala intäkter'!#REF!+'Blad 1 Totala intäkter'!#REF!+'Blad 1 Totala intäkter'!#REF!)*ID7/1000 ->  | IF30: =('Blad 1 Totala intäkter'!#REF!+'Blad 1 Totala intäkter'!#REF!+'Blad 1 Totala intäkter'!#REF!+'Blad 1 Totala intäkter'!#REF!+'Blad 1 Totala intäkter'!#REF!)*IE7/1000 ->  | IG30: =('Blad 1 Totala intäkter'!#REF!+'Blad 1 Totala intäkter'!#REF!+'Blad 1 Totala intäkter'!#REF!+'Blad 1 Totala intäkter'!#REF!+'Blad 1 Totala intäkter'!#REF!)*IF7/1000 ->  | IH30: =('Blad 1 Totala intäkter'!#REF!+'Blad 1 Totala intäkter'!#REF!+'Blad 1 Totala intäkter'!#REF!+'Blad 1 Totala intäkter'!#REF!+'Blad 1 Totala intäkter'!#REF!)*IG7/1000 ->  | II30: =('Blad 1 Totala intäkter'!#REF!+'Blad 1 Totala intäkter'!#REF!+'Blad 1 Totala intäkter'!#REF!+'Blad 1 Totala intäkter'!#REF!+'Blad 1 Totala intäkter'!#REF!)*IH7/1000 ->  | IJ30: =('Blad 1 Totala intäkter'!#REF!+'Blad 1 Totala intäkter'!#REF!+'Blad 1 Totala intäkter'!#REF!+'Blad 1 Totala intäkter'!#REF!+'Blad 1 Totala intäkter'!#REF!)*II7/1000 ->  | IK30: =('Blad 1 Totala intäkter'!#REF!+'Blad 1 Totala intäkter'!#REF!+'Blad 1 Totala intäkter'!#REF!+'Blad 1 Totala intäkter'!#REF!+'Blad 1 Totala intäkter'!#REF!)*IJ7/1000 ->  | IL30: =('Blad 1 Totala intäkter'!#REF!+'Blad 1 Totala intäkter'!#REF!+'Blad 1 Totala intäkter'!#REF!+'Blad 1 Totala intäkter'!#REF!+'Blad 1 Totala intäkter'!#REF!)*IK7/1000 ->  | IM30: =('Blad 1 Totala intäkter'!#REF!+'Blad 1 Totala intäkter'!#REF!+'Blad 1 Totala intäkter'!#REF!+'Blad 1 Totala intäkter'!#REF!+'Blad 1 Totala intäkter'!#REF!)*IL7/1000 ->  | IN30: =('Blad 1 Totala intäkter'!#REF!+'Blad 1 Totala intäkter'!#REF!+'Blad 1 Totala intäkter'!#REF!+'Blad 1 Totala intäkter'!#REF!+'Blad 1 Totala intäkter'!#REF!)*IM7/1000 ->  | IO30: =('Blad 1 Totala intäkter'!#REF!+'Blad 1 Totala intäkter'!#REF!+'Blad 1 Totala intäkter'!#REF!+'Blad 1 Totala intäkter'!#REF!+'Blad 1 Totala intäkter'!#REF!)*IN7/1000 ->  | IP30: =('Blad 1 Totala intäkter'!#REF!+'Blad 1 Totala intäkter'!#REF!+'Blad 1 Totala intäkter'!#REF!+'Blad 1 Totala intäkter'!#REF!+'Blad 1 Totala intäkter'!#REF!)*IO7/1000 ->  | IQ30: =('Blad 1 Totala intäkter'!#REF!+'Blad 1 Totala intäkter'!#REF!+'Blad 1 Totala intäkter'!#REF!+'Blad 1 Totala intäkter'!#REF!+'Blad 1 Totala intäkter'!#REF!)*IP7/1000 ->  | IR30: =('Blad 1 Totala intäkter'!#REF!+'Blad 1 Totala intäkter'!#REF!+'Blad 1 Totala intäkter'!#REF!+'Blad 1 Totala intäkter'!#REF!+'Blad 1 Totala intäkter'!#REF!)*IQ7/1000 ->  | IS30: =('Blad 1 Totala intäkter'!#REF!+'Blad 1 Totala intäkter'!#REF!+'Blad 1 Totala intäkter'!#REF!+'Blad 1 Totala intäkter'!#REF!+'Blad 1 Totala intäkter'!#REF!)*IR7/1000 ->  | IT30: =('Blad 1 Totala intäkter'!#REF!+'Blad 1 Totala intäkter'!#REF!+'Blad 1 Totala intäkter'!#REF!+'Blad 1 Totala intäkter'!#REF!+'Blad 1 Totala intäkter'!#REF!)*IS7/1000 ->  | IU30: =('Blad 1 Totala intäkter'!#REF!+'Blad 1 Totala intäkter'!#REF!+'Blad 1 Totala intäkter'!#REF!+'Blad 1 Totala intäkter'!#REF!+'Blad 1 Totala intäkter'!#REF!)*IT7/1000 ->  | IV30: =('Blad 1 Totala intäkter'!#REF!+'Blad 1 Totala intäkter'!#REF!+'Blad 1 Totala intäkter'!#REF!+'Blad 1 Totala intäkter'!#REF!+'Blad 1 Totala intäkter'!#REF!)*IU7/1000 -> 
